{"text_format":"1","workbook":"xlsx","n_sheets":3,"sheets":["FORM_NE - RENOVAÇÃO BENEFÍCIO","BAIRROS CADASTRADOS","DADOS"],"not_rendered":{"charts":0,"images":2,"macros":1,"external_links":1,"defined_names":3,"comments":0,"pivot_tables":0},"unopened":[],"bounds":{"document_bytes":16777216,"sheet_cells":100000,"rows_first":2000,"rows_last":500,"rows_between":2000,"halvings":0,"cell_chars":16384,"cell_head_chars":4096},"cells_cut":0,"cells_raw":0,"read":"whole","date_system":"1900"}

{"sheet":"FORM_NE - RENOVAÇÃO BENEFÍCIO","index":0,"n_rows":453,"n_cols":30,"rows_kept":453,"cut":false,"hidden":false,"merged":[[0,0,3,1],[7,0,7,17],[5,15,5,17],[6,0,6,17],[5,4,5,7],[5,0,5,1],[5,2,5,3],[5,8,5,14],[4,0,4,1],[4,2,4,14],[0,2,0,14],[3,2,3,14],[2,2,2,14],[1,2,1,14],[0,15,4,17]]}
[]
[null,null,"Secretaria de Educação e Cidadania"]
[null,null,"Setor de Transporte Escolar"]
[null,null,"E-mail: transporte.escolar@sjc.sp.gov.br"]
[null,null,"Telefone: (12) 3901-2065 / 2165/ 2234 / 2295",null,null,null,null,null,null,null,null,null,null,null,null,null,null,null,null,null,null,null,null,"Colunas1","Colunas2"]
["REDE:",null,null,null,"NOME DA ESCOLA:",null,null,null,null,null,null,null,null,null,null,"FORMULÁRIO NE (Renovação do Benefício e/ou Alteração de Endereço)",null,null,null,null,null,null,{"$f":"IF(ISNUMBER(SEARCH($AA$6,Bairros[[#This Row],[Colunas1]])),MAX($W$5:W5)+1,0)","v":1},"AGUA SOCA",{"$f":"IFERROR(VLOOKUP(ROW(AB5),W6:X453,2,FALSE),\"\")","v":"ALPHAVILLE"},null,{"$f":"IF(CELL(\"conteúdo\")<>0,CELL(\"conteúdo\"),\"*\")","v":"*"}]
["TRANSPORTE PÚBLICO ESCOLAR - MODALIDADE FRETE ESPECIAL / ADAPTADO",null,null,null,null,null,null,null,null,null,null,null,null,null,null,null,null,null,null,null,null,null,{"$f":"IF(ISNUMBER(SEARCH($AA$6,Bairros[[#This Row],[Colunas1]])),MAX($W$5:W6)+1,0)","v":2},"AGUAS DA PRATA","ALTOS DA VILA PAIVA",null,null,null,null,{"$f":"OFFSET($Y$6,0,0,COUNTIF(Bairros[Colunas2],\"?*\"),1)","v":"ALTOS DA VILA PAIVA"}]
["ALUNOS ATENDIDOS EM 2018 E QUE CONTINUARÃO NO BENEFÍCIO EM 2019",null,null,null,null,null,null,null,null,null,null,null,null,null,null,null,null,null,null,null,null,null,{"$f":"IF(ISNUMBER(SEARCH($AA$6,Bairros[[#This Row],[Colunas1]])),MAX($W$5:W7)+1,0)","v":3},"AGUAS DE CANINDU I","ALTOS DE SAO JOSE"]
["Nº","NOME COMPLETO DO (A) ALUNO (A)","RA","DATA NASC","IDADE","ANO/SÉRIE","TURMA","Horário Entrada","Horário Saída","KM","TELEFONE P/ CONTATO","ENDEREÇO COMPLETO","BAIRRO","TIPO DE NEE (Segundo SED)","CADEIRANTE","SOLICITADO VIA DOC","INFORMAÇÕES COMPLEMENTARES","CONDUTOR (2018)","CONDUTOR 2018","DISTRIBUÍDO (Inserir \"X)",null,null,{"$f":"IF(ISNUMBER(SEARCH($AA$6,Bairros[[#This Row],[Colunas1]])),MAX($W$5:W8)+1,0)","v":4},"AGUAS DE CANINDU II","ALTOS DO BOSQUE"]
[1,null,null,null,{"$f":"IF(D10=\"\",\"\",DADOS!$A$2-D10)","v":""},null,null,null,null,null,null,null,null,null,null,null,null,null,null,null,null,null,{"$f":"IF(ISNUMBER(SEARCH($AA$6,Bairros[[#This Row],[Colunas1]])),MAX($W$5:W9)+1,0)","v":5},"ALPHAVILLE","ALTOS DO CAETE"]
[2,null,null,null,{"$f":"IF(D11=\"\",\"\",DADOS!$A$2-D11)","v":""},null,null,null,null,null,null,null,null,null,null,null,null,null,null,null,null,null,{"$f":"IF(ISNUMBER(SEARCH($AA$6,Bairros[[#This Row],[Colunas1]])),MAX($W$5:W10)+1,0)","v":6},"ALTOS DA VILA PAIVA","BAIRRINHO"]
[3,null,null,null,{"$f":"IF(D12=\"\",\"\",DADOS!$A$2-D12)","v":""},null,null,null,null,null,null,null,null,null,null,null,null,null,null,null,null,null,{"$f":"IF(ISNUMBER(SEARCH($AA$6,Bairros[[#This Row],[Colunas1]])),MAX($W$5:W11)+1,0)","v":7},"ALTOS DE SAO JOSE","BEIRA RIO"]
[4,null,null,null,{"$f":"IF(D13=\"\",\"\",DADOS!$A$2-D13)","v":""},null,null,null,null,null,null,null,null,null,null,null,null,null,null,null,null,null,{"$f":"IF(ISNUMBER(SEARCH($AA$6,Bairros[[#This Row],[Colunas1]])),MAX($W$5:W12)+1,0)","v":8},"ALTOS DO BOSQUE","BENGALAR"]
[5,null,null,null,{"$f":"IF(D14=\"\",\"\",DADOS!$A$2-D14)","v":""},null,null,null,null,null,null,null,null,null,null,null,null,null,null,null,null,null,{"$f":"IF(ISNUMBER(SEARCH($AA$6,Bairros[[#This Row],[Colunas1]])),MAX($W$5:W13)+1,0)","v":9},"ALTOS DO CAETE","BICA D'AGUA"]
[6,null,null,null,{"$f":"IF(D15=\"\",\"\",DADOS!$A$2-D15)","v":""},null,null,null,null,null,null,null,null,null,null,null,null,null,null,null,null,null,{"$f":"IF(ISNUMBER(SEARCH($AA$6,Bairros[[#This Row],[Colunas1]])),MAX($W$5:W14)+1,0)","v":10},"BAIRRINHO","BOM RETIRO"]
[7,null,null,null,{"$f":"IF(D16=\"\",\"\",DADOS!$A$2-D16)","v":""},null,null,null,null,null,null,null,null,null,null,null,null,null,null,null,null,null,{"$f":"IF(ISNUMBER(SEARCH($AA$6,Bairros[[#This Row],[Colunas1]])),MAX($W$5:W15)+1,0)","v":11},"BEIRA RIO","BOM SUCESSO"]
[8,null,null,null,{"$f":"IF(D17=\"\",\"\",DADOS!$A$2-D17)","v":""},null,null,null,null,null,null,null,null,null,null,null,null,null,null,null,null,null,{"$f":"IF(ISNUMBER(SEARCH($AA$6,Bairros[[#This Row],[Colunas1]])),MAX($W$5:W16)+1,0)","v":12},"BENGALAR","BOSQUE DOS EUCALIPTOS"]
[9,null,null,null,{"$f":"IF(D18=\"\",\"\",DADOS!$A$2-D18)","v":""},null,null,null,null,null,null,null,null,null,null,null,null,null,null,null,null,null,{"$f":"IF(ISNUMBER(SEARCH($AA$6,Bairros[[#This Row],[Colunas1]])),MAX($W$5:W17)+1,0)","v":13},"BICA D'AGUA","BOSQUE DOS IPES"]
[10,null,null,null,{"$f":"IF(D19=\"\",\"\",DADOS!$A$2-D19)","v":""},null,null,null,null,null,null,null,null,null,null,null,null,null,null,null,null,null,{"$f":"IF(ISNUMBER(SEARCH($AA$6,Bairros[[#This Row],[Colunas1]])),MAX($W$5:W18)+1,0)","v":14},"BOM RETIRO","BOSQUE IMPERIAL"]
[11,null,null,null,{"$f":"IF(D20=\"\",\"\",DADOS!$A$2-D20)","v":""},null,null,null,null,null,null,null,null,null,null,null,null,null,null,null,null,null,{"$f":"IF(ISNUMBER(SEARCH($AA$6,Bairros[[#This Row],[Colunas1]])),MAX($W$5:W19)+1,0)","v":15},"BOM SUCESSO","BRASALPES"]
[12,null,null,null,{"$f":"IF(D21=\"\",\"\",DADOS!$A$2-D21)","v":""},null,null,null,null,null,null,null,null,null,null,null,null,null,null,null,null,null,{"$f":"IF(ISNUMBER(SEARCH($AA$6,Bairros[[#This Row],[Colunas1]])),MAX($W$5:W20)+1,0)","v":16},"BOSQUE DOS EUCALIPTOS","BUQUIRINHA I"]
[13,null,null,null,{"$f":"IF(D22=\"\",\"\",DADOS!$A$2-D22)","v":""},null,null,null,null,null,null,null,null,null,null,null,null,null,null,null,null,null,{"$f":"IF(ISNUMBER(SEARCH($AA$6,Bairros[[#This Row],[Colunas1]])),MAX($W$5:W21)+1,0)","v":17},"BOSQUE DOS IPES","BUQUIRINHA II"]
[14,null,null,null,{"$f":"IF(D23=\"\",\"\",DADOS!$A$2-D23)","v":""},null,null,null,null,null,null,null,null,null,null,null,null,null,null,null,null,null,{"$f":"IF(ISNUMBER(SEARCH($AA$6,Bairros[[#This Row],[Colunas1]])),MAX($W$5:W22)+1,0)","v":18},"BOSQUE IMPERIAL","CACHOEIRA DO RONCADOR"]
[15,null,null,null,{"$f":"IF(D24=\"\",\"\",DADOS!$A$2-D24)","v":""},null,null,null,null,null,null,null,null,null,null,null,null,null,null,null,null,null,{"$f":"IF(ISNUMBER(SEARCH($AA$6,Bairros[[#This Row],[Colunas1]])),MAX($W$5:W23)+1,0)","v":19},"BRASALPES","CAJURU"]
[16,null,null,null,{"$f":"IF(D25=\"\",\"\",DADOS!$A$2-D25)","v":""},null,null,null,null,null,null,null,null,null,null,null,null,null,null,null,null,null,{"$f":"IF(ISNUMBER(SEARCH($AA$6,Bairros[[#This Row],[Colunas1]])),MAX($W$5:W24)+1,0)","v":20},"BUQUIRINHA I","CAMBUCA"]
[17,null,null,null,{"$f":"IF(D26=\"\",\"\",DADOS!$A$2-D26)","v":""},null,null,null,null,null,null,null,null,null,null,null,null,null,null,null,null,null,{"$f":"IF(ISNUMBER(SEARCH($AA$6,Bairros[[#This Row],[Colunas1]])),MAX($W$5:W25)+1,0)","v":21},"BUQUIRINHA II","CAMPO DOS ALEMAES"]
[18,null,null,null,{"$f":"IF(D27=\"\",\"\",DADOS!$A$2-D27)","v":""},null,null,null,null,null,null,null,null,null,null,null,null,null,null,null,null,null,{"$f":"IF(ISNUMBER(SEARCH($AA$6,Bairros[[#This Row],[Colunas1]])),MAX($W$5:W26)+1,0)","v":22},"CACHOEIRA DO RONCADOR","CAMPOS DE SAO JOSE"]
[19,null,null,null,{"$f":"IF(D28=\"\",\"\",DADOS!$A$2-D28)","v":""},null,null,null,null,null,null,null,null,null,null,null,null,null,null,null,null,null,{"$f":"IF(ISNUMBER(SEARCH($AA$6,Bairros[[#This Row],[Colunas1]])),MAX($W$5:W27)+1,0)","v":23},"CAJURU","CAPAO GROSSO I"]
[20,null,null,null,{"$f":"IF(D29=\"\",\"\",DADOS!$A$2-D29)","v":""},null,null,null,null,null,null,null,null,null,null,null,null,null,null,null,null,null,{"$f":"IF(ISNUMBER(SEARCH($AA$6,Bairros[[#This Row],[Colunas1]])),MAX($W$5:W28)+1,0)","v":24},"CAMBUCA","CAPAO GROSSO II"]
[21,null,null,null,{"$f":"IF(D30=\"\",\"\",DADOS!$A$2-D30)","v":""},null,null,null,null,null,null,null,null,null,null,null,null,null,null,null,null,null,{"$f":"IF(ISNUMBER(SEARCH($AA$6,Bairros[[#This Row],[Colunas1]])),MAX($W$5:W29)+1,0)","v":25},"CAMPO DOS ALEMAES","CENTRO"]
[22,null,null,null,{"$f":"IF(D31=\"\",\"\",DADOS!$A$2-D31)","v":""},null,null,null,null,null,null,null,null,null,null,null,null,null,null,null,null,null,{"$f":"IF(ISNUMBER(SEARCH($AA$6,Bairros[[#This Row],[Colunas1]])),MAX($W$5:W30)+1,0)","v":26},"CAMPOS DE SAO JOSE","CENTRO INDUSTRIAL ELDORADO"]
[23,null,null,null,{"$f":"IF(D32=\"\",\"\",DADOS!$A$2-D32)","v":""},null,null,null,null,null,null,null,null,null,null,null,null,null,null,null,null,null,{"$f":"IF(ISNUMBER(SEARCH($AA$6,Bairros[[#This Row],[Colunas1]])),MAX($W$5:W31)+1,0)","v":27},"CAPAO GROSSO I","CHACARAS ARAUJO I"]
[24,null,null,null,{"$f":"IF(D33=\"\",\"\",DADOS!$A$2-D33)","v":""},null,null,null,null,null,null,null,null,null,null,null,null,null,null,null,null,null,{"$f":"IF(ISNUMBER(SEARCH($AA$6,Bairros[[#This Row],[Colunas1]])),MAX($W$5:W32)+1,0)","v":28},"CAPAO GROSSO II","CHACARAS ARAUJO II"]
[25,null,null,null,{"$f":"IF(D34=\"\",\"\",DADOS!$A$2-D34)","v":""},null,null,null,null,null,null,null,null,null,null,null,null,null,null,null,null,null,{"$f":"IF(ISNUMBER(SEARCH($AA$6,Bairros[[#This Row],[Colunas1]])),MAX($W$5:W33)+1,0)","v":29},"CENTRO","CHACARAS BOA ESPERANCA"]
[26,null,null,null,{"$f":"IF(D35=\"\",\"\",DADOS!$A$2-D35)","v":""},null,null,null,null,null,null,null,null,null,null,null,null,null,null,null,null,null,{"$f":"IF(ISNUMBER(SEARCH($AA$6,Bairros[[#This Row],[Colunas1]])),MAX($W$5:W34)+1,0)","v":30},"CENTRO INDUSTRIAL ELDORADO","CHACARAS BOA VISTA"]
[27,null,null,null,{"$f":"IF(D36=\"\",\"\",DADOS!$A$2-D36)","v":""},null,null,null,null,null,null,null,null,null,null,null,null,null,null,null,null,null,{"$f":"IF(ISNUMBER(SEARCH($AA$6,Bairros[[#This Row],[Colunas1]])),MAX($W$5:W35)+1,0)","v":31},"CHACARAS ARAUJO I","CHACARAS DOS EUCALIPTOS"]
[28,null,null,null,{"$f":"IF(D37=\"\",\"\",DADOS!$A$2-D37)","v":""},null,null,null,null,null,null,null,null,null,null,null,null,null,null,null,null,null,{"$f":"IF(ISNUMBER(SEARCH($AA$6,Bairros[[#This Row],[Colunas1]])),MAX($W$5:W36)+1,0)","v":32},"CHACARAS ARAUJO II","CHACARAS HAWAI"]
[29,null,null,null,{"$f":"IF(D38=\"\",\"\",DADOS!$A$2-D38)","v":""},null,null,null,null,null,null,null,null,null,null,null,null,null,null,null,null,null,{"$f":"IF(ISNUMBER(SEARCH($AA$6,Bairros[[#This Row],[Colunas1]])),MAX($W$5:W37)+1,0)","v":33},"CHACARAS BOA ESPERANCA","CHACARAS JARDIM SERIMBURA (SATELITE)"]
[30,null,null,null,{"$f":"IF(D39=\"\",\"\",DADOS!$A$2-D39)","v":""},null,null,null,null,null,null,null,null,null,null,null,null,null,null,null,null,null,{"$f":"IF(ISNUMBER(SEARCH($AA$6,Bairros[[#This Row],[Colunas1]])),MAX($W$5:W38)+1,0)","v":34},"CHACARAS BOA VISTA","CHACARAS REUNIDAS"]
[31,null,null,null,{"$f":"IF(D40=\"\",\"\",DADOS!$A$2-D40)","v":""},null,null,null,null,null,null,null,null,null,null,null,null,null,null,null,null,null,{"$f":"IF(ISNUMBER(SEARCH($AA$6,Bairros[[#This Row],[Colunas1]])),MAX($W$5:W39)+1,0)","v":35},"CHACARAS DOS EUCALIPTOS","CHACARAS SANTA HELENA"]
[32,null,null,null,{"$f":"IF(D41=\"\",\"\",DADOS!$A$2-D41)","v":""},null,null,null,null,null,null,null,null,null,null,null,null,null,null,null,null,null,{"$f":"IF(ISNUMBER(SEARCH($AA$6,Bairros[[#This Row],[Colunas1]])),MAX($W$5:W40)+1,0)","v":36},"CHACARAS HAWAI","CHACARAS SAO BENEDITO"]
[33,null,null,null,{"$f":"IF(D42=\"\",\"\",DADOS!$A$2-D42)","v":""},null,null,null,null,null,null,null,null,null,null,null,null,null,null,null,null,null,{"$f":"IF(ISNUMBER(SEARCH($AA$6,Bairros[[#This Row],[Colunas1]])),MAX($W$5:W41)+1,0)","v":37},"CHACARAS JARDIM SERIMBURA (SATELITE)","CHACARAS SAO JOSE"]
[34,null,null,null,{"$f":"IF(D43=\"\",\"\",DADOS!$A$2-D43)","v":""},null,null,null,null,null,null,null,null,null,null,null,null,null,null,null,null,null,{"$f":"IF(ISNUMBER(SEARCH($AA$6,Bairros[[#This Row],[Colunas1]])),MAX($W$5:W42)+1,0)","v":38},"CHACARAS REUNIDAS","CHACARAS TAKITANI"]
[35,null,null,null,{"$f":"IF(D44=\"\",\"\",DADOS!$A$2-D44)","v":""},null,null,null,null,null,null,null,null,null,null,null,null,null,null,null,null,null,{"$f":"IF(ISNUMBER(SEARCH($AA$6,Bairros[[#This Row],[Colunas1]])),MAX($W$5:W43)+1,0)","v":39},"CHACARAS SANTA HELENA","CIDADE MORUMBI"]
[36,null,null,null,{"$f":"IF(D45=\"\",\"\",DADOS!$A$2-D45)","v":""},null,null,null,null,null,null,null,null,null,null,null,null,null,null,null,null,null,{"$f":"IF(ISNUMBER(SEARCH($AA$6,Bairros[[#This Row],[Colunas1]])),MAX($W$5:W44)+1,0)","v":40},"CHACARAS SAO BENEDITO","CIDADE VISTA VERDE"]
[37,null,null,null,{"$f":"IF(D46=\"\",\"\",DADOS!$A$2-D46)","v":""},null,null,null,null,null,null,null,null,null,null,null,null,null,null,null,null,null,{"$f":"IF(ISNUMBER(SEARCH($AA$6,Bairros[[#This Row],[Colunas1]])),MAX($W$5:W45)+1,0)","v":41},"CHACARAS SAO JOSE","COLINAS DO PARATEHY"]
[38,null,null,null,{"$f":"IF(D47=\"\",\"\",DADOS!$A$2-D47)","v":""},null,null,null,null,null,null,null,null,null,null,null,null,null,null,null,null,null,{"$f":"IF(ISNUMBER(SEARCH($AA$6,Bairros[[#This Row],[Colunas1]])),MAX($W$5:W46)+1,0)","v":42},"CHACARAS TAKITANI","COLINAS DO PARAYBA"]
[39,null,null,null,{"$f":"IF(D48=\"\",\"\",DADOS!$A$2-D48)","v":""},null,null,null,null,null,null,null,null,null,null,null,null,null,null,null,null,null,{"$f":"IF(ISNUMBER(SEARCH($AA$6,Bairros[[#This Row],[Colunas1]])),MAX($W$5:W47)+1,0)","v":43},"CIDADE MORUMBI","COMUNIDADE SANTA CRUZ"]
[40,null,null,null,{"$f":"IF(D49=\"\",\"\",DADOS!$A$2-D49)","v":""},null,null,null,null,null,null,null,null,null,null,null,null,null,null,null,null,null,{"$f":"IF(ISNUMBER(SEARCH($AA$6,Bairros[[#This Row],[Colunas1]])),MAX($W$5:W48)+1,0)","v":44},"CIDADE VISTA VERDE","CONDOMINIO CHACARAS DOS EUCALIPTOS"]
[null,null,null,null,null,null,null,null,null,null,null,null,null,null,null,null,null,null,null,null,null,null,{"$f":"IF(ISNUMBER(SEARCH($AA$6,Bairros[[#This Row],[Colunas1]])),MAX($W$5:W49)+1,0)","v":45},"COLINAS DO PARATEHY","CONDOMINIO RESIDENCIAL ELDORADO"]
[null,null,null,null,null,null,null,null,null,null,null,null,null,null,null,null,null,null,null,null,null,null,{"$f":"IF(ISNUMBER(SEARCH($AA$6,Bairros[[#This Row],[Colunas1]])),MAX($W$5:W50)+1,0)","v":46},"COLINAS DO PARAYBA","CONDOMINIO RESIDENCIAL JK"]
[null,null,null,null,null,null,null,null,null,null,null,null,null,null,null,null,null,null,null,null,null,null,{"$f":"IF(ISNUMBER(SEARCH($AA$6,Bairros[[#This Row],[Colunas1]])),MAX($W$5:W51)+1,0)","v":47},"COMUNIDADE SANTA CRUZ","CONDOMINIO RESIDENCIAL TERRINHA"]
[null,null,null,null,null,null,null,null,null,null,null,null,null,null,null,null,null,null,null,null,null,null,{"$f":"IF(ISNUMBER(SEARCH($AA$6,Bairros[[#This Row],[Colunas1]])),MAX($W$5:W52)+1,0)","v":48},"CONDOMINIO CHACARAS DOS EUCALIPTOS","CONDOMINIO RESIDENCIAL VILLAGIO FAZENDAO"]
[null,null,null,null,null,null,null,null,null,null,null,null,null,null,null,null,null,null,null,null,null,null,{"$f":"IF(ISNUMBER(SEARCH($AA$6,Bairros[[#This Row],[Colunas1]])),MAX($W$5:W53)+1,0)","v":49},"CONDOMINIO RESIDENCIAL ELDORADO","CONJUNTO HABILTACIONAL RONDA"]
[null,null,null,null,null,null,null,null,null,null,null,null,null,null,null,null,null,null,null,null,null,null,{"$f":"IF(ISNUMBER(SEARCH($AA$6,Bairros[[#This Row],[Colunas1]])),MAX($W$5:W54)+1,0)","v":50},"CONDOMINIO RESIDENCIAL JK","CONJUNTO HABITACIONAL DOM PEDRO I"]
[null,null,null,null,null,null,null,null,null,null,null,null,null,null,null,null,null,null,null,null,null,null,{"$f":"IF(ISNUMBER(SEARCH($AA$6,Bairros[[#This Row],[Colunas1]])),MAX($W$5:W55)+1,0)","v":51},"CONDOMINIO RESIDENCIAL TERRINHA","CONJUNTO HABITACIONAL DOM PEDRO II"]
[null,null,null,null,null,null,null,null,null,null,null,null,null,null,null,null,null,null,null,null,null,null,{"$f":"IF(ISNUMBER(SEARCH($AA$6,Bairros[[#This Row],[Colunas1]])),MAX($W$5:W56)+1,0)","v":52},"CONDOMINIO RESIDENCIAL VILLAGIO FAZENDAO","CONJUNTO HABITACIONAL ELMANO FERREIRA VELOSO"]
[null,null,null,null,null,null,null,null,null,null,null,null,null,null,null,null,null,null,null,null,null,null,{"$f":"IF(ISNUMBER(SEARCH($AA$6,Bairros[[#This Row],[Colunas1]])),MAX($W$5:W57)+1,0)","v":53},"CONJUNTO HABILTACIONAL RONDA","CONJUNTO HABITACIONAL INTERVALE"]
[null,null,null,null,null,null,null,null,null,null,null,null,null,null,null,null,null,null,null,null,null,null,{"$f":"IF(ISNUMBER(SEARCH($AA$6,Bairros[[#This Row],[Colunas1]])),MAX($W$5:W58)+1,0)","v":54},"CONJUNTO HABITACIONAL DOM PEDRO I","CONJUNTO HABITACIONAL NOSSO TETO"]
[null,null,null,null,null,null,null,null,null,null,null,null,null,null,null,null,null,null,null,null,null,null,{"$f":"IF(ISNUMBER(SEARCH($AA$6,Bairros[[#This Row],[Colunas1]])),MAX($W$5:W59)+1,0)","v":55},"CONJUNTO HABITACIONAL DOM PEDRO II","CONJUNTO HABITACIONAL PAPA JOAO PAULO II"]
[null,null,null,null,null,null,null,null,null,null,null,null,null,null,null,null,null,null,null,null,null,null,{"$f":"IF(ISNUMBER(SEARCH($AA$6,Bairros[[#This Row],[Colunas1]])),MAX($W$5:W60)+1,0)","v":56},"CONJUNTO HABITACIONAL ELMANO FERREIRA VELOSO","CONJUNTO HABITACIONAL PM SAO JUDAS TADEU "]
[null,null,null,null,null,null,null,null,null,null,null,null,null,null,null,null,null,null,null,null,null,null,{"$f":"IF(ISNUMBER(SEARCH($AA$6,Bairros[[#This Row],[Colunas1]])),MAX($W$5:W61)+1,0)","v":57},"CONJUNTO HABITACIONAL INTERVALE","CONJUNTO HABITACIONAL SAO JUDAS TADEU "]
[null,null,null,null,null,null,null,null,null,null,null,null,null,null,null,null,null,null,null,null,null,null,{"$f":"IF(ISNUMBER(SEARCH($AA$6,Bairros[[#This Row],[Colunas1]])),MAX($W$5:W62)+1,0)","v":58},"CONJUNTO HABITACIONAL NOSSO TETO","CONJUNTO HABITACIONAL TRINTA E UM DE MARCO"]
[null,null,null,null,null,null,null,null,null,null,null,null,null,null,null,null,null,null,null,null,null,null,{"$f":"IF(ISNUMBER(SEARCH($AA$6,Bairros[[#This Row],[Colunas1]])),MAX($W$5:W63)+1,0)","v":59},"CONJUNTO HABITACIONAL PAPA JOAO PAULO II","CONJUNTO INTEGRACAO"]
[null,null,null,null,null,null,null,null,null,null,null,null,null,null,null,null,null,null,null,null,null,null,{"$f":"IF(ISNUMBER(SEARCH($AA$6,Bairros[[#This Row],[Colunas1]])),MAX($W$5:W64)+1,0)","v":60},"CONJUNTO HABITACIONAL PM SAO JUDAS TADEU ","CONJUNTO RESIDENCIA PLANALTO"]
[null,null,null,null,null,null,null,null,null,null,null,null,null,null,null,null,null,null,null,null,null,null,{"$f":"IF(ISNUMBER(SEARCH($AA$6,Bairros[[#This Row],[Colunas1]])),MAX($W$5:W65)+1,0)","v":61},"CONJUNTO HABITACIONAL SAO JUDAS TADEU ","CONJUNTO RESIDENCIAL CAJURU I"]
[null,null,null,null,null,null,null,null,null,null,null,null,null,null,null,null,null,null,null,null,null,null,{"$f":"IF(ISNUMBER(SEARCH($AA$6,Bairros[[#This Row],[Colunas1]])),MAX($W$5:W66)+1,0)","v":62},"CONJUNTO HABITACIONAL TRINTA E UM DE MARCO","CONJUNTO RESIDENCIAL CAJURU III"]
[null,null,null,null,null,null,null,null,null,null,null,null,null,null,null,null,null,null,null,null,null,null,{"$f":"IF(ISNUMBER(SEARCH($AA$6,Bairros[[#This Row],[Colunas1]])),MAX($W$5:W67)+1,0)","v":63},"CONJUNTO INTEGRACAO","CONJUNTO RESIDENCIAL CIDADE JARDIM"]
[null,null,null,null,null,null,null,null,null,null,null,null,null,null,null,null,null,null,null,null,null,null,{"$f":"IF(ISNUMBER(SEARCH($AA$6,Bairros[[#This Row],[Colunas1]])),MAX($W$5:W68)+1,0)","v":64},"CONJUNTO RESIDENCIA PLANALTO","CONJUNTO RESIDENCIAL JARDIM SATELITE"]
[null,null,null,null,null,null,null,null,null,null,null,null,null,null,null,null,null,null,null,null,null,null,{"$f":"IF(ISNUMBER(SEARCH($AA$6,Bairros[[#This Row],[Colunas1]])),MAX($W$5:W69)+1,0)","v":65},"CONJUNTO RESIDENCIAL CAJURU I",{"$f":"IFERROR(VLOOKUP(ROW(AB69),W70:X517,2,FALSE),\"\")","v":"CONJUNTO RESIDENCIAL MONTE CASTELO"}]
[null,null,null,null,null,null,null,null,null,null,null,null,null,null,null,null,null,null,null,null,null,null,{"$f":"IF(ISNUMBER(SEARCH($AA$6,Bairros[[#This Row],[Colunas1]])),MAX($W$5:W70)+1,0)","v":66},"CONJUNTO RESIDENCIAL CAJURU III","CONJUNTO RESIDENCIAL MORADA DO SOL"]
[null,null,null,null,null,null,null,null,null,null,null,null,null,null,null,null,null,null,null,null,null,null,{"$f":"IF(ISNUMBER(SEARCH($AA$6,Bairros[[#This Row],[Colunas1]])),MAX($W$5:W71)+1,0)","v":67},"CONJUNTO RESIDENCIAL CIDADE JARDIM","CONJUNTO RESIDENCIAL VALE DOS PINHEIROS"]
[null,null,null,null,null,null,null,null,null,null,null,null,null,null,null,null,null,null,null,null,null,null,{"$f":"IF(ISNUMBER(SEARCH($AA$6,Bairros[[#This Row],[Colunas1]])),MAX($W$5:W72)+1,0)","v":68},"CONJUNTO RESIDENCIAL JARDIM SATELITE","CONUNTO HABITACIONAL VALE DOS PINHEIROS"]
[null,null,null,null,null,null,null,null,null,null,null,null,null,null,null,null,null,null,null,null,null,null,{"$f":"IF(ISNUMBER(SEARCH($AA$6,Bairros[[#This Row],[Colunas1]])),MAX($W$5:W73)+1,0)","v":69},"CONJUNTO RESIDENCIAL MONTE CASTELO","COSTINHA"]
[null,null,null,null,null,null,null,null,null,null,null,null,null,null,null,null,null,null,null,null,null,null,{"$f":"IF(ISNUMBER(SEARCH($AA$6,Bairros[[#This Row],[Colunas1]])),MAX($W$5:W74)+1,0)","v":70},"CONJUNTO RESIDENCIAL MORADA DO SOL","DESEMBARGADOR MARTINS PEREIRA"]
[null,null,null,null,null,null,null,null,null,null,null,null,null,null,null,null,null,null,null,null,null,null,{"$f":"IF(ISNUMBER(SEARCH($AA$6,Bairros[[#This Row],[Colunas1]])),MAX($W$5:W75)+1,0)","v":71},"CONJUNTO RESIDENCIAL VALE DOS PINHEIROS","EUGENIO DE MELO"]
[null,null,null,null,null,null,null,null,null,null,null,null,null,null,null,null,null,null,null,null,null,null,{"$f":"IF(ISNUMBER(SEARCH($AA$6,Bairros[[#This Row],[Colunas1]])),MAX($W$5:W76)+1,0)","v":72},"CONUNTO HABITACIONAL VALE DOS PINHEIROS","FAZENDA BOM RETIRO"]
[null,null,null,null,null,null,null,null,null,null,null,null,null,null,null,null,null,null,null,null,null,null,{"$f":"IF(ISNUMBER(SEARCH($AA$6,Bairros[[#This Row],[Colunas1]])),MAX($W$5:W77)+1,0)","v":73},"COSTINHA","FAZENDA HONDA"]
[null,null,null,null,null,null,null,null,null,null,null,null,null,null,null,null,null,null,null,null,null,null,{"$f":"IF(ISNUMBER(SEARCH($AA$6,Bairros[[#This Row],[Colunas1]])),MAX($W$5:W78)+1,0)","v":74},"DESEMBARGADOR MARTINS PEREIRA","FAZENDA JANUARIA (REGIAO)"]
[null,null,null,null,null,null,null,null,null,null,null,null,null,null,null,null,null,null,null,null,null,null,{"$f":"IF(ISNUMBER(SEARCH($AA$6,Bairros[[#This Row],[Colunas1]])),MAX($W$5:W79)+1,0)","v":75},"EUGENIO DE MELO","FAZENDA MARSON"]
[null,null,null,null,null,null,null,null,null,null,null,null,null,null,null,null,null,null,null,null,null,null,{"$f":"IF(ISNUMBER(SEARCH($AA$6,Bairros[[#This Row],[Colunas1]])),MAX($W$5:W80)+1,0)","v":76},"FAZENDA BOM RETIRO","FAZENDA TAIRA"]
[null,null,null,null,null,null,null,null,null,null,null,null,null,null,null,null,null,null,null,null,null,null,{"$f":"IF(ISNUMBER(SEARCH($AA$6,Bairros[[#This Row],[Colunas1]])),MAX($W$5:W81)+1,0)","v":77},"FAZENDA HONDA","FAZENDA TAKANASHI"]
[null,null,null,null,null,null,null,null,null,null,null,null,null,null,null,null,null,null,null,null,null,null,{"$f":"IF(ISNUMBER(SEARCH($AA$6,Bairros[[#This Row],[Colunas1]])),MAX($W$5:W82)+1,0)","v":78},"FAZENDA JANUARIA (REGIAO)","FAZENDA TONINHO FERREIRA"]
[null,null,null,null,null,null,null,null,null,null,null,null,null,null,null,null,null,null,null,null,null,null,{"$f":"IF(ISNUMBER(SEARCH($AA$6,Bairros[[#This Row],[Colunas1]])),MAX($W$5:W83)+1,0)","v":79},"FAZENDA MARSON","FAZENDA VILA FRANCA"]
[null,null,null,null,null,null,null,null,null,null,null,null,null,null,null,null,null,null,null,null,null,null,{"$f":"IF(ISNUMBER(SEARCH($AA$6,Bairros[[#This Row],[Colunas1]])),MAX($W$5:W84)+1,0)","v":80},"FAZENDA TAIRA","FLORESTA"]
[null,null,null,null,null,null,null,null,null,null,null,null,null,null,null,null,null,null,null,null,null,null,{"$f":"IF(ISNUMBER(SEARCH($AA$6,Bairros[[#This Row],[Colunas1]])),MAX($W$5:W85)+1,0)","v":81},"FAZENDA TAKANASHI","FREITAS"]
[null,null,null,null,null,null,null,null,null,null,null,null,null,null,null,null,null,null,null,null,null,null,{"$f":"IF(ISNUMBER(SEARCH($AA$6,Bairros[[#This Row],[Colunas1]])),MAX($W$5:W86)+1,0)","v":82},"FAZENDA TONINHO FERREIRA","GALO BRANCO"]
[null,null,null,null,null,null,null,null,null,null,null,null,null,null,null,null,null,null,null,null,null,null,{"$f":"IF(ISNUMBER(SEARCH($AA$6,Bairros[[#This Row],[Colunas1]])),MAX($W$5:W87)+1,0)","v":83},"FAZENDA VILA FRANCA","GUIRRA"]
[null,null,null,null,null,null,null,null,null,null,null,null,null,null,null,null,null,null,null,null,null,null,{"$f":"IF(ISNUMBER(SEARCH($AA$6,Bairros[[#This Row],[Colunas1]])),MAX($W$5:W88)+1,0)","v":84},"FLORESTA","JAGUARI"]
[null,null,null,null,null,null,null,null,null,null,null,null,null,null,null,null,null,null,null,null,null,null,{"$f":"IF(ISNUMBER(SEARCH($AA$6,Bairros[[#This Row],[Colunas1]])),MAX($W$5:W89)+1,0)","v":85},"FREITAS","JARDIM AEROPORTO"]
[null,null,null,null,null,null,null,null,null,null,null,null,null,null,null,null,null,null,null,null,null,null,{"$f":"IF(ISNUMBER(SEARCH($AA$6,Bairros[[#This Row],[Colunas1]])),MAX($W$5:W90)+1,0)","v":86},"GALO BRANCO","JARDIM ALTOS DE SANTANA"]
[null,null,null,null,null,null,null,null,null,null,null,null,null,null,null,null,null,null,null,null,null,null,{"$f":"IF(ISNUMBER(SEARCH($AA$6,Bairros[[#This Row],[Colunas1]])),MAX($W$5:W91)+1,0)","v":87},"GUIRRA","JARDIM ALTOS DO ESPLANADA"]
[null,null,null,null,null,null,null,null,null,null,null,null,null,null,null,null,null,null,null,null,null,null,{"$f":"IF(ISNUMBER(SEARCH($AA$6,Bairros[[#This Row],[Colunas1]])),MAX($W$5:W92)+1,0)","v":88},"JAGUARI","JARDIM ALVORADA"]
[null,null,null,null,null,null,null,null,null,null,null,null,null,null,null,null,null,null,null,null,null,null,{"$f":"IF(ISNUMBER(SEARCH($AA$6,Bairros[[#This Row],[Colunas1]])),MAX($W$5:W93)+1,0)","v":89},"JARDIM AEROPORTO","JARDIM AMERICA"]
[null,null,null,null,null,null,null,null,null,null,null,null,null,null,null,null,null,null,null,null,null,null,{"$f":"IF(ISNUMBER(SEARCH($AA$6,Bairros[[#This Row],[Colunas1]])),MAX($W$5:W94)+1,0)","v":90},"JARDIM ALTOS DE SANTANA","JARDIM AMERICANO"]
[null,null,null,null,null,null,null,null,null,null,null,null,null,null,null,null,null,null,null,null,null,null,{"$f":"IF(ISNUMBER(SEARCH($AA$6,Bairros[[#This Row],[Colunas1]])),MAX($W$5:W95)+1,0)","v":91},"JARDIM ALTOS DO ESPLANADA","JARDIM ANCHIETA"]
[null,null,null,null,null,null,null,null,null,null,null,null,null,null,null,null,null,null,null,null,null,null,{"$f":"IF(ISNUMBER(SEARCH($AA$6,Bairros[[#This Row],[Colunas1]])),MAX($W$5:W96)+1,0)","v":92},"JARDIM ALVORADA","JARDIM ANHEMBI"]
[null,null,null,null,null,null,null,null,null,null,null,null,null,null,null,null,null,null,null,null,null,null,{"$f":"IF(ISNUMBER(SEARCH($AA$6,Bairros[[#This Row],[Colunas1]])),MAX($W$5:W97)+1,0)","v":93},"JARDIM AMERICA","JARDIM APARECIDA"]
[null,null,null,null,null,null,null,null,null,null,null,null,null,null,null,null,null,null,null,null,null,null,{"$f":"IF(ISNUMBER(SEARCH($AA$6,Bairros[[#This Row],[Colunas1]])),MAX($W$5:W98)+1,0)","v":94},"JARDIM AMERICANO","JARDIM APOLO"]
[null,null,null,null,null,null,null,null,null,null,null,null,null,null,null,null,null,null,null,null,null,null,{"$f":"IF(ISNUMBER(SEARCH($AA$6,Bairros[[#This Row],[Colunas1]])),MAX($W$5:W99)+1,0)","v":95},"JARDIM ANCHIETA","JARDIM AQUARIUS"]
[null,null,null,null,null,null,null,null,null,null,null,null,null,null,null,null,null,null,null,null,null,null,{"$f":"IF(ISNUMBER(SEARCH($AA$6,Bairros[[#This Row],[Colunas1]])),MAX($W$5:W100)+1,0)","v":96},"JARDIM ANHEMBI","JARDIM AUGUSTA"]
[null,null,null,null,null,null,null,null,null,null,null,null,null,null,null,null,null,null,null,null,null,null,{"$f":"IF(ISNUMBER(SEARCH($AA$6,Bairros[[#This Row],[Colunas1]])),MAX($W$5:W101)+1,0)","v":97},"JARDIM APARECIDA","JARDIM AZEVEDO"]
[null,null,null,null,null,null,null,null,null,null,null,null,null,null,null,null,null,null,null,null,null,null,{"$f":"IF(ISNUMBER(SEARCH($AA$6,Bairros[[#This Row],[Colunas1]])),MAX($W$5:W102)+1,0)","v":98},"JARDIM APOLO","JARDIM BELA VISTA"]
[null,null,null,null,null,null,null,null,null,null,null,null,null,null,null,null,null,null,null,null,null,null,{"$f":"IF(ISNUMBER(SEARCH($AA$6,Bairros[[#This Row],[Colunas1]])),MAX($W$5:W103)+1,0)","v":99},"JARDIM AQUARIUS","JARDIM BOA VISTA"]
[null,null,null,null,null,null,null,null,null,null,null,null,null,null,null,null,null,null,null,null,null,null,{"$f":"IF(ISNUMBER(SEARCH($AA$6,Bairros[[#This Row],[Colunas1]])),MAX($W$5:W104)+1,0)","v":100},"JARDIM AUGUSTA","JARDIM BRASILIA"]
[null,null,null,null,null,null,null,null,null,null,null,null,null,null,null,null,null,null,null,null,null,null,{"$f":"IF(ISNUMBER(SEARCH($AA$6,Bairros[[#This Row],[Colunas1]])),MAX($W$5:W105)+1,0)","v":101},"JARDIM AZEVEDO","JARDIM CASSIANO RICARDO"]
[null,null,null,null,null,null,null,null,null,null,null,null,null,null,null,null,null,null,null,null,null,null,{"$f":"IF(ISNUMBER(SEARCH($AA$6,Bairros[[#This Row],[Colunas1]])),MAX($W$5:W106)+1,0)","v":102},"JARDIM BELA VISTA","JARDIM CASTANHEIRAS"]
[null,null,null,null,null,null,null,null,null,null,null,null,null,null,null,null,null,null,null,null,null,null,{"$f":"IF(ISNUMBER(SEARCH($AA$6,Bairros[[#This Row],[Colunas1]])),MAX($W$5:W107)+1,0)","v":103},"JARDIM BOA VISTA","JARDIM CEREJEIRAS"]
[null,null,null,null,null,null,null,null,null,null,null,null,null,null,null,null,null,null,null,null,null,null,{"$f":"IF(ISNUMBER(SEARCH($AA$6,Bairros[[#This Row],[Colunas1]])),MAX($W$5:W108)+1,0)","v":104},"JARDIM BRASILIA","JARDIM COLINAS"]
[null,null,null,null,null,null,null,null,null,null,null,null,null,null,null,null,null,null,null,null,null,null,{"$f":"IF(ISNUMBER(SEARCH($AA$6,Bairros[[#This Row],[Colunas1]])),MAX($W$5:W109)+1,0)","v":105},"JARDIM CASSIANO RICARDO","JARDIM COLONIAL"]
[null,null,null,null,null,null,null,null,null,null,null,null,null,null,null,null,null,null,null,null,null,null,{"$f":"IF(ISNUMBER(SEARCH($AA$6,Bairros[[#This Row],[Colunas1]])),MAX($W$5:W110)+1,0)","v":106},"JARDIM CASTANHEIRAS","JARDIM COLORADO"]
[null,null,null,null,null,null,null,null,null,null,null,null,null,null,null,null,null,null,null,null,null,null,{"$f":"IF(ISNUMBER(SEARCH($AA$6,Bairros[[#This Row],[Colunas1]])),MAX($W$5:W111)+1,0)","v":107},"JARDIM CEREJEIRAS","JARDIM COPACABANA"]
[null,null,null,null,null,null,null,null,null,null,null,null,null,null,null,null,null,null,null,null,null,null,{"$f":"IF(ISNUMBER(SEARCH($AA$6,Bairros[[#This Row],[Colunas1]])),MAX($W$5:W112)+1,0)","v":108},"JARDIM COLINAS","JARDIM CRUZEIRO DO SUL"]
[null,null,null,null,null,null,null,null,null,null,null,null,null,null,null,null,null,null,null,null,null,null,{"$f":"IF(ISNUMBER(SEARCH($AA$6,Bairros[[#This Row],[Colunas1]])),MAX($W$5:W113)+1,0)","v":109},"JARDIM COLONIAL","JARDIM DA GRANJA"]
[null,null,null,null,null,null,null,null,null,null,null,null,null,null,null,null,null,null,null,null,null,null,{"$f":"IF(ISNUMBER(SEARCH($AA$6,Bairros[[#This Row],[Colunas1]])),MAX($W$5:W114)+1,0)","v":110},"JARDIM COLORADO","JARDIM DAS AZALEIAS"]
[null,null,null,null,null,null,null,null,null,null,null,null,null,null,null,null,null,null,null,null,null,null,{"$f":"IF(ISNUMBER(SEARCH($AA$6,Bairros[[#This Row],[Colunas1]])),MAX($W$5:W115)+1,0)","v":111},"JARDIM COPACABANA","JARDIM DAS FLORES"]
[null,null,null,null,null,null,null,null,null,null,null,null,null,null,null,null,null,null,null,null,null,null,{"$f":"IF(ISNUMBER(SEARCH($AA$6,Bairros[[#This Row],[Colunas1]])),MAX($W$5:W116)+1,0)","v":112},"JARDIM CRUZEIRO DO SUL","JARDIM DAS INDUSTRIAS"]
[null,null,null,null,null,null,null,null,null,null,null,null,null,null,null,null,null,null,null,null,null,null,{"$f":"IF(ISNUMBER(SEARCH($AA$6,Bairros[[#This Row],[Colunas1]])),MAX($W$5:W117)+1,0)","v":113},"JARDIM DA GRANJA","JARDIM DAS PAINEIRAS I "]
[null,null,null,null,null,null,null,null,null,null,null,null,null,null,null,null,null,null,null,null,null,null,{"$f":"IF(ISNUMBER(SEARCH($AA$6,Bairros[[#This Row],[Colunas1]])),MAX($W$5:W118)+1,0)","v":114},"JARDIM DAS AZALEIAS","JARDIM DAS PAINEIRAS II"]
[null,null,null,null,null,null,null,null,null,null,null,null,null,null,null,null,null,null,null,null,null,null,{"$f":"IF(ISNUMBER(SEARCH($AA$6,Bairros[[#This Row],[Colunas1]])),MAX($W$5:W119)+1,0)","v":115},"JARDIM DAS FLORES","JARDIM DEL REY"]
[null,null,null,null,null,null,null,null,null,null,null,null,null,null,null,null,null,null,null,null,null,null,{"$f":"IF(ISNUMBER(SEARCH($AA$6,Bairros[[#This Row],[Colunas1]])),MAX($W$5:W120)+1,0)","v":116},"JARDIM DAS INDUSTRIAS","JARDIM DIAMANTE"]
[null,null,null,null,null,null,null,null,null,null,null,null,null,null,null,null,null,null,null,null,null,null,{"$f":"IF(ISNUMBER(SEARCH($AA$6,Bairros[[#This Row],[Colunas1]])),MAX($W$5:W121)+1,0)","v":117},"JARDIM DAS PAINEIRAS I ","JARDIM DO CEU"]
[null,null,null,null,null,null,null,null,null,null,null,null,null,null,null,null,null,null,null,null,null,null,{"$f":"IF(ISNUMBER(SEARCH($AA$6,Bairros[[#This Row],[Colunas1]])),MAX($W$5:W122)+1,0)","v":118},"JARDIM DAS PAINEIRAS II","JARDIM DO GOLFE"]
[null,null,null,null,null,null,null,null,null,null,null,null,null,null,null,null,null,null,null,null,null,null,{"$f":"IF(ISNUMBER(SEARCH($AA$6,Bairros[[#This Row],[Colunas1]])),MAX($W$5:W123)+1,0)","v":119},"JARDIM DEL REY","JARDIM DO LAGO"]
[null,null,null,null,null,null,null,null,null,null,null,null,null,null,null,null,null,null,null,null,null,null,{"$f":"IF(ISNUMBER(SEARCH($AA$6,Bairros[[#This Row],[Colunas1]])),MAX($W$5:W124)+1,0)","v":120},"JARDIM DIAMANTE","JARDIM DOS BANDEIRANTES"]
[null,null,null,null,null,null,null,null,null,null,null,null,null,null,null,null,null,null,null,null,null,null,{"$f":"IF(ISNUMBER(SEARCH($AA$6,Bairros[[#This Row],[Colunas1]])),MAX($W$5:W125)+1,0)","v":121},"JARDIM DO CEU","JARDIM DOS COQUEIROS"]
[null,null,null,null,null,null,null,null,null,null,null,null,null,null,null,null,null,null,null,null,null,null,{"$f":"IF(ISNUMBER(SEARCH($AA$6,Bairros[[#This Row],[Colunas1]])),MAX($W$5:W126)+1,0)","v":122},"JARDIM DO GOLFE","JARDIM EBENEZER"]
[null,null,null,null,null,null,null,null,null,null,null,null,null,null,null,null,null,null,null,null,null,null,{"$f":"IF(ISNUMBER(SEARCH($AA$6,Bairros[[#This Row],[Colunas1]])),MAX($W$5:W127)+1,0)","v":123},"JARDIM DO LAGO","JARDIM ESPLANADA I"]
[null,null,null,null,null,null,null,null,null,null,null,null,null,null,null,null,null,null,null,null,null,null,{"$f":"IF(ISNUMBER(SEARCH($AA$6,Bairros[[#This Row],[Colunas1]])),MAX($W$5:W128)+1,0)","v":124},"JARDIM DOS BANDEIRANTES","JARDIM ESPLANADA II"]
[null,null,null,null,null,null,null,null,null,null,null,null,null,null,null,null,null,null,null,null,null,null,{"$f":"IF(ISNUMBER(SEARCH($AA$6,Bairros[[#This Row],[Colunas1]])),MAX($W$5:W129)+1,0)","v":125},"JARDIM DOS COQUEIROS","JARDIM ESTORIL"]
[null,null,null,null,null,null,null,null,null,null,null,null,null,null,null,null,null,null,null,null,null,null,{"$f":"IF(ISNUMBER(SEARCH($AA$6,Bairros[[#This Row],[Colunas1]])),MAX($W$5:W130)+1,0)","v":126},"JARDIM EBENEZER","JARDIM FATIMA"]
[null,null,null,null,null,null,null,null,null,null,null,null,null,null,null,null,null,null,null,null,null,null,{"$f":"IF(ISNUMBER(SEARCH($AA$6,Bairros[[#This Row],[Colunas1]])),MAX($W$5:W131)+1,0)","v":127},"JARDIM ESPLANADA I","JARDIM FLORADAS DE SAO JOSE"]
[null,null,null,null,null,null,null,null,null,null,null,null,null,null,null,null,null,null,null,null,null,null,{"$f":"IF(ISNUMBER(SEARCH($AA$6,Bairros[[#This Row],[Colunas1]])),MAX($W$5:W132)+1,0)","v":128},"JARDIM ESPLANADA II","JARDIM FREI LEOPOLDO"]
[null,null,null,null,null,null,null,null,null,null,null,null,null,null,null,null,null,null,null,null,null,null,{"$f":"IF(ISNUMBER(SEARCH($AA$6,Bairros[[#This Row],[Colunas1]])),MAX($W$5:W133)+1,0)","v":129},"JARDIM ESTORIL",{"$f":"IFERROR(VLOOKUP(ROW(AB133),W134:X581,2,FALSE),\"\")","v":"JARDIM GUIMARAES"}]
[null,null,null,null,null,null,null,null,null,null,null,null,null,null,null,null,null,null,null,null,null,null,{"$f":"IF(ISNUMBER(SEARCH($AA$6,Bairros[[#This Row],[Colunas1]])),MAX($W$5:W134)+1,0)","v":130},"JARDIM FATIMA","JARDIM HELENA"]
[null,null,null,null,null,null,null,null,null,null,null,null,null,null,null,null,null,null,null,null,null,null,{"$f":"IF(ISNUMBER(SEARCH($AA$6,Bairros[[#This Row],[Colunas1]])),MAX($W$5:W135)+1,0)","v":131},"JARDIM FLORADAS DE SAO JOSE","JARDIM IMPERIAL"]
[null,null,null,null,null,null,null,null,null,null,null,null,null,null,null,null,null,null,null,null,null,null,{"$f":"IF(ISNUMBER(SEARCH($AA$6,Bairros[[#This Row],[Colunas1]])),MAX($W$5:W136)+1,0)","v":132},"JARDIM FREI LEOPOLDO","JARDIM IPE"]
[null,null,null,null,null,null,null,null,null,null,null,null,null,null,null,null,null,null,null,null,null,null,{"$f":"IF(ISNUMBER(SEARCH($AA$6,Bairros[[#This Row],[Colunas1]])),MAX($W$5:W137)+1,0)","v":133},"JARDIM GUIMARAES","JARDIM IRACEMA"]
[null,null,null,null,null,null,null,null,null,null,null,null,null,null,null,null,null,null,null,null,null,null,{"$f":"IF(ISNUMBER(SEARCH($AA$6,Bairros[[#This Row],[Colunas1]])),MAX($W$5:W138)+1,0)","v":134},"JARDIM HELENA","JARDIM ISMENIA"]
[null,null,null,null,null,null,null,null,null,null,null,null,null,null,null,null,null,null,null,null,null,null,{"$f":"IF(ISNUMBER(SEARCH($AA$6,Bairros[[#This Row],[Colunas1]])),MAX($W$5:W139)+1,0)","v":135},"JARDIM IMPERIAL","JARDIM ITAPUA"]
[null,null,null,null,null,null,null,null,null,null,null,null,null,null,null,null,null,null,null,null,null,null,{"$f":"IF(ISNUMBER(SEARCH($AA$6,Bairros[[#This Row],[Colunas1]])),MAX($W$5:W140)+1,0)","v":136},"JARDIM IPE","JARDIM JACI"]
[null,null,null,null,null,null,null,null,null,null,null,null,null,null,null,null,null,null,null,null,null,null,{"$f":"IF(ISNUMBER(SEARCH($AA$6,Bairros[[#This Row],[Colunas1]])),MAX($W$5:W141)+1,0)","v":137},"JARDIM IRACEMA","JARDIM JULIANA"]
[null,null,null,null,null,null,null,null,null,null,null,null,null,null,null,null,null,null,null,null,null,null,{"$f":"IF(ISNUMBER(SEARCH($AA$6,Bairros[[#This Row],[Colunas1]])),MAX($W$5:W142)+1,0)","v":138},"JARDIM ISMENIA","JARDIM JUSSARA"]
[null,null,null,null,null,null,null,null,null,null,null,null,null,null,null,null,null,null,null,null,null,null,{"$f":"IF(ISNUMBER(SEARCH($AA$6,Bairros[[#This Row],[Colunas1]])),MAX($W$5:W143)+1,0)","v":139},"JARDIM ITAPUA","JARDIM LIMOEIRO"]
[null,null,null,null,null,null,null,null,null,null,null,null,null,null,null,null,null,null,null,null,null,null,{"$f":"IF(ISNUMBER(SEARCH($AA$6,Bairros[[#This Row],[Colunas1]])),MAX($W$5:W144)+1,0)","v":140},"JARDIM JACI","JARDIM MADUREIRA"]
[null,null,null,null,null,null,null,null,null,null,null,null,null,null,null,null,null,null,null,null,null,null,{"$f":"IF(ISNUMBER(SEARCH($AA$6,Bairros[[#This Row],[Colunas1]])),MAX($W$5:W145)+1,0)","v":141},"JARDIM JULIANA","JARDIM MAJESTIC"]
[null,null,null,null,null,null,null,null,null,null,null,null,null,null,null,null,null,null,null,null,null,null,{"$f":"IF(ISNUMBER(SEARCH($AA$6,Bairros[[#This Row],[Colunas1]])),MAX($W$5:W146)+1,0)","v":142},"JARDIM JUSSARA","JARDIM MARACANA"]
[null,null,null,null,null,null,null,null,null,null,null,null,null,null,null,null,null,null,null,null,null,null,{"$f":"IF(ISNUMBER(SEARCH($AA$6,Bairros[[#This Row],[Colunas1]])),MAX($W$5:W147)+1,0)","v":143},"JARDIM LIMOEIRO","JARDIM MARGARETH"]
[null,null,null,null,null,null,null,null,null,null,null,null,null,null,null,null,null,null,null,null,null,null,{"$f":"IF(ISNUMBER(SEARCH($AA$6,Bairros[[#This Row],[Colunas1]])),MAX($W$5:W148)+1,0)","v":144},"JARDIM MADUREIRA","JARDIM MARIANA I "]
[null,null,null,null,null,null,null,null,null,null,null,null,null,null,null,null,null,null,null,null,null,null,{"$f":"IF(ISNUMBER(SEARCH($AA$6,Bairros[[#This Row],[Colunas1]])),MAX($W$5:W149)+1,0)","v":145},"JARDIM MAJESTIC","JARDIM MARIANA II"]
[null,null,null,null,null,null,null,null,null,null,null,null,null,null,null,null,null,null,null,null,null,null,{"$f":"IF(ISNUMBER(SEARCH($AA$6,Bairros[[#This Row],[Colunas1]])),MAX($W$5:W150)+1,0)","v":146},"JARDIM MARACANA","JARDIM MARINGA"]
[null,null,null,null,null,null,null,null,null,null,null,null,null,null,null,null,null,null,null,null,null,null,{"$f":"IF(ISNUMBER(SEARCH($AA$6,Bairros[[#This Row],[Colunas1]])),MAX($W$5:W151)+1,0)","v":147},"JARDIM MARGARETH","JARDIM MARITEIA"]
[null,null,null,null,null,null,null,null,null,null,null,null,null,null,null,null,null,null,null,null,null,null,{"$f":"IF(ISNUMBER(SEARCH($AA$6,Bairros[[#This Row],[Colunas1]])),MAX($W$5:W152)+1,0)","v":148},"JARDIM MARIANA I ","JARDIM MATARAZZO"]
[null,null,null,null,null,null,null,null,null,null,null,null,null,null,null,null,null,null,null,null,null,null,{"$f":"IF(ISNUMBER(SEARCH($AA$6,Bairros[[#This Row],[Colunas1]])),MAX($W$5:W153)+1,0)","v":149},"JARDIM MARIANA II","JARDIM MESQUITA"]
[null,null,null,null,null,null,null,null,null,null,null,null,null,null,null,null,null,null,null,null,null,null,{"$f":"IF(ISNUMBER(SEARCH($AA$6,Bairros[[#This Row],[Colunas1]])),MAX($W$5:W154)+1,0)","v":150},"JARDIM MARINGA","JARDIM MINAS GERAIS"]
[null,null,null,null,null,null,null,null,null,null,null,null,null,null,null,null,null,null,null,null,null,null,{"$f":"IF(ISNUMBER(SEARCH($AA$6,Bairros[[#This Row],[Colunas1]])),MAX($W$5:W155)+1,0)","v":151},"JARDIM MARITEIA","JARDIM MOTORAMA"]
[null,null,null,null,null,null,null,null,null,null,null,null,null,null,null,null,null,null,null,null,null,null,{"$f":"IF(ISNUMBER(SEARCH($AA$6,Bairros[[#This Row],[Colunas1]])),MAX($W$5:W156)+1,0)","v":152},"JARDIM MATARAZZO","JARDIM NOVA AMERICA"]
[null,null,null,null,null,null,null,null,null,null,null,null,null,null,null,null,null,null,null,null,null,null,{"$f":"IF(ISNUMBER(SEARCH($AA$6,Bairros[[#This Row],[Colunas1]])),MAX($W$5:W157)+1,0)","v":153},"JARDIM MESQUITA","JARDIM NOVA DETROIT"]
[null,null,null,null,null,null,null,null,null,null,null,null,null,null,null,null,null,null,null,null,null,null,{"$f":"IF(ISNUMBER(SEARCH($AA$6,Bairros[[#This Row],[Colunas1]])),MAX($W$5:W158)+1,0)","v":154},"JARDIM MINAS GERAIS","JARDIM NOVA ESPERANCA (BANHADO)"]
[null,null,null,null,null,null,null,null,null,null,null,null,null,null,null,null,null,null,null,null,null,null,{"$f":"IF(ISNUMBER(SEARCH($AA$6,Bairros[[#This Row],[Colunas1]])),MAX($W$5:W159)+1,0)","v":155},"JARDIM MOTORAMA","JARDIM NOVA EUROPA"]
[null,null,null,null,null,null,null,null,null,null,null,null,null,null,null,null,null,null,null,null,null,null,{"$f":"IF(ISNUMBER(SEARCH($AA$6,Bairros[[#This Row],[Colunas1]])),MAX($W$5:W160)+1,0)","v":156},"JARDIM NOVA AMERICA","JARDIM NOVA FLORIDA"]
[null,null,null,null,null,null,null,null,null,null,null,null,null,null,null,null,null,null,null,null,null,null,{"$f":"IF(ISNUMBER(SEARCH($AA$6,Bairros[[#This Row],[Colunas1]])),MAX($W$5:W161)+1,0)","v":157},"JARDIM NOVA DETROIT","JARDIM NOVA MICHIGAN I"]
[null,null,null,null,null,null,null,null,null,null,null,null,null,null,null,null,null,null,null,null,null,null,{"$f":"IF(ISNUMBER(SEARCH($AA$6,Bairros[[#This Row],[Colunas1]])),MAX($W$5:W162)+1,0)","v":158},"JARDIM NOVA ESPERANCA (BANHADO)","JARDIM NOVA MICHIGAN II"]
[null,null,null,null,null,null,null,null,null,null,null,null,null,null,null,null,null,null,null,null,null,null,{"$f":"IF(ISNUMBER(SEARCH($AA$6,Bairros[[#This Row],[Colunas1]])),MAX($W$5:W163)+1,0)","v":159},"JARDIM NOVA EUROPA","JARDIM NOVA REPUBLICA"]
[null,null,null,null,null,null,null,null,null,null,null,null,null,null,null,null,null,null,null,null,null,null,{"$f":"IF(ISNUMBER(SEARCH($AA$6,Bairros[[#This Row],[Colunas1]])),MAX($W$5:W164)+1,0)","v":160},"JARDIM NOVA FLORIDA","JARDIM OLIMPIA"]
[null,null,null,null,null,null,null,null,null,null,null,null,null,null,null,null,null,null,null,null,null,null,{"$f":"IF(ISNUMBER(SEARCH($AA$6,Bairros[[#This Row],[Colunas1]])),MAX($W$5:W165)+1,0)","v":161},"JARDIM NOVA MICHIGAN I","JARDIM ORIENTAL"]
[null,null,null,null,null,null,null,null,null,null,null,null,null,null,null,null,null,null,null,null,null,null,{"$f":"IF(ISNUMBER(SEARCH($AA$6,Bairros[[#This Row],[Colunas1]])),MAX($W$5:W166)+1,0)","v":162},"JARDIM NOVA MICHIGAN II","JARDIM ORIENTE"]
[null,null,null,null,null,null,null,null,null,null,null,null,null,null,null,null,null,null,null,null,null,null,{"$f":"IF(ISNUMBER(SEARCH($AA$6,Bairros[[#This Row],[Colunas1]])),MAX($W$5:W167)+1,0)","v":163},"JARDIM NOVA REPUBLICA","JARDIM OSWALDO CRUZ"]
[null,null,null,null,null,null,null,null,null,null,null,null,null,null,null,null,null,null,null,null,null,null,{"$f":"IF(ISNUMBER(SEARCH($AA$6,Bairros[[#This Row],[Colunas1]])),MAX($W$5:W168)+1,0)","v":164},"JARDIM OLIMPIA","JARDIM OURO PRETO"]
[null,null,null,null,null,null,null,null,null,null,null,null,null,null,null,null,null,null,null,null,null,null,{"$f":"IF(ISNUMBER(SEARCH($AA$6,Bairros[[#This Row],[Colunas1]])),MAX($W$5:W169)+1,0)","v":165},"JARDIM ORIENTAL","JARDIM PALMEIRAS DE SAO JOSE"]
[null,null,null,null,null,null,null,null,null,null,null,null,null,null,null,null,null,null,null,null,null,null,{"$f":"IF(ISNUMBER(SEARCH($AA$6,Bairros[[#This Row],[Colunas1]])),MAX($W$5:W170)+1,0)","v":166},"JARDIM ORIENTE","JARDIM PARAISO DO SOL"]
[null,null,null,null,null,null,null,null,null,null,null,null,null,null,null,null,null,null,null,null,null,null,{"$f":"IF(ISNUMBER(SEARCH($AA$6,Bairros[[#This Row],[Colunas1]])),MAX($W$5:W171)+1,0)","v":167},"JARDIM OSWALDO CRUZ","JARDIM PARARANGABA"]
[null,null,null,null,null,null,null,null,null,null,null,null,null,null,null,null,null,null,null,null,null,null,{"$f":"IF(ISNUMBER(SEARCH($AA$6,Bairros[[#This Row],[Colunas1]])),MAX($W$5:W172)+1,0)","v":168},"JARDIM OURO PRETO","JARDIM PAULISTA"]
[null,null,null,null,null,null,null,null,null,null,null,null,null,null,null,null,null,null,null,null,null,null,{"$f":"IF(ISNUMBER(SEARCH($AA$6,Bairros[[#This Row],[Colunas1]])),MAX($W$5:W173)+1,0)","v":169},"JARDIM PALMEIRAS DE SAO JOSE","JARDIM PETROPOLIS"]
[null,null,null,null,null,null,null,null,null,null,null,null,null,null,null,null,null,null,null,null,null,null,{"$f":"IF(ISNUMBER(SEARCH($AA$6,Bairros[[#This Row],[Colunas1]])),MAX($W$5:W174)+1,0)","v":170},"JARDIM PARAISO DO SOL","JARDIM PORTUGAL"]
[null,null,null,null,null,null,null,null,null,null,null,null,null,null,null,null,null,null,null,null,null,null,{"$f":"IF(ISNUMBER(SEARCH($AA$6,Bairros[[#This Row],[Colunas1]])),MAX($W$5:W175)+1,0)","v":171},"JARDIM PARARANGABA","JARDIM PRIMAVERA I "]
[null,null,null,null,null,null,null,null,null,null,null,null,null,null,null,null,null,null,null,null,null,null,{"$f":"IF(ISNUMBER(SEARCH($AA$6,Bairros[[#This Row],[Colunas1]])),MAX($W$5:W176)+1,0)","v":172},"JARDIM PAULISTA","JARDIM PRIMAVERA II"]
[null,null,null,null,null,null,null,null,null,null,null,null,null,null,null,null,null,null,null,null,null,null,{"$f":"IF(ISNUMBER(SEARCH($AA$6,Bairros[[#This Row],[Colunas1]])),MAX($W$5:W177)+1,0)","v":173},"JARDIM PETROPOLIS","JARDIM RENATA"]
[null,null,null,null,null,null,null,null,null,null,null,null,null,null,null,null,null,null,null,null,null,null,{"$f":"IF(ISNUMBER(SEARCH($AA$6,Bairros[[#This Row],[Colunas1]])),MAX($W$5:W178)+1,0)","v":174},"JARDIM PORTUGAL","JARDIM REPUBLICA"]
[null,null,null,null,null,null,null,null,null,null,null,null,null,null,null,null,null,null,null,null,null,null,{"$f":"IF(ISNUMBER(SEARCH($AA$6,Bairros[[#This Row],[Colunas1]])),MAX($W$5:W179)+1,0)","v":175},"JARDIM PRIMAVERA I ","JARDIM REPUBLICA NOVA"]
[null,null,null,null,null,null,null,null,null,null,null,null,null,null,null,null,null,null,null,null,null,null,{"$f":"IF(ISNUMBER(SEARCH($AA$6,Bairros[[#This Row],[Colunas1]])),MAX($W$5:W180)+1,0)","v":176},"JARDIM PRIMAVERA II","JARDIM SAN MARINO"]
[null,null,null,null,null,null,null,null,null,null,null,null,null,null,null,null,null,null,null,null,null,null,{"$f":"IF(ISNUMBER(SEARCH($AA$6,Bairros[[#This Row],[Colunas1]])),MAX($W$5:W181)+1,0)","v":177},"JARDIM RENATA","JARDIM SAN RAFAEL"]
[null,null,null,null,null,null,null,null,null,null,null,null,null,null,null,null,null,null,null,null,null,null,{"$f":"IF(ISNUMBER(SEARCH($AA$6,Bairros[[#This Row],[Colunas1]])),MAX($W$5:W182)+1,0)","v":178},"JARDIM REPUBLICA","JARDIM SANTA ALICE"]
[null,null,null,null,null,null,null,null,null,null,null,null,null,null,null,null,null,null,null,null,null,null,{"$f":"IF(ISNUMBER(SEARCH($AA$6,Bairros[[#This Row],[Colunas1]])),MAX($W$5:W183)+1,0)","v":179},"JARDIM REPUBLICA NOVA","JARDIM SANTA CECILIA I "]
[null,null,null,null,null,null,null,null,null,null,null,null,null,null,null,null,null,null,null,null,null,null,{"$f":"IF(ISNUMBER(SEARCH($AA$6,Bairros[[#This Row],[Colunas1]])),MAX($W$5:W184)+1,0)","v":180},"JARDIM SAN MARINO","JARDIM SANTA CECILIA II"]
[null,null,null,null,null,null,null,null,null,null,null,null,null,null,null,null,null,null,null,null,null,null,{"$f":"IF(ISNUMBER(SEARCH($AA$6,Bairros[[#This Row],[Colunas1]])),MAX($W$5:W185)+1,0)","v":181},"JARDIM SAN RAFAEL","JARDIM SANTA EDWIGES"]
[null,null,null,null,null,null,null,null,null,null,null,null,null,null,null,null,null,null,null,null,null,null,{"$f":"IF(ISNUMBER(SEARCH($AA$6,Bairros[[#This Row],[Colunas1]])),MAX($W$5:W186)+1,0)","v":182},"JARDIM SANTA ALICE","JARDIM SANTA FE"]
[null,null,null,null,null,null,null,null,null,null,null,null,null,null,null,null,null,null,null,null,null,null,{"$f":"IF(ISNUMBER(SEARCH($AA$6,Bairros[[#This Row],[Colunas1]])),MAX($W$5:W187)+1,0)","v":183},"JARDIM SANTA CECILIA I ","JARDIM SANTA HERMINIA"]
[null,null,null,null,null,null,null,null,null,null,null,null,null,null,null,null,null,null,null,null,null,null,{"$f":"IF(ISNUMBER(SEARCH($AA$6,Bairros[[#This Row],[Colunas1]])),MAX($W$5:W188)+1,0)","v":184},"JARDIM SANTA CECILIA II","JARDIM SANTA INES I"]
[null,null,null,null,null,null,null,null,null,null,null,null,null,null,null,null,null,null,null,null,null,null,{"$f":"IF(ISNUMBER(SEARCH($AA$6,Bairros[[#This Row],[Colunas1]])),MAX($W$5:W189)+1,0)","v":185},"JARDIM SANTA EDWIGES","JARDIM SANTA INES II"]
[null,null,null,null,null,null,null,null,null,null,null,null,null,null,null,null,null,null,null,null,null,null,{"$f":"IF(ISNUMBER(SEARCH($AA$6,Bairros[[#This Row],[Colunas1]])),MAX($W$5:W190)+1,0)","v":186},"JARDIM SANTA FE","JARDIM SANTA INES III"]
[null,null,null,null,null,null,null,null,null,null,null,null,null,null,null,null,null,null,null,null,null,null,{"$f":"IF(ISNUMBER(SEARCH($AA$6,Bairros[[#This Row],[Colunas1]])),MAX($W$5:W191)+1,0)","v":187},"JARDIM SANTA HERMINIA","JARDIM SANTA JULIA"]
[null,null,null,null,null,null,null,null,null,null,null,null,null,null,null,null,null,null,null,null,null,null,{"$f":"IF(ISNUMBER(SEARCH($AA$6,Bairros[[#This Row],[Colunas1]])),MAX($W$5:W192)+1,0)","v":188},"JARDIM SANTA INES I","JARDIM SANTA LUCIA"]
[null,null,null,null,null,null,null,null,null,null,null,null,null,null,null,null,null,null,null,null,null,null,{"$f":"IF(ISNUMBER(SEARCH($AA$6,Bairros[[#This Row],[Colunas1]])),MAX($W$5:W193)+1,0)","v":189},"JARDIM SANTA INES II","JARDIM SANTA LUZIA"]
[null,null,null,null,null,null,null,null,null,null,null,null,null,null,null,null,null,null,null,null,null,null,{"$f":"IF(ISNUMBER(SEARCH($AA$6,Bairros[[#This Row],[Colunas1]])),MAX($W$5:W194)+1,0)","v":190},"JARDIM SANTA INES III","JARDIM SANTA MATILDE"]
[null,null,null,null,null,null,null,null,null,null,null,null,null,null,null,null,null,null,null,null,null,null,{"$f":"IF(ISNUMBER(SEARCH($AA$6,Bairros[[#This Row],[Colunas1]])),MAX($W$5:W195)+1,0)","v":191},"JARDIM SANTA JULIA","JARDIM SANTA RITA"]
[null,null,null,null,null,null,null,null,null,null,null,null,null,null,null,null,null,null,null,null,null,null,{"$f":"IF(ISNUMBER(SEARCH($AA$6,Bairros[[#This Row],[Colunas1]])),MAX($W$5:W196)+1,0)","v":192},"JARDIM SANTA LUCIA","JARDIM SANTA ROSA"]
[null,null,null,null,null,null,null,null,null,null,null,null,null,null,null,null,null,null,null,null,null,null,{"$f":"IF(ISNUMBER(SEARCH($AA$6,Bairros[[#This Row],[Colunas1]])),MAX($W$5:W197)+1,0)","v":193},"JARDIM SANTA LUZIA",{"$f":"IFERROR(VLOOKUP(ROW(AB197),W198:X645,2,FALSE),\"\")","v":"JARDIM SANTA SOFIA"}]
[null,null,null,null,null,null,null,null,null,null,null,null,null,null,null,null,null,null,null,null,null,null,{"$f":"IF(ISNUMBER(SEARCH($AA$6,Bairros[[#This Row],[Colunas1]])),MAX($W$5:W198)+1,0)","v":194},"JARDIM SANTA MATILDE","JARDIM SANTAREM"]
[null,null,null,null,null,null,null,null,null,null,null,null,null,null,null,null,null,null,null,null,null,null,{"$f":"IF(ISNUMBER(SEARCH($AA$6,Bairros[[#This Row],[Colunas1]])),MAX($W$5:W199)+1,0)","v":195},"JARDIM SANTA RITA","JARDIM SANTO ONOFRE"]
[null,null,null,null,null,null,null,null,null,null,null,null,null,null,null,null,null,null,null,null,null,null,{"$f":"IF(ISNUMBER(SEARCH($AA$6,Bairros[[#This Row],[Colunas1]])),MAX($W$5:W200)+1,0)","v":196},"JARDIM SANTA ROSA","JARDIM SAO DIMAS"]
[null,null,null,null,null,null,null,null,null,null,null,null,null,null,null,null,null,null,null,null,null,null,{"$f":"IF(ISNUMBER(SEARCH($AA$6,Bairros[[#This Row],[Colunas1]])),MAX($W$5:W201)+1,0)","v":197},"JARDIM SANTA SOFIA","JARDIM SAO JORGE"]
[null,null,null,null,null,null,null,null,null,null,null,null,null,null,null,null,null,null,null,null,null,null,{"$f":"IF(ISNUMBER(SEARCH($AA$6,Bairros[[#This Row],[Colunas1]])),MAX($W$5:W202)+1,0)","v":198},"JARDIM SANTAREM","JARDIM SAO JOSE (CENTRO)"]
[null,null,null,null,null,null,null,null,null,null,null,null,null,null,null,null,null,null,null,null,null,null,{"$f":"IF(ISNUMBER(SEARCH($AA$6,Bairros[[#This Row],[Colunas1]])),MAX($W$5:W203)+1,0)","v":199},"JARDIM SANTO ONOFRE","JARDIM SAO JOSE I"]
[null,null,null,null,null,null,null,null,null,null,null,null,null,null,null,null,null,null,null,null,null,null,{"$f":"IF(ISNUMBER(SEARCH($AA$6,Bairros[[#This Row],[Colunas1]])),MAX($W$5:W204)+1,0)","v":200},"JARDIM SAO DIMAS","JARDIM SAO JOSE II"]
[null,null,null,null,null,null,null,null,null,null,null,null,null,null,null,null,null,null,null,null,null,null,{"$f":"IF(ISNUMBER(SEARCH($AA$6,Bairros[[#This Row],[Colunas1]])),MAX($W$5:W205)+1,0)","v":201},"JARDIM SAO JORGE","JARDIM SAO JUDAS TADEU"]
[null,null,null,null,null,null,null,null,null,null,null,null,null,null,null,null,null,null,null,null,null,null,{"$f":"IF(ISNUMBER(SEARCH($AA$6,Bairros[[#This Row],[Colunas1]])),MAX($W$5:W206)+1,0)","v":202},"JARDIM SAO JOSE (CENTRO)","JARDIM SAO VICENTE"]
[null,null,null,null,null,null,null,null,null,null,null,null,null,null,null,null,null,null,null,null,null,null,{"$f":"IF(ISNUMBER(SEARCH($AA$6,Bairros[[#This Row],[Colunas1]])),MAX($W$5:W207)+1,0)","v":203},"JARDIM SAO JOSE I","JARDIM SATELITE"]
[null,null,null,null,null,null,null,null,null,null,null,null,null,null,null,null,null,null,null,null,null,null,{"$f":"IF(ISNUMBER(SEARCH($AA$6,Bairros[[#This Row],[Colunas1]])),MAX($W$5:W208)+1,0)","v":204},"JARDIM SAO JOSE II","JARDIM SOUTO"]
[null,null,null,null,null,null,null,null,null,null,null,null,null,null,null,null,null,null,null,null,null,null,{"$f":"IF(ISNUMBER(SEARCH($AA$6,Bairros[[#This Row],[Colunas1]])),MAX($W$5:W209)+1,0)","v":205},"JARDIM SAO JUDAS TADEU","JARDIM TELESPARK"]
[null,null,null,null,null,null,null,null,null,null,null,null,null,null,null,null,null,null,null,null,null,null,{"$f":"IF(ISNUMBER(SEARCH($AA$6,Bairros[[#This Row],[Colunas1]])),MAX($W$5:W210)+1,0)","v":206},"JARDIM SAO VICENTE","JARDIM TERRAS DO SUL "]
[null,null,null,null,null,null,null,null,null,null,null,null,null,null,null,null,null,null,null,null,null,null,{"$f":"IF(ISNUMBER(SEARCH($AA$6,Bairros[[#This Row],[Colunas1]])),MAX($W$5:W211)+1,0)","v":207},"JARDIM SATELITE","JARDIM TOPAZIO"]
[null,null,null,null,null,null,null,null,null,null,null,null,null,null,null,null,null,null,null,null,null,null,{"$f":"IF(ISNUMBER(SEARCH($AA$6,Bairros[[#This Row],[Colunas1]])),MAX($W$5:W212)+1,0)","v":208},"JARDIM SOUTO","JARDIM TRES JOSE"]
[null,null,null,null,null,null,null,null,null,null,null,null,null,null,null,null,null,null,null,null,null,null,{"$f":"IF(ISNUMBER(SEARCH($AA$6,Bairros[[#This Row],[Colunas1]])),MAX($W$5:W213)+1,0)","v":209},"JARDIM TELESPARK","JARDIM UIRA"]
[null,null,null,null,null,null,null,null,null,null,null,null,null,null,null,null,null,null,null,null,null,null,{"$f":"IF(ISNUMBER(SEARCH($AA$6,Bairros[[#This Row],[Colunas1]])),MAX($W$5:W214)+1,0)","v":210},"JARDIM TERRAS DO SUL ","JARDIM UNIVERSO"]
[null,null,null,null,null,null,null,null,null,null,null,null,null,null,null,null,null,null,null,null,null,null,{"$f":"IF(ISNUMBER(SEARCH($AA$6,Bairros[[#This Row],[Colunas1]])),MAX($W$5:W215)+1,0)","v":211},"JARDIM TOPAZIO","JARDIM VALE DO SOL"]
[null,null,null,null,null,null,null,null,null,null,null,null,null,null,null,null,null,null,null,null,null,null,{"$f":"IF(ISNUMBER(SEARCH($AA$6,Bairros[[#This Row],[Colunas1]])),MAX($W$5:W216)+1,0)","v":212},"JARDIM TRES JOSE","JARDIM VALE PARAISO"]
[null,null,null,null,null,null,null,null,null,null,null,null,null,null,null,null,null,null,null,null,null,null,{"$f":"IF(ISNUMBER(SEARCH($AA$6,Bairros[[#This Row],[Colunas1]])),MAX($W$5:W217)+1,0)","v":213},"JARDIM UIRA","JARDIM VALPARAIBA"]
[null,null,null,null,null,null,null,null,null,null,null,null,null,null,null,null,null,null,null,null,null,null,{"$f":"IF(ISNUMBER(SEARCH($AA$6,Bairros[[#This Row],[Colunas1]])),MAX($W$5:W218)+1,0)","v":214},"JARDIM UNIVERSO","JARDIM VENEZA"]
[null,null,null,null,null,null,null,null,null,null,null,null,null,null,null,null,null,null,null,null,null,null,{"$f":"IF(ISNUMBER(SEARCH($AA$6,Bairros[[#This Row],[Colunas1]])),MAX($W$5:W219)+1,0)","v":215},"JARDIM VALE DO SOL","JARDM PARAISO"]
[null,null,null,null,null,null,null,null,null,null,null,null,null,null,null,null,null,null,null,null,null,null,{"$f":"IF(ISNUMBER(SEARCH($AA$6,Bairros[[#This Row],[Colunas1]])),MAX($W$5:W220)+1,0)","v":216},"JARDIM VALE PARAISO","JARDM ROSARIO"]
[null,null,null,null,null,null,null,null,null,null,null,null,null,null,null,null,null,null,null,null,null,null,{"$f":"IF(ISNUMBER(SEARCH($AA$6,Bairros[[#This Row],[Colunas1]])),MAX($W$5:W221)+1,0)","v":217},"JARDIM VALPARAIBA","JARDM SANTA MADALENA"]
[null,null,null,null,null,null,null,null,null,null,null,null,null,null,null,null,null,null,null,null,null,null,{"$f":"IF(ISNUMBER(SEARCH($AA$6,Bairros[[#This Row],[Colunas1]])),MAX($W$5:W222)+1,0)","v":218},"JARDIM VENEZA","JARDM SAO LEOPOLDO"]
[null,null,null,null,null,null,null,null,null,null,null,null,null,null,null,null,null,null,null,null,null,null,{"$f":"IF(ISNUMBER(SEARCH($AA$6,Bairros[[#This Row],[Colunas1]])),MAX($W$5:W223)+1,0)","v":219},"JARDM PARAISO","JARIDM SUL"]
[null,null,null,null,null,null,null,null,null,null,null,null,null,null,null,null,null,null,null,null,null,null,{"$f":"IF(ISNUMBER(SEARCH($AA$6,Bairros[[#This Row],[Colunas1]])),MAX($W$5:W224)+1,0)","v":220},"JARDM ROSARIO","JOQUEI CLUBE (URBANOVA)"]
[null,null,null,null,null,null,null,null,null,null,null,null,null,null,null,null,null,null,null,null,null,null,{"$f":"IF(ISNUMBER(SEARCH($AA$6,Bairros[[#This Row],[Colunas1]])),MAX($W$5:W225)+1,0)","v":221},"JARDM SANTA MADALENA","LAVAPES"]
[null,null,null,null,null,null,null,null,null,null,null,null,null,null,null,null,null,null,null,null,null,null,{"$f":"IF(ISNUMBER(SEARCH($AA$6,Bairros[[#This Row],[Colunas1]])),MAX($W$5:W226)+1,0)","v":222},"JARDM SAO LEOPOLDO","LOTEAMENTO ESPELHO D'AGUA"]
[null,null,null,null,null,null,null,null,null,null,null,null,null,null,null,null,null,null,null,null,null,null,{"$f":"IF(ISNUMBER(SEARCH($AA$6,Bairros[[#This Row],[Colunas1]])),MAX($W$5:W227)+1,0)","v":223},"JARIDM SUL","LOTEAMENTO RESERVA DA BARRA"]
[null,null,null,null,null,null,null,null,null,null,null,null,null,null,null,null,null,null,null,null,null,null,{"$f":"IF(ISNUMBER(SEARCH($AA$6,Bairros[[#This Row],[Colunas1]])),MAX($W$5:W228)+1,0)","v":224},"JOQUEI CLUBE (URBANOVA)","LOTEAMENTO RESERVA DA FIGUEIRA"]
[null,null,null,null,null,null,null,null,null,null,null,null,null,null,null,null,null,null,null,null,null,null,{"$f":"IF(ISNUMBER(SEARCH($AA$6,Bairros[[#This Row],[Colunas1]])),MAX($W$5:W229)+1,0)","v":225},"LAVAPES","LOTEAMENTO SANTA RITA (BOM RETIRO)"]
[null,null,null,null,null,null,null,null,null,null,null,null,null,null,null,null,null,null,null,null,null,null,{"$f":"IF(ISNUMBER(SEARCH($AA$6,Bairros[[#This Row],[Colunas1]])),MAX($W$5:W230)+1,0)","v":226},"LOTEAMENTO ESPELHO D'AGUA","MARTINS GUIMARAES"]
[null,null,null,null,null,null,null,null,null,null,null,null,null,null,null,null,null,null,null,null,null,null,{"$f":"IF(ISNUMBER(SEARCH($AA$6,Bairros[[#This Row],[Colunas1]])),MAX($W$5:W231)+1,0)","v":227},"LOTEAMENTO RESERVA DA BARRA","MATO DENTRO"]
[null,null,null,null,null,null,null,null,null,null,null,null,null,null,null,null,null,null,null,null,null,null,{"$f":"IF(ISNUMBER(SEARCH($AA$6,Bairros[[#This Row],[Colunas1]])),MAX($W$5:W232)+1,0)","v":228},"LOTEAMENTO RESERVA DA FIGUEIRA","MIRANTE DO BUQUIRINHA"]
[null,null,null,null,null,null,null,null,null,null,null,null,null,null,null,null,null,null,null,null,null,null,{"$f":"IF(ISNUMBER(SEARCH($AA$6,Bairros[[#This Row],[Colunas1]])),MAX($W$5:W233)+1,0)","v":229},"LOTEAMENTO SANTA RITA (BOM RETIRO)","MIRANTE DO VALE"]
[null,null,null,null,null,null,null,null,null,null,null,null,null,null,null,null,null,null,null,null,null,null,{"$f":"IF(ISNUMBER(SEARCH($AA$6,Bairros[[#This Row],[Colunas1]])),MAX($W$5:W234)+1,0)","v":230},"MARTINS GUIMARAES","MONTE CASTELO"]
[null,null,null,null,null,null,null,null,null,null,null,null,null,null,null,null,null,null,null,null,null,null,{"$f":"IF(ISNUMBER(SEARCH($AA$6,Bairros[[#This Row],[Colunas1]])),MAX($W$5:W235)+1,0)","v":231},"MATO DENTRO","MORADA DO FENIX"]
[null,null,null,null,null,null,null,null,null,null,null,null,null,null,null,null,null,null,null,null,null,null,{"$f":"IF(ISNUMBER(SEARCH($AA$6,Bairros[[#This Row],[Colunas1]])),MAX($W$5:W236)+1,0)","v":232},"MIRANTE DO BUQUIRINHA","NOVE DE JULHO"]
[null,null,null,null,null,null,null,null,null,null,null,null,null,null,null,null,null,null,null,null,null,null,{"$f":"IF(ISNUMBER(SEARCH($AA$6,Bairros[[#This Row],[Colunas1]])),MAX($W$5:W237)+1,0)","v":233},"MIRANTE DO VALE","PARQUE DOS IPES"]
[null,null,null,null,null,null,null,null,null,null,null,null,null,null,null,null,null,null,null,null,null,null,{"$f":"IF(ISNUMBER(SEARCH($AA$6,Bairros[[#This Row],[Colunas1]])),MAX($W$5:W238)+1,0)","v":234},"MONTE CASTELO","PARQUE DOS YPES"]
[null,null,null,null,null,null,null,null,null,null,null,null,null,null,null,null,null,null,null,null,null,null,{"$f":"IF(ISNUMBER(SEARCH($AA$6,Bairros[[#This Row],[Colunas1]])),MAX($W$5:W239)+1,0)","v":235},"MORADA DO FENIX","PARQUE INDEPENDENCIA"]
[null,null,null,null,null,null,null,null,null,null,null,null,null,null,null,null,null,null,null,null,null,null,{"$f":"IF(ISNUMBER(SEARCH($AA$6,Bairros[[#This Row],[Colunas1]])),MAX($W$5:W240)+1,0)","v":236},"NOVE DE JULHO","PARQUE INDUSTRIAL"]
[null,null,null,null,null,null,null,null,null,null,null,null,null,null,null,null,null,null,null,null,null,null,{"$f":"IF(ISNUMBER(SEARCH($AA$6,Bairros[[#This Row],[Colunas1]])),MAX($W$5:W241)+1,0)","v":237},"PARQUE DOS IPES","PARQUE INTERLAGOS"]
[null,null,null,null,null,null,null,null,null,null,null,null,null,null,null,null,null,null,null,null,null,null,{"$f":"IF(ISNUMBER(SEARCH($AA$6,Bairros[[#This Row],[Colunas1]])),MAX($W$5:W242)+1,0)","v":238},"PARQUE DOS YPES","PARQUE MARTIM CERERE"]
[null,null,null,null,null,null,null,null,null,null,null,null,null,null,null,null,null,null,null,null,null,null,{"$f":"IF(ISNUMBER(SEARCH($AA$6,Bairros[[#This Row],[Colunas1]])),MAX($W$5:W243)+1,0)","v":239},"PARQUE INDEPENDENCIA","PARQUE NOVA ESPERANCA"]
[null,null,null,null,null,null,null,null,null,null,null,null,null,null,null,null,null,null,null,null,null,null,{"$f":"IF(ISNUMBER(SEARCH($AA$6,Bairros[[#This Row],[Colunas1]])),MAX($W$5:W244)+1,0)","v":240},"PARQUE INDUSTRIAL","PARQUE NOVO HORIZONTE"]
[null,null,null,null,null,null,null,null,null,null,null,null,null,null,null,null,null,null,null,null,null,null,{"$f":"IF(ISNUMBER(SEARCH($AA$6,Bairros[[#This Row],[Colunas1]])),MAX($W$5:W245)+1,0)","v":241},"PARQUE INTERLAGOS","PARQUE RESIDENCIAL AQUARIUS"]
[null,null,null,null,null,null,null,null,null,null,null,null,null,null,null,null,null,null,null,null,null,null,{"$f":"IF(ISNUMBER(SEARCH($AA$6,Bairros[[#This Row],[Colunas1]])),MAX($W$5:W246)+1,0)","v":242},"PARQUE MARTIM CERERE","PARQUE RESIDENCIAL FLAMBOYANT"]
[null,null,null,null,null,null,null,null,null,null,null,null,null,null,null,null,null,null,null,null,null,null,{"$f":"IF(ISNUMBER(SEARCH($AA$6,Bairros[[#This Row],[Colunas1]])),MAX($W$5:W247)+1,0)","v":243},"PARQUE NOVA ESPERANCA","PARQUE RESIDENCIAL SANTO ANTONIO"]
[null,null,null,null,null,null,null,null,null,null,null,null,null,null,null,null,null,null,null,null,null,null,{"$f":"IF(ISNUMBER(SEARCH($AA$6,Bairros[[#This Row],[Colunas1]])),MAX($W$5:W248)+1,0)","v":244},"PARQUE NOVO HORIZONTE","PARQUE RESIDENCIAL UNIAO"]
[null,null,null,null,null,null,null,null,null,null,null,null,null,null,null,null,null,null,null,null,null,null,{"$f":"IF(ISNUMBER(SEARCH($AA$6,Bairros[[#This Row],[Colunas1]])),MAX($W$5:W249)+1,0)","v":245},"PARQUE RESIDENCIAL AQUARIUS","PARQUE SANTA RITA"]
[null,null,null,null,null,null,null,null,null,null,null,null,null,null,null,null,null,null,null,null,null,null,{"$f":"IF(ISNUMBER(SEARCH($AA$6,Bairros[[#This Row],[Colunas1]])),MAX($W$5:W250)+1,0)","v":246},"PARQUE RESIDENCIAL FLAMBOYANT","PARQUE SANTOS DUMONT"]
[null,null,null,null,null,null,null,null,null,null,null,null,null,null,null,null,null,null,null,null,null,null,{"$f":"IF(ISNUMBER(SEARCH($AA$6,Bairros[[#This Row],[Colunas1]])),MAX($W$5:W251)+1,0)","v":247},"PARQUE RESIDENCIAL SANTO ANTONIO","PAU DE SAIA"]
[null,null,null,null,null,null,null,null,null,null,null,null,null,null,null,null,null,null,null,null,null,null,{"$f":"IF(ISNUMBER(SEARCH($AA$6,Bairros[[#This Row],[Colunas1]])),MAX($W$5:W252)+1,0)","v":248},"PARQUE RESIDENCIAL UNIAO","PEDRA D' AGUA"]
[null,null,null,null,null,null,null,null,null,null,null,null,null,null,null,null,null,null,null,null,null,null,{"$f":"IF(ISNUMBER(SEARCH($AA$6,Bairros[[#This Row],[Colunas1]])),MAX($W$5:W253)+1,0)","v":249},"PARQUE SANTA RITA","PERNAMBUCANA DE BAIXO"]
[null,null,null,null,null,null,null,null,null,null,null,null,null,null,null,null,null,null,null,null,null,null,{"$f":"IF(ISNUMBER(SEARCH($AA$6,Bairros[[#This Row],[Colunas1]])),MAX($W$5:W254)+1,0)","v":250},"PARQUE SANTOS DUMONT","PERNAMBUCANA DE CIMA"]
[null,null,null,null,null,null,null,null,null,null,null,null,null,null,null,null,null,null,null,null,null,null,{"$f":"IF(ISNUMBER(SEARCH($AA$6,Bairros[[#This Row],[Colunas1]])),MAX($W$5:W255)+1,0)","v":251},"PAU DE SAIA","PINHEIRINHO (URBANOVA)"]
[null,null,null,null,null,null,null,null,null,null,null,null,null,null,null,null,null,null,null,null,null,null,{"$f":"IF(ISNUMBER(SEARCH($AA$6,Bairros[[#This Row],[Colunas1]])),MAX($W$5:W256)+1,0)","v":252},"PEDRA D' AGUA","PINHEIRINHO DOS PALMARES II"]
[null,null,null,null,null,null,null,null,null,null,null,null,null,null,null,null,null,null,null,null,null,null,{"$f":"IF(ISNUMBER(SEARCH($AA$6,Bairros[[#This Row],[Colunas1]])),MAX($W$5:W257)+1,0)","v":253},"PERNAMBUCANA DE BAIXO","PORTAL DE MINAS"]
[null,null,null,null,null,null,null,null,null,null,null,null,null,null,null,null,null,null,null,null,null,null,{"$f":"IF(ISNUMBER(SEARCH($AA$6,Bairros[[#This Row],[Colunas1]])),MAX($W$5:W258)+1,0)","v":254},"PERNAMBUCANA DE CIMA","PORTAL DO CEU "]
[null,null,null,null,null,null,null,null,null,null,null,null,null,null,null,null,null,null,null,null,null,null,{"$f":"IF(ISNUMBER(SEARCH($AA$6,Bairros[[#This Row],[Colunas1]])),MAX($W$5:W259)+1,0)","v":255},"PINHEIRINHO (URBANOVA)","PORTAL DOS PASSAROS"]
[null,null,null,null,null,null,null,null,null,null,null,null,null,null,null,null,null,null,null,null,null,null,{"$f":"IF(ISNUMBER(SEARCH($AA$6,Bairros[[#This Row],[Colunas1]])),MAX($W$5:W260)+1,0)","v":256},"PINHEIRINHO DOS PALMARES II","PORTAL SANTA INES"]
[null,null,null,null,null,null,null,null,null,null,null,null,null,null,null,null,null,null,null,null,null,null,{"$f":"IF(ISNUMBER(SEARCH($AA$6,Bairros[[#This Row],[Colunas1]])),MAX($W$5:W261)+1,0)","v":257},"PORTAL DE MINAS",{"$f":"IFERROR(VLOOKUP(ROW(AB261),W262:X709,2,FALSE),\"\")","v":"POUSADA DO VALE "}]
[null,null,null,null,null,null,null,null,null,null,null,null,null,null,null,null,null,null,null,null,null,null,{"$f":"IF(ISNUMBER(SEARCH($AA$6,Bairros[[#This Row],[Colunas1]])),MAX($W$5:W262)+1,0)","v":258},"PORTAL DO CEU ","QUARTO CENTENARIO"]
[null,null,null,null,null,null,null,null,null,null,null,null,null,null,null,null,null,null,null,null,null,null,{"$f":"IF(ISNUMBER(SEARCH($AA$6,Bairros[[#This Row],[Colunas1]])),MAX($W$5:W263)+1,0)","v":259},"PORTAL DOS PASSAROS","QUINTA DAS FLORES"]
[null,null,null,null,null,null,null,null,null,null,null,null,null,null,null,null,null,null,null,null,null,null,{"$f":"IF(ISNUMBER(SEARCH($AA$6,Bairros[[#This Row],[Colunas1]])),MAX($W$5:W264)+1,0)","v":260},"PORTAL SANTA INES","RECANTO DA BARONESA"]
[null,null,null,null,null,null,null,null,null,null,null,null,null,null,null,null,null,null,null,null,null,null,{"$f":"IF(ISNUMBER(SEARCH($AA$6,Bairros[[#This Row],[Colunas1]])),MAX($W$5:W265)+1,0)","v":261},"POUSADA DO VALE ","RECANTO DAS JABUTICABEIRAS"]
[null,null,null,null,null,null,null,null,null,null,null,null,null,null,null,null,null,null,null,null,null,null,{"$f":"IF(ISNUMBER(SEARCH($AA$6,Bairros[[#This Row],[Colunas1]])),MAX($W$5:W266)+1,0)","v":262},"QUARTO CENTENARIO","RECANTO DO CAETE"]
[null,null,null,null,null,null,null,null,null,null,null,null,null,null,null,null,null,null,null,null,null,null,{"$f":"IF(ISNUMBER(SEARCH($AA$6,Bairros[[#This Row],[Colunas1]])),MAX($W$5:W267)+1,0)","v":263},"QUINTA DAS FLORES","RECANTO DO VALE"]
[null,null,null,null,null,null,null,null,null,null,null,null,null,null,null,null,null,null,null,null,null,null,{"$f":"IF(ISNUMBER(SEARCH($AA$6,Bairros[[#This Row],[Colunas1]])),MAX($W$5:W268)+1,0)","v":264},"RECANTO DA BARONESA","RECANTO DOS EUCALIPTOS"]
[null,null,null,null,null,null,null,null,null,null,null,null,null,null,null,null,null,null,null,null,null,null,{"$f":"IF(ISNUMBER(SEARCH($AA$6,Bairros[[#This Row],[Colunas1]])),MAX($W$5:W269)+1,0)","v":265},"RECANTO DAS JABUTICABEIRAS","RECANTO DOS PINHEIROS"]
[null,null,null,null,null,null,null,null,null,null,null,null,null,null,null,null,null,null,null,null,null,null,{"$f":"IF(ISNUMBER(SEARCH($AA$6,Bairros[[#This Row],[Colunas1]])),MAX($W$5:W270)+1,0)","v":266},"RECANTO DO CAETE","RECANTO DOS TAMOIOS"]
[null,null,null,null,null,null,null,null,null,null,null,null,null,null,null,null,null,null,null,null,null,null,{"$f":"IF(ISNUMBER(SEARCH($AA$6,Bairros[[#This Row],[Colunas1]])),MAX($W$5:W271)+1,0)","v":267},"RECANTO DO VALE","RECREIO BOA VISTA"]
[null,null,null,null,null,null,null,null,null,null,null,null,null,null,null,null,null,null,null,null,null,null,{"$f":"IF(ISNUMBER(SEARCH($AA$6,Bairros[[#This Row],[Colunas1]])),MAX($W$5:W272)+1,0)","v":268},"RECANTO DOS EUCALIPTOS","RESERVA DO PARATEHY"]
[null,null,null,null,null,null,null,null,null,null,null,null,null,null,null,null,null,null,null,null,null,null,{"$f":"IF(ISNUMBER(SEARCH($AA$6,Bairros[[#This Row],[Colunas1]])),MAX($W$5:W273)+1,0)","v":269},"RECANTO DOS PINHEIROS","RESIDENCIAL ALTOS DA QUINTA"]
[null,null,null,null,null,null,null,null,null,null,null,null,null,null,null,null,null,null,null,null,null,null,{"$f":"IF(ISNUMBER(SEARCH($AA$6,Bairros[[#This Row],[Colunas1]])),MAX($W$5:W274)+1,0)","v":270},"RECANTO DOS TAMOIOS","RESIDENCIAL ALTOS DOS YPES"]
[null,null,null,null,null,null,null,null,null,null,null,null,null,null,null,null,null,null,null,null,null,null,{"$f":"IF(ISNUMBER(SEARCH($AA$6,Bairros[[#This Row],[Colunas1]])),MAX($W$5:W275)+1,0)","v":271},"RECREIO BOA VISTA","RESIDENCIAL ANA MARIA"]
[null,null,null,null,null,null,null,null,null,null,null,null,null,null,null,null,null,null,null,null,null,null,{"$f":"IF(ISNUMBER(SEARCH($AA$6,Bairros[[#This Row],[Colunas1]])),MAX($W$5:W276)+1,0)","v":272},"RESERVA DO PARATEHY","RESIDENCIAL ARMANDO RIGHI"]
[null,null,null,null,null,null,null,null,null,null,null,null,null,null,null,null,null,null,null,null,null,null,{"$f":"IF(ISNUMBER(SEARCH($AA$6,Bairros[[#This Row],[Colunas1]])),MAX($W$5:W277)+1,0)","v":273},"RESIDENCIAL ALTOS DA QUINTA","RESIDENCIAL BELL PARK"]
[null,null,null,null,null,null,null,null,null,null,null,null,null,null,null,null,null,null,null,null,null,null,{"$f":"IF(ISNUMBER(SEARCH($AA$6,Bairros[[#This Row],[Colunas1]])),MAX($W$5:W278)+1,0)","v":274},"RESIDENCIAL ALTOS DOS YPES","RESIDENCIAL BOSQUE DOS IPES"]
[null,null,null,null,null,null,null,null,null,null,null,null,null,null,null,null,null,null,null,null,null,null,{"$f":"IF(ISNUMBER(SEARCH($AA$6,Bairros[[#This Row],[Colunas1]])),MAX($W$5:W279)+1,0)","v":275},"RESIDENCIAL ANA MARIA","RESIDENCIAL CAMBUI"]
[null,null,null,null,null,null,null,null,null,null,null,null,null,null,null,null,null,null,null,null,null,null,{"$f":"IF(ISNUMBER(SEARCH($AA$6,Bairros[[#This Row],[Colunas1]])),MAX($W$5:W280)+1,0)","v":276},"RESIDENCIAL ARMANDO RIGHI","RESIDENCIAL CAMINHO DAS MONTANHAS"]
[null,null,null,null,null,null,null,null,null,null,null,null,null,null,null,null,null,null,null,null,null,null,{"$f":"IF(ISNUMBER(SEARCH($AA$6,Bairros[[#This Row],[Colunas1]])),MAX($W$5:W281)+1,0)","v":277},"RESIDENCIAL BELL PARK","RESIDENCIAL CAMPO BELO"]
[null,null,null,null,null,null,null,null,null,null,null,null,null,null,null,null,null,null,null,null,null,null,{"$f":"IF(ISNUMBER(SEARCH($AA$6,Bairros[[#This Row],[Colunas1]])),MAX($W$5:W282)+1,0)","v":278},"RESIDENCIAL BOSQUE DOS IPES","RESIDENCIAL DEVILLE"]
[null,null,null,null,null,null,null,null,null,null,null,null,null,null,null,null,null,null,null,null,null,null,{"$f":"IF(ISNUMBER(SEARCH($AA$6,Bairros[[#This Row],[Colunas1]])),MAX($W$5:W283)+1,0)","v":279},"RESIDENCIAL CAMBUI","RESIDENCIAL DOM BOSCO"]
[null,null,null,null,null,null,null,null,null,null,null,null,null,null,null,null,null,null,null,null,null,null,{"$f":"IF(ISNUMBER(SEARCH($AA$6,Bairros[[#This Row],[Colunas1]])),MAX($W$5:W284)+1,0)","v":280},"RESIDENCIAL CAMINHO DAS MONTANHAS","RESIDENCIAL DUNAMIS"]
[null,null,null,null,null,null,null,null,null,null,null,null,null,null,null,null,null,null,null,null,null,null,{"$f":"IF(ISNUMBER(SEARCH($AA$6,Bairros[[#This Row],[Colunas1]])),MAX($W$5:W285)+1,0)","v":281},"RESIDENCIAL CAMPO BELO","RESIDENCIAL ESPLANADA DO SOL"]
[null,null,null,null,null,null,null,null,null,null,null,null,null,null,null,null,null,null,null,null,null,null,{"$f":"IF(ISNUMBER(SEARCH($AA$6,Bairros[[#This Row],[Colunas1]])),MAX($W$5:W286)+1,0)","v":282},"RESIDENCIAL DEVILLE","RESIDENCIAL FREI GALVAO"]
[null,null,null,null,null,null,null,null,null,null,null,null,null,null,null,null,null,null,null,null,null,null,{"$f":"IF(ISNUMBER(SEARCH($AA$6,Bairros[[#This Row],[Colunas1]])),MAX($W$5:W287)+1,0)","v":283},"RESIDENCIAL DOM BOSCO","RESIDENCIAL GAZZO"]
[null,null,null,null,null,null,null,null,null,null,null,null,null,null,null,null,null,null,null,null,null,null,{"$f":"IF(ISNUMBER(SEARCH($AA$6,Bairros[[#This Row],[Colunas1]])),MAX($W$5:W288)+1,0)","v":284},"RESIDENCIAL DUNAMIS","RESIDENCIAL JAGUARY"]
[null,null,null,null,null,null,null,null,null,null,null,null,null,null,null,null,null,null,null,null,null,null,{"$f":"IF(ISNUMBER(SEARCH($AA$6,Bairros[[#This Row],[Colunas1]])),MAX($W$5:W289)+1,0)","v":285},"RESIDENCIAL ESPLANADA DO SOL","RESIDENCIAL JARDIM RODOLFO"]
[null,null,null,null,null,null,null,null,null,null,null,null,null,null,null,null,null,null,null,null,null,null,{"$f":"IF(ISNUMBER(SEARCH($AA$6,Bairros[[#This Row],[Colunas1]])),MAX($W$5:W290)+1,0)","v":286},"RESIDENCIAL FREI GALVAO","RESIDENCIAL JARDINS"]
[null,null,null,null,null,null,null,null,null,null,null,null,null,null,null,null,null,null,null,null,null,null,{"$f":"IF(ISNUMBER(SEARCH($AA$6,Bairros[[#This Row],[Colunas1]])),MAX($W$5:W291)+1,0)","v":287},"RESIDENCIAL GAZZO","RESIDENCIAL JATOBA"]
[null,null,null,null,null,null,null,null,null,null,null,null,null,null,null,null,null,null,null,null,null,null,{"$f":"IF(ISNUMBER(SEARCH($AA$6,Bairros[[#This Row],[Colunas1]])),MAX($W$5:W292)+1,0)","v":288},"RESIDENCIAL JAGUARY","RESIDENCIAL JURITIS"]
[null,null,null,null,null,null,null,null,null,null,null,null,null,null,null,null,null,null,null,null,null,null,{"$f":"IF(ISNUMBER(SEARCH($AA$6,Bairros[[#This Row],[Colunas1]])),MAX($W$5:W293)+1,0)","v":289},"RESIDENCIAL JARDIM RODOLFO","RESIDENCIAL MANTIQUEIRA"]
[null,null,null,null,null,null,null,null,null,null,null,null,null,null,null,null,null,null,null,null,null,null,{"$f":"IF(ISNUMBER(SEARCH($AA$6,Bairros[[#This Row],[Colunas1]])),MAX($W$5:W294)+1,0)","v":290},"RESIDENCIAL JARDINS","RESIDENCIAL MARTINS PEREIRA"]
[null,null,null,null,null,null,null,null,null,null,null,null,null,null,null,null,null,null,null,null,null,null,{"$f":"IF(ISNUMBER(SEARCH($AA$6,Bairros[[#This Row],[Colunas1]])),MAX($W$5:W295)+1,0)","v":291},"RESIDENCIAL JATOBA","RESIDENCIAL MONTSERRAT"]
[null,null,null,null,null,null,null,null,null,null,null,null,null,null,null,null,null,null,null,null,null,null,{"$f":"IF(ISNUMBER(SEARCH($AA$6,Bairros[[#This Row],[Colunas1]])),MAX($W$5:W296)+1,0)","v":292},"RESIDENCIAL JURITIS","RESIDENCIAL PARQUE SANTO ANTONIO"]
[null,null,null,null,null,null,null,null,null,null,null,null,null,null,null,null,null,null,null,null,null,null,{"$f":"IF(ISNUMBER(SEARCH($AA$6,Bairros[[#This Row],[Colunas1]])),MAX($W$5:W297)+1,0)","v":293},"RESIDENCIAL MANTIQUEIRA","RESIDENCIAL RIBEIRA (EUGENIO DE MELO)"]
[null,null,null,null,null,null,null,null,null,null,null,null,null,null,null,null,null,null,null,null,null,null,{"$f":"IF(ISNUMBER(SEARCH($AA$6,Bairros[[#This Row],[Colunas1]])),MAX($W$5:W298)+1,0)","v":294},"RESIDENCIAL MARTINS PEREIRA","RESIDENCIAL RIGHI ARMANDO"]
[null,null,null,null,null,null,null,null,null,null,null,null,null,null,null,null,null,null,null,null,null,null,{"$f":"IF(ISNUMBER(SEARCH($AA$6,Bairros[[#This Row],[Colunas1]])),MAX($W$5:W299)+1,0)","v":295},"RESIDENCIAL MONTSERRAT","RESIDENCIAL SAO FRANCISCO XAVIER"]
[null,null,null,null,null,null,null,null,null,null,null,null,null,null,null,null,null,null,null,null,null,null,{"$f":"IF(ISNUMBER(SEARCH($AA$6,Bairros[[#This Row],[Colunas1]])),MAX($W$5:W300)+1,0)","v":296},"RESIDENCIAL PARQUE SANTO ANTONIO","RESIDENCIAL SOL NASCENTE"]
[null,null,null,null,null,null,null,null,null,null,null,null,null,null,null,null,null,null,null,null,null,null,{"$f":"IF(ISNUMBER(SEARCH($AA$6,Bairros[[#This Row],[Colunas1]])),MAX($W$5:W301)+1,0)","v":297},"RESIDENCIAL RIBEIRA (EUGENIO DE MELO)","RESIDENCIAL VERANAS"]
[null,null,null,null,null,null,null,null,null,null,null,null,null,null,null,null,null,null,null,null,null,null,{"$f":"IF(ISNUMBER(SEARCH($AA$6,Bairros[[#This Row],[Colunas1]])),MAX($W$5:W302)+1,0)","v":298},"RESIDENCIAL RIGHI ARMANDO","RESIDENCIAL VISTA LINDA"]
[null,null,null,null,null,null,null,null,null,null,null,null,null,null,null,null,null,null,null,null,null,null,{"$f":"IF(ISNUMBER(SEARCH($AA$6,Bairros[[#This Row],[Colunas1]])),MAX($W$5:W303)+1,0)","v":299},"RESIDENCIAL SAO FRANCISCO XAVIER","ROYAL PARK"]
[null,null,null,null,null,null,null,null,null,null,null,null,null,null,null,null,null,null,null,null,null,null,{"$f":"IF(ISNUMBER(SEARCH($AA$6,Bairros[[#This Row],[Colunas1]])),MAX($W$5:W304)+1,0)","v":300},"RESIDENCIAL SOL NASCENTE","SANTA MARIA "]
[null,null,null,null,null,null,null,null,null,null,null,null,null,null,null,null,null,null,null,null,null,null,{"$f":"IF(ISNUMBER(SEARCH($AA$6,Bairros[[#This Row],[Colunas1]])),MAX($W$5:W305)+1,0)","v":301},"RESIDENCIAL VERANAS","SANTO AGOSTINHO DE BAIXO"]
[null,null,null,null,null,null,null,null,null,null,null,null,null,null,null,null,null,null,null,null,null,null,{"$f":"IF(ISNUMBER(SEARCH($AA$6,Bairros[[#This Row],[Colunas1]])),MAX($W$5:W306)+1,0)","v":302},"RESIDENCIAL VISTA LINDA","SANTO AGOSTINHO DE CIMA"]
[null,null,null,null,null,null,null,null,null,null,null,null,null,null,null,null,null,null,null,null,null,null,{"$f":"IF(ISNUMBER(SEARCH($AA$6,Bairros[[#This Row],[Colunas1]])),MAX($W$5:W307)+1,0)","v":303},"ROYAL PARK","SANTOS DUMONT"]
[null,null,null,null,null,null,null,null,null,null,null,null,null,null,null,null,null,null,null,null,null,null,{"$f":"IF(ISNUMBER(SEARCH($AA$6,Bairros[[#This Row],[Colunas1]])),MAX($W$5:W308)+1,0)","v":304},"SANTA MARIA ","SAO JOAO"]
[null,null,null,null,null,null,null,null,null,null,null,null,null,null,null,null,null,null,null,null,null,null,{"$f":"IF(ISNUMBER(SEARCH($AA$6,Bairros[[#This Row],[Colunas1]])),MAX($W$5:W309)+1,0)","v":305},"SANTO AGOSTINHO DE BAIXO","SAPE"]
[null,null,null,null,null,null,null,null,null,null,null,null,null,null,null,null,null,null,null,null,null,null,{"$f":"IF(ISNUMBER(SEARCH($AA$6,Bairros[[#This Row],[Colunas1]])),MAX($W$5:W310)+1,0)","v":306},"SANTO AGOSTINHO DE CIMA","SERROTE"]
[null,null,null,null,null,null,null,null,null,null,null,null,null,null,null,null,null,null,null,null,null,null,{"$f":"IF(ISNUMBER(SEARCH($AA$6,Bairros[[#This Row],[Colunas1]])),MAX($W$5:W311)+1,0)","v":307},"SANTOS DUMONT","SERTAOZINHO"]
[null,null,null,null,null,null,null,null,null,null,null,null,null,null,null,null,null,null,null,null,null,null,{"$f":"IF(ISNUMBER(SEARCH($AA$6,Bairros[[#This Row],[Colunas1]])),MAX($W$5:W312)+1,0)","v":308},"SAO JOAO","SETVILLE ALTOS DE SAO JOSE"]
[null,null,null,null,null,null,null,null,null,null,null,null,null,null,null,null,null,null,null,null,null,null,{"$f":"IF(ISNUMBER(SEARCH($AA$6,Bairros[[#This Row],[Colunas1]])),MAX($W$5:W313)+1,0)","v":309},"SAPE","SFX - AGUA PRETA"]
[null,null,null,null,null,null,null,null,null,null,null,null,null,null,null,null,null,null,null,null,null,null,{"$f":"IF(ISNUMBER(SEARCH($AA$6,Bairros[[#This Row],[Colunas1]])),MAX($W$5:W314)+1,0)","v":310},"SERROTE","SFX - BARREIRA"]
[null,null,null,null,null,null,null,null,null,null,null,null,null,null,null,null,null,null,null,null,null,null,{"$f":"IF(ISNUMBER(SEARCH($AA$6,Bairros[[#This Row],[Colunas1]])),MAX($W$5:W315)+1,0)","v":311},"SERTAOZINHO","SFX - BUGRE"]
[null,null,null,null,null,null,null,null,null,null,null,null,null,null,null,null,null,null,null,null,null,null,{"$f":"IF(ISNUMBER(SEARCH($AA$6,Bairros[[#This Row],[Colunas1]])),MAX($W$5:W316)+1,0)","v":312},"SETVILLE ALTOS DE SAO JOSE","SFX - CAFUNDO"]
[null,null,null,null,null,null,null,null,null,null,null,null,null,null,null,null,null,null,null,null,null,null,{"$f":"IF(ISNUMBER(SEARCH($AA$6,Bairros[[#This Row],[Colunas1]])),MAX($W$5:W317)+1,0)","v":313},"SFX - AGUA PRETA","SFX - CANELAR"]
[null,null,null,null,null,null,null,null,null,null,null,null,null,null,null,null,null,null,null,null,null,null,{"$f":"IF(ISNUMBER(SEARCH($AA$6,Bairros[[#This Row],[Colunas1]])),MAX($W$5:W318)+1,0)","v":314},"SFX - BARREIRA","SFX - CENTRO"]
[null,null,null,null,null,null,null,null,null,null,null,null,null,null,null,null,null,null,null,null,null,null,{"$f":"IF(ISNUMBER(SEARCH($AA$6,Bairros[[#This Row],[Colunas1]])),MAX($W$5:W319)+1,0)","v":315},"SFX - BUGRE","SFX - FARTURA"]
[null,null,null,null,null,null,null,null,null,null,null,null,null,null,null,null,null,null,null,null,null,null,{"$f":"IF(ISNUMBER(SEARCH($AA$6,Bairros[[#This Row],[Colunas1]])),MAX($W$5:W320)+1,0)","v":316},"SFX - CAFUNDO","SFX - FERREIRA"]
[null,null,null,null,null,null,null,null,null,null,null,null,null,null,null,null,null,null,null,null,null,null,{"$f":"IF(ISNUMBER(SEARCH($AA$6,Bairros[[#This Row],[Colunas1]])),MAX($W$5:W321)+1,0)","v":317},"SFX - CANELAR","SFX - GUAXINDIBA"]
[null,null,null,null,null,null,null,null,null,null,null,null,null,null,null,null,null,null,null,null,null,null,{"$f":"IF(ISNUMBER(SEARCH($AA$6,Bairros[[#This Row],[Colunas1]])),MAX($W$5:W322)+1,0)","v":318},"SFX - CENTRO","SFX - GUIRRA"]
[null,null,null,null,null,null,null,null,null,null,null,null,null,null,null,null,null,null,null,null,null,null,{"$f":"IF(ISNUMBER(SEARCH($AA$6,Bairros[[#This Row],[Colunas1]])),MAX($W$5:W323)+1,0)","v":319},"SFX - FARTURA","SFX - LAVRAS"]
[null,null,null,null,null,null,null,null,null,null,null,null,null,null,null,null,null,null,null,null,null,null,{"$f":"IF(ISNUMBER(SEARCH($AA$6,Bairros[[#This Row],[Colunas1]])),MAX($W$5:W324)+1,0)","v":320},"SFX - FERREIRA","SFX - MACHADO"]
[null,null,null,null,null,null,null,null,null,null,null,null,null,null,null,null,null,null,null,null,null,null,{"$f":"IF(ISNUMBER(SEARCH($AA$6,Bairros[[#This Row],[Colunas1]])),MAX($W$5:W325)+1,0)","v":321},"SFX - GUAXINDIBA",{"$f":"IFERROR(VLOOKUP(ROW(AB325),W326:X773,2,FALSE),\"\")","v":"SFX - MARTINS"}]
[null,null,null,null,null,null,null,null,null,null,null,null,null,null,null,null,null,null,null,null,null,null,{"$f":"IF(ISNUMBER(SEARCH($AA$6,Bairros[[#This Row],[Colunas1]])),MAX($W$5:W326)+1,0)","v":322},"SFX - GUIRRA","SFX - OLEO PARDO"]
[null,null,null,null,null,null,null,null,null,null,null,null,null,null,null,null,null,null,null,null,null,null,{"$f":"IF(ISNUMBER(SEARCH($AA$6,Bairros[[#This Row],[Colunas1]])),MAX($W$5:W327)+1,0)","v":323},"SFX - LAVRAS","SFX - PEDRA VERMELHA"]
[null,null,null,null,null,null,null,null,null,null,null,null,null,null,null,null,null,null,null,null,null,null,{"$f":"IF(ISNUMBER(SEARCH($AA$6,Bairros[[#This Row],[Colunas1]])),MAX($W$5:W328)+1,0)","v":324},"SFX - MACHADO","SFX - POCINHO"]
[null,null,null,null,null,null,null,null,null,null,null,null,null,null,null,null,null,null,null,null,null,null,{"$f":"IF(ISNUMBER(SEARCH($AA$6,Bairros[[#This Row],[Colunas1]])),MAX($W$5:W329)+1,0)","v":325},"SFX - MARTINS","SFX - REMEDIO"]
[null,null,null,null,null,null,null,null,null,null,null,null,null,null,null,null,null,null,null,null,null,null,{"$f":"IF(ISNUMBER(SEARCH($AA$6,Bairros[[#This Row],[Colunas1]])),MAX($W$5:W330)+1,0)","v":326},"SFX - OLEO PARDO","SFX - RIO DAS COBRAS"]
[null,null,null,null,null,null,null,null,null,null,null,null,null,null,null,null,null,null,null,null,null,null,{"$f":"IF(ISNUMBER(SEARCH($AA$6,Bairros[[#This Row],[Colunas1]])),MAX($W$5:W331)+1,0)","v":327},"SFX - PEDRA VERMELHA","SFX - RIO DO PEIXE"]
[null,null,null,null,null,null,null,null,null,null,null,null,null,null,null,null,null,null,null,null,null,null,{"$f":"IF(ISNUMBER(SEARCH($AA$6,Bairros[[#This Row],[Colunas1]])),MAX($W$5:W332)+1,0)","v":328},"SFX - POCINHO","SFX - RONCADOR"]
[null,null,null,null,null,null,null,null,null,null,null,null,null,null,null,null,null,null,null,null,null,null,{"$f":"IF(ISNUMBER(SEARCH($AA$6,Bairros[[#This Row],[Colunas1]])),MAX($W$5:W333)+1,0)","v":329},"SFX - REMEDIO","SFX - SANTA BARBARA DE BAIXO"]
[null,null,null,null,null,null,null,null,null,null,null,null,null,null,null,null,null,null,null,null,null,null,{"$f":"IF(ISNUMBER(SEARCH($AA$6,Bairros[[#This Row],[Colunas1]])),MAX($W$5:W334)+1,0)","v":330},"SFX - RIO DAS COBRAS","SFX - SANTA BARBARA DE CIMA"]
[null,null,null,null,null,null,null,null,null,null,null,null,null,null,null,null,null,null,null,null,null,null,{"$f":"IF(ISNUMBER(SEARCH($AA$6,Bairros[[#This Row],[Colunas1]])),MAX($W$5:W335)+1,0)","v":331},"SFX - RIO DO PEIXE","SFX - SANTA CRUZ"]
[null,null,null,null,null,null,null,null,null,null,null,null,null,null,null,null,null,null,null,null,null,null,{"$f":"IF(ISNUMBER(SEARCH($AA$6,Bairros[[#This Row],[Colunas1]])),MAX($W$5:W336)+1,0)","v":332},"SFX - RONCADOR","SFX - UHF"]
[null,null,null,null,null,null,null,null,null,null,null,null,null,null,null,null,null,null,null,null,null,null,{"$f":"IF(ISNUMBER(SEARCH($AA$6,Bairros[[#This Row],[Colunas1]])),MAX($W$5:W337)+1,0)","v":333},"SFX - SANTA BARBARA DE BAIXO","SFX - VILA NOSSA SENHORA DE FATIMA"]
[null,null,null,null,null,null,null,null,null,null,null,null,null,null,null,null,null,null,null,null,null,null,{"$f":"IF(ISNUMBER(SEARCH($AA$6,Bairros[[#This Row],[Colunas1]])),MAX($W$5:W338)+1,0)","v":334},"SFX - SANTA BARBARA DE CIMA","SITIO BOM JESUS"]
[null,null,null,null,null,null,null,null,null,null,null,null,null,null,null,null,null,null,null,null,null,null,{"$f":"IF(ISNUMBER(SEARCH($AA$6,Bairros[[#This Row],[Colunas1]])),MAX($W$5:W339)+1,0)","v":335},"SFX - SANTA CRUZ","SOBRADO"]
[null,null,null,null,null,null,null,null,null,null,null,null,null,null,null,null,null,null,null,null,null,null,{"$f":"IF(ISNUMBER(SEARCH($AA$6,Bairros[[#This Row],[Colunas1]])),MAX($W$5:W340)+1,0)","v":336},"SFX - UHF","SUNSET PARK"]
[null,null,null,null,null,null,null,null,null,null,null,null,null,null,null,null,null,null,null,null,null,null,{"$f":"IF(ISNUMBER(SEARCH($AA$6,Bairros[[#This Row],[Colunas1]])),MAX($W$5:W341)+1,0)","v":337},"SFX - VILA NOSSA SENHORA DE FATIMA","TAQUARI "]
[null,null,null,null,null,null,null,null,null,null,null,null,null,null,null,null,null,null,null,null,null,null,{"$f":"IF(ISNUMBER(SEARCH($AA$6,Bairros[[#This Row],[Colunas1]])),MAX($W$5:W342)+1,0)","v":338},"SITIO BOM JESUS","TERRA BRASILIS"]
[null,null,null,null,null,null,null,null,null,null,null,null,null,null,null,null,null,null,null,null,null,null,{"$f":"IF(ISNUMBER(SEARCH($AA$6,Bairros[[#This Row],[Colunas1]])),MAX($W$5:W343)+1,0)","v":339},"SOBRADO","TERRA NOVA (EUGENIO DE MELO)"]
[null,null,null,null,null,null,null,null,null,null,null,null,null,null,null,null,null,null,null,null,null,null,{"$f":"IF(ISNUMBER(SEARCH($AA$6,Bairros[[#This Row],[Colunas1]])),MAX($W$5:W344)+1,0)","v":340},"SUNSET PARK","TOM JOBIM"]
[null,null,null,null,null,null,null,null,null,null,null,null,null,null,null,null,null,null,null,null,null,null,{"$f":"IF(ISNUMBER(SEARCH($AA$6,Bairros[[#This Row],[Colunas1]])),MAX($W$5:W345)+1,0)","v":341},"TAQUARI ","TORRAO DE OURO (PARQUE INTERLAGOS)"]
[null,null,null,null,null,null,null,null,null,null,null,null,null,null,null,null,null,null,null,null,null,null,{"$f":"IF(ISNUMBER(SEARCH($AA$6,Bairros[[#This Row],[Colunas1]])),MAX($W$5:W346)+1,0)","v":342},"TERRA BRASILIS","TRINTA E UM DE MARCO"]
[null,null,null,null,null,null,null,null,null,null,null,null,null,null,null,null,null,null,null,null,null,null,{"$f":"IF(ISNUMBER(SEARCH($AA$6,Bairros[[#This Row],[Colunas1]])),MAX($W$5:W347)+1,0)","v":343},"TERRA NOVA (EUGENIO DE MELO)","TURVO"]
[null,null,null,null,null,null,null,null,null,null,null,null,null,null,null,null,null,null,null,null,null,null,{"$f":"IF(ISNUMBER(SEARCH($AA$6,Bairros[[#This Row],[Colunas1]])),MAX($W$5:W348)+1,0)","v":344},"TOM JOBIM","URBANOVA I"]
[null,null,null,null,null,null,null,null,null,null,null,null,null,null,null,null,null,null,null,null,null,null,{"$f":"IF(ISNUMBER(SEARCH($AA$6,Bairros[[#This Row],[Colunas1]])),MAX($W$5:W349)+1,0)","v":345},"TORRAO DE OURO (PARQUE INTERLAGOS)","URBANOVA II"]
[null,null,null,null,null,null,null,null,null,null,null,null,null,null,null,null,null,null,null,null,null,null,{"$f":"IF(ISNUMBER(SEARCH($AA$6,Bairros[[#This Row],[Colunas1]])),MAX($W$5:W350)+1,0)","v":346},"TRINTA E UM DE MARCO","URBANOVA III"]
[null,null,null,null,null,null,null,null,null,null,null,null,null,null,null,null,null,null,null,null,null,null,{"$f":"IF(ISNUMBER(SEARCH($AA$6,Bairros[[#This Row],[Colunas1]])),MAX($W$5:W351)+1,0)","v":347},"TURVO","URBANOVA IV"]
[null,null,null,null,null,null,null,null,null,null,null,null,null,null,null,null,null,null,null,null,null,null,{"$f":"IF(ISNUMBER(SEARCH($AA$6,Bairros[[#This Row],[Colunas1]])),MAX($W$5:W352)+1,0)","v":348},"URBANOVA I","URBANOVA V"]
[null,null,null,null,null,null,null,null,null,null,null,null,null,null,null,null,null,null,null,null,null,null,{"$f":"IF(ISNUMBER(SEARCH($AA$6,Bairros[[#This Row],[Colunas1]])),MAX($W$5:W353)+1,0)","v":349},"URBANOVA II","URBANOVA VI"]
[null,null,null,null,null,null,null,null,null,null,null,null,null,null,null,null,null,null,null,null,null,null,{"$f":"IF(ISNUMBER(SEARCH($AA$6,Bairros[[#This Row],[Colunas1]])),MAX($W$5:W354)+1,0)","v":350},"URBANOVA III","URBANOVA VII"]
[null,null,null,null,null,null,null,null,null,null,null,null,null,null,null,null,null,null,null,null,null,null,{"$f":"IF(ISNUMBER(SEARCH($AA$6,Bairros[[#This Row],[Colunas1]])),MAX($W$5:W355)+1,0)","v":351},"URBANOVA IV","VARGEM GRANDE"]
[null,null,null,null,null,null,null,null,null,null,null,null,null,null,null,null,null,null,null,null,null,null,{"$f":"IF(ISNUMBER(SEARCH($AA$6,Bairros[[#This Row],[Colunas1]])),MAX($W$5:W356)+1,0)","v":352},"URBANOVA V","VERANEIO TORRAO DE OURO"]
[null,null,null,null,null,null,null,null,null,null,null,null,null,null,null,null,null,null,null,null,null,null,{"$f":"IF(ISNUMBER(SEARCH($AA$6,Bairros[[#This Row],[Colunas1]])),MAX($W$5:W357)+1,0)","v":353},"URBANOVA VI","VERTENTES DO JAGUARI"]
[null,null,null,null,null,null,null,null,null,null,null,null,null,null,null,null,null,null,null,null,null,null,{"$f":"IF(ISNUMBER(SEARCH($AA$6,Bairros[[#This Row],[Colunas1]])),MAX($W$5:W358)+1,0)","v":354},"URBANOVA VII","VILA ABEL"]
[null,null,null,null,null,null,null,null,null,null,null,null,null,null,null,null,null,null,null,null,null,null,{"$f":"IF(ISNUMBER(SEARCH($AA$6,Bairros[[#This Row],[Colunas1]])),MAX($W$5:W359)+1,0)","v":355},"VARGEM GRANDE","VILA ADRIANA"]
[null,null,null,null,null,null,null,null,null,null,null,null,null,null,null,null,null,null,null,null,null,null,{"$f":"IF(ISNUMBER(SEARCH($AA$6,Bairros[[#This Row],[Colunas1]])),MAX($W$5:W360)+1,0)","v":356},"VERANEIO TORRAO DE OURO","VILA ADY ANNA"]
[null,null,null,null,null,null,null,null,null,null,null,null,null,null,null,null,null,null,null,null,null,null,{"$f":"IF(ISNUMBER(SEARCH($AA$6,Bairros[[#This Row],[Colunas1]])),MAX($W$5:W361)+1,0)","v":357},"VERTENTES DO JAGUARI","VILA ALEXANDRINA"]
[null,null,null,null,null,null,null,null,null,null,null,null,null,null,null,null,null,null,null,null,null,null,{"$f":"IF(ISNUMBER(SEARCH($AA$6,Bairros[[#This Row],[Colunas1]])),MAX($W$5:W362)+1,0)","v":358},"VILA ABEL","VILA BANDEIRANTE"]
[null,null,null,null,null,null,null,null,null,null,null,null,null,null,null,null,null,null,null,null,null,null,{"$f":"IF(ISNUMBER(SEARCH($AA$6,Bairros[[#This Row],[Colunas1]])),MAX($W$5:W363)+1,0)","v":359},"VILA ADRIANA","VILA BETANIA"]
[null,null,null,null,null,null,null,null,null,null,null,null,null,null,null,null,null,null,null,null,null,null,{"$f":"IF(ISNUMBER(SEARCH($AA$6,Bairros[[#This Row],[Colunas1]])),MAX($W$5:W364)+1,0)","v":360},"VILA ADY ANNA","VILA CANDIDA"]
[null,null,null,null,null,null,null,null,null,null,null,null,null,null,null,null,null,null,null,null,null,null,{"$f":"IF(ISNUMBER(SEARCH($AA$6,Bairros[[#This Row],[Colunas1]])),MAX($W$5:W365)+1,0)","v":361},"VILA ALEXANDRINA","VILA CARDOSO"]
[null,null,null,null,null,null,null,null,null,null,null,null,null,null,null,null,null,null,null,null,null,null,{"$f":"IF(ISNUMBER(SEARCH($AA$6,Bairros[[#This Row],[Colunas1]])),MAX($W$5:W366)+1,0)","v":362},"VILA BANDEIRANTE","VILA CESAR"]
[null,null,null,null,null,null,null,null,null,null,null,null,null,null,null,null,null,null,null,null,null,null,{"$f":"IF(ISNUMBER(SEARCH($AA$6,Bairros[[#This Row],[Colunas1]])),MAX($W$5:W367)+1,0)","v":363},"VILA BETANIA","VILA CHIQUINHA"]
[null,null,null,null,null,null,null,null,null,null,null,null,null,null,null,null,null,null,null,null,null,null,{"$f":"IF(ISNUMBER(SEARCH($AA$6,Bairros[[#This Row],[Colunas1]])),MAX($W$5:W368)+1,0)","v":364},"VILA CANDIDA","VILA CORINTHIANS"]
[null,null,null,null,null,null,null,null,null,null,null,null,null,null,null,null,null,null,null,null,null,null,{"$f":"IF(ISNUMBER(SEARCH($AA$6,Bairros[[#This Row],[Colunas1]])),MAX($W$5:W369)+1,0)","v":365},"VILA CARDOSO","VILA CRISTINA"]
[null,null,null,null,null,null,null,null,null,null,null,null,null,null,null,null,null,null,null,null,null,null,{"$f":"IF(ISNUMBER(SEARCH($AA$6,Bairros[[#This Row],[Colunas1]])),MAX($W$5:W370)+1,0)","v":366},"VILA CESAR","VILA DAS ACACIAS"]
[null,null,null,null,null,null,null,null,null,null,null,null,null,null,null,null,null,null,null,null,null,null,{"$f":"IF(ISNUMBER(SEARCH($AA$6,Bairros[[#This Row],[Colunas1]])),MAX($W$5:W371)+1,0)","v":367},"VILA CHIQUINHA","VILA DAS FLORES"]
[null,null,null,null,null,null,null,null,null,null,null,null,null,null,null,null,null,null,null,null,null,null,{"$f":"IF(ISNUMBER(SEARCH($AA$6,Bairros[[#This Row],[Colunas1]])),MAX($W$5:W372)+1,0)","v":368},"VILA CORINTHIANS","VILA DIRCE"]
[null,null,null,null,null,null,null,null,null,null,null,null,null,null,null,null,null,null,null,null,null,null,{"$f":"IF(ISNUMBER(SEARCH($AA$6,Bairros[[#This Row],[Colunas1]])),MAX($W$5:W373)+1,0)","v":369},"VILA CRISTINA","VILA DO CARMO"]
[null,null,null,null,null,null,null,null,null,null,null,null,null,null,null,null,null,null,null,null,null,null,{"$f":"IF(ISNUMBER(SEARCH($AA$6,Bairros[[#This Row],[Colunas1]])),MAX($W$5:W374)+1,0)","v":370},"VILA DAS ACACIAS","VILA DO CARMO - 2ª GLEBA"]
[null,null,null,null,null,null,null,null,null,null,null,null,null,null,null,null,null,null,null,null,null,null,{"$f":"IF(ISNUMBER(SEARCH($AA$6,Bairros[[#This Row],[Colunas1]])),MAX($W$5:W375)+1,0)","v":371},"VILA DAS FLORES","VILA DONA"]
[null,null,null,null,null,null,null,null,null,null,null,null,null,null,null,null,null,null,null,null,null,null,{"$f":"IF(ISNUMBER(SEARCH($AA$6,Bairros[[#This Row],[Colunas1]])),MAX($W$5:W376)+1,0)","v":372},"VILA DIRCE","VILA EMA"]
[null,null,null,null,null,null,null,null,null,null,null,null,null,null,null,null,null,null,null,null,null,null,{"$f":"IF(ISNUMBER(SEARCH($AA$6,Bairros[[#This Row],[Colunas1]])),MAX($W$5:W377)+1,0)","v":373},"VILA DO CARMO","VILA ESMERALDA"]
[null,null,null,null,null,null,null,null,null,null,null,null,null,null,null,null,null,null,null,null,null,null,{"$f":"IF(ISNUMBER(SEARCH($AA$6,Bairros[[#This Row],[Colunas1]])),MAX($W$5:W378)+1,0)","v":374},"VILA DO CARMO - 2ª GLEBA","VILA ESTER"]
[null,null,null,null,null,null,null,null,null,null,null,null,null,null,null,null,null,null,null,null,null,null,{"$f":"IF(ISNUMBER(SEARCH($AA$6,Bairros[[#This Row],[Colunas1]])),MAX($W$5:W379)+1,0)","v":375},"VILA DONA","VILA GUAIANAZES"]
[null,null,null,null,null,null,null,null,null,null,null,null,null,null,null,null,null,null,null,null,null,null,{"$f":"IF(ISNUMBER(SEARCH($AA$6,Bairros[[#This Row],[Colunas1]])),MAX($W$5:W380)+1,0)","v":376},"VILA EMA","VILA GUARANI"]
[null,null,null,null,null,null,null,null,null,null,null,null,null,null,null,null,null,null,null,null,null,null,{"$f":"IF(ISNUMBER(SEARCH($AA$6,Bairros[[#This Row],[Colunas1]])),MAX($W$5:W381)+1,0)","v":377},"VILA ESMERALDA","VILA HIGIENOPOLIS"]
[null,null,null,null,null,null,null,null,null,null,null,null,null,null,null,null,null,null,null,null,null,null,{"$f":"IF(ISNUMBER(SEARCH($AA$6,Bairros[[#This Row],[Colunas1]])),MAX($W$5:W382)+1,0)","v":378},"VILA ESTER","VILA ICARAI"]
[null,null,null,null,null,null,null,null,null,null,null,null,null,null,null,null,null,null,null,null,null,null,{"$f":"IF(ISNUMBER(SEARCH($AA$6,Bairros[[#This Row],[Colunas1]])),MAX($W$5:W383)+1,0)","v":379},"VILA GUAIANAZES","VILA IGUALDADE"]
[null,null,null,null,null,null,null,null,null,null,null,null,null,null,null,null,null,null,null,null,null,null,{"$f":"IF(ISNUMBER(SEARCH($AA$6,Bairros[[#This Row],[Colunas1]])),MAX($W$5:W384)+1,0)","v":380},"VILA GUARANI","VILA INDUSTRIAL"]
[null,null,null,null,null,null,null,null,null,null,null,null,null,null,null,null,null,null,null,null,null,null,{"$f":"IF(ISNUMBER(SEARCH($AA$6,Bairros[[#This Row],[Colunas1]])),MAX($W$5:W385)+1,0)","v":381},"VILA HIGIENOPOLIS","VILA IPIRANGA"]
[null,null,null,null,null,null,null,null,null,null,null,null,null,null,null,null,null,null,null,null,null,null,{"$f":"IF(ISNUMBER(SEARCH($AA$6,Bairros[[#This Row],[Colunas1]])),MAX($W$5:W386)+1,0)","v":382},"VILA ICARAI","VILA JACY"]
[null,null,null,null,null,null,null,null,null,null,null,null,null,null,null,null,null,null,null,null,null,null,{"$f":"IF(ISNUMBER(SEARCH($AA$6,Bairros[[#This Row],[Colunas1]])),MAX($W$5:W387)+1,0)","v":383},"VILA IGUALDADE","VILA LEILA I "]
[null,null,null,null,null,null,null,null,null,null,null,null,null,null,null,null,null,null,null,null,null,null,{"$f":"IF(ISNUMBER(SEARCH($AA$6,Bairros[[#This Row],[Colunas1]])),MAX($W$5:W388)+1,0)","v":384},"VILA INDUSTRIAL","VILA LEILA II"]
[null,null,null,null,null,null,null,null,null,null,null,null,null,null,null,null,null,null,null,null,null,null,{"$f":"IF(ISNUMBER(SEARCH($AA$6,Bairros[[#This Row],[Colunas1]])),MAX($W$5:W389)+1,0)","v":385},"VILA IPIRANGA",{"$f":"IFERROR(VLOOKUP(ROW(AB389),W390:X837,2,FALSE),\"\")","v":"VILA LEONIDIA"}]
[null,null,null,null,null,null,null,null,null,null,null,null,null,null,null,null,null,null,null,null,null,null,{"$f":"IF(ISNUMBER(SEARCH($AA$6,Bairros[[#This Row],[Colunas1]])),MAX($W$5:W390)+1,0)","v":386},"VILA JACY","VILA LETONIA"]
[null,null,null,null,null,null,null,null,null,null,null,null,null,null,null,null,null,null,null,null,null,null,{"$f":"IF(ISNUMBER(SEARCH($AA$6,Bairros[[#This Row],[Colunas1]])),MAX($W$5:W391)+1,0)","v":387},"VILA LEILA I ","VILA LUCHETTI"]
[null,null,null,null,null,null,null,null,null,null,null,null,null,null,null,null,null,null,null,null,null,null,{"$f":"IF(ISNUMBER(SEARCH($AA$6,Bairros[[#This Row],[Colunas1]])),MAX($W$5:W392)+1,0)","v":388},"VILA LEILA II","VILA LUCIA"]
[null,null,null,null,null,null,null,null,null,null,null,null,null,null,null,null,null,null,null,null,null,null,{"$f":"IF(ISNUMBER(SEARCH($AA$6,Bairros[[#This Row],[Colunas1]])),MAX($W$5:W393)+1,0)","v":389},"VILA LEONIDIA","VILA LUIZA"]
[null,null,null,null,null,null,null,null,null,null,null,null,null,null,null,null,null,null,null,null,null,null,{"$f":"IF(ISNUMBER(SEARCH($AA$6,Bairros[[#This Row],[Colunas1]])),MAX($W$5:W394)+1,0)","v":390},"VILA LETONIA","VILA MACHADO"]
[null,null,null,null,null,null,null,null,null,null,null,null,null,null,null,null,null,null,null,null,null,null,{"$f":"IF(ISNUMBER(SEARCH($AA$6,Bairros[[#This Row],[Colunas1]])),MAX($W$5:W395)+1,0)","v":391},"VILA LUCHETTI","VILA MARIA"]
[null,null,null,null,null,null,null,null,null,null,null,null,null,null,null,null,null,null,null,null,null,null,{"$f":"IF(ISNUMBER(SEARCH($AA$6,Bairros[[#This Row],[Colunas1]])),MAX($W$5:W396)+1,0)","v":392},"VILA LUCIA","VILA MASCARENHAZ FERRAZ"]
[null,null,null,null,null,null,null,null,null,null,null,null,null,null,null,null,null,null,null,null,null,null,{"$f":"IF(ISNUMBER(SEARCH($AA$6,Bairros[[#This Row],[Colunas1]])),MAX($W$5:W397)+1,0)","v":393},"VILA LUIZA","VILA MATILDE I"]
[null,null,null,null,null,null,null,null,null,null,null,null,null,null,null,null,null,null,null,null,null,null,{"$f":"IF(ISNUMBER(SEARCH($AA$6,Bairros[[#This Row],[Colunas1]])),MAX($W$5:W398)+1,0)","v":394},"VILA MACHADO","VILA MATILDE II"]
[null,null,null,null,null,null,null,null,null,null,null,null,null,null,null,null,null,null,null,null,null,null,{"$f":"IF(ISNUMBER(SEARCH($AA$6,Bairros[[#This Row],[Colunas1]])),MAX($W$5:W399)+1,0)","v":395},"VILA MARIA","VILA MONTE ALEGRE"]
[null,null,null,null,null,null,null,null,null,null,null,null,null,null,null,null,null,null,null,null,null,null,{"$f":"IF(ISNUMBER(SEARCH($AA$6,Bairros[[#This Row],[Colunas1]])),MAX($W$5:W400)+1,0)","v":396},"VILA MASCARENHAZ FERRAZ","VILA MONTEREY"]
[null,null,null,null,null,null,null,null,null,null,null,null,null,null,null,null,null,null,null,null,null,null,{"$f":"IF(ISNUMBER(SEARCH($AA$6,Bairros[[#This Row],[Colunas1]])),MAX($W$5:W401)+1,0)","v":397},"VILA MATILDE I","VILA NAIR"]
[null,null,null,null,null,null,null,null,null,null,null,null,null,null,null,null,null,null,null,null,null,null,{"$f":"IF(ISNUMBER(SEARCH($AA$6,Bairros[[#This Row],[Colunas1]])),MAX($W$5:W402)+1,0)","v":398},"VILA MATILDE II","VILA NOSSA SENHORA DAS GRACAS"]
[null,null,null,null,null,null,null,null,null,null,null,null,null,null,null,null,null,null,null,null,null,null,{"$f":"IF(ISNUMBER(SEARCH($AA$6,Bairros[[#This Row],[Colunas1]])),MAX($W$5:W403)+1,0)","v":399},"VILA MONTE ALEGRE","VILA NOVA CONCEICAO"]
[null,null,null,null,null,null,null,null,null,null,null,null,null,null,null,null,null,null,null,null,null,null,{"$f":"IF(ISNUMBER(SEARCH($AA$6,Bairros[[#This Row],[Colunas1]])),MAX($W$5:W404)+1,0)","v":400},"VILA MONTEREY","VILA NOVA CRISTINA"]
[null,null,null,null,null,null,null,null,null,null,null,null,null,null,null,null,null,null,null,null,null,null,{"$f":"IF(ISNUMBER(SEARCH($AA$6,Bairros[[#This Row],[Colunas1]])),MAX($W$5:W405)+1,0)","v":401},"VILA NAIR","VILA NOVA GUARANI"]
[null,null,null,null,null,null,null,null,null,null,null,null,null,null,null,null,null,null,null,null,null,null,{"$f":"IF(ISNUMBER(SEARCH($AA$6,Bairros[[#This Row],[Colunas1]])),MAX($W$5:W406)+1,0)","v":402},"VILA NOSSA SENHORA DAS GRACAS","VILA NOVA PAULICEIA"]
[null,null,null,null,null,null,null,null,null,null,null,null,null,null,null,null,null,null,null,null,null,null,{"$f":"IF(ISNUMBER(SEARCH($AA$6,Bairros[[#This Row],[Colunas1]])),MAX($W$5:W407)+1,0)","v":403},"VILA NOVA CONCEICAO","VILA NOVA SAO JOSE"]
[null,null,null,null,null,null,null,null,null,null,null,null,null,null,null,null,null,null,null,null,null,null,{"$f":"IF(ISNUMBER(SEARCH($AA$6,Bairros[[#This Row],[Colunas1]])),MAX($W$5:W408)+1,0)","v":404},"VILA NOVA CRISTINA","VILA NOVE DE JULHO"]
[null,null,null,null,null,null,null,null,null,null,null,null,null,null,null,null,null,null,null,null,null,null,{"$f":"IF(ISNUMBER(SEARCH($AA$6,Bairros[[#This Row],[Colunas1]])),MAX($W$5:W409)+1,0)","v":405},"VILA NOVA GUARANI","VILA PAGANINI"]
[null,null,null,null,null,null,null,null,null,null,null,null,null,null,null,null,null,null,null,null,null,null,{"$f":"IF(ISNUMBER(SEARCH($AA$6,Bairros[[#This Row],[Colunas1]])),MAX($W$5:W410)+1,0)","v":406},"VILA NOVA PAULICEIA","VILA PAIVA"]
[null,null,null,null,null,null,null,null,null,null,null,null,null,null,null,null,null,null,null,null,null,null,{"$f":"IF(ISNUMBER(SEARCH($AA$6,Bairros[[#This Row],[Colunas1]])),MAX($W$5:W411)+1,0)","v":407},"VILA NOVA SAO JOSE","VILA PATRICIA"]
[null,null,null,null,null,null,null,null,null,null,null,null,null,null,null,null,null,null,null,null,null,null,{"$f":"IF(ISNUMBER(SEARCH($AA$6,Bairros[[#This Row],[Colunas1]])),MAX($W$5:W412)+1,0)","v":408},"VILA NOVE DE JULHO","VILA PAULO SETUBAL"]
[null,null,null,null,null,null,null,null,null,null,null,null,null,null,null,null,null,null,null,null,null,null,{"$f":"IF(ISNUMBER(SEARCH($AA$6,Bairros[[#This Row],[Colunas1]])),MAX($W$5:W413)+1,0)","v":409},"VILA PAGANINI","VILA PIRATININGA"]
[null,null,null,null,null,null,null,null,null,null,null,null,null,null,null,null,null,null,null,null,null,null,{"$f":"IF(ISNUMBER(SEARCH($AA$6,Bairros[[#This Row],[Colunas1]])),MAX($W$5:W414)+1,0)","v":410},"VILA PAIVA","VILA PROGRESSO "]
[null,null,null,null,null,null,null,null,null,null,null,null,null,null,null,null,null,null,null,null,null,null,{"$f":"IF(ISNUMBER(SEARCH($AA$6,Bairros[[#This Row],[Colunas1]])),MAX($W$5:W415)+1,0)","v":411},"VILA PATRICIA","VILA RANGEL"]
[null,null,null,null,null,null,null,null,null,null,null,null,null,null,null,null,null,null,null,null,null,null,{"$f":"IF(ISNUMBER(SEARCH($AA$6,Bairros[[#This Row],[Colunas1]])),MAX($W$5:W416)+1,0)","v":412},"VILA PAULO SETUBAL","VILA RHODIA"]
[null,null,null,null,null,null,null,null,null,null,null,null,null,null,null,null,null,null,null,null,null,null,{"$f":"IF(ISNUMBER(SEARCH($AA$6,Bairros[[#This Row],[Colunas1]])),MAX($W$5:W417)+1,0)","v":413},"VILA PIRATININGA","VILA RICA"]
[null,null,null,null,null,null,null,null,null,null,null,null,null,null,null,null,null,null,null,null,null,null,{"$f":"IF(ISNUMBER(SEARCH($AA$6,Bairros[[#This Row],[Colunas1]])),MAX($W$5:W418)+1,0)","v":414},"VILA PROGRESSO ","VILA ROSSI"]
[null,null,null,null,null,null,null,null,null,null,null,null,null,null,null,null,null,null,null,null,null,null,{"$f":"IF(ISNUMBER(SEARCH($AA$6,Bairros[[#This Row],[Colunas1]])),MAX($W$5:W419)+1,0)","v":415},"VILA RANGEL","VILA RUBY"]
[null,null,null,null,null,null,null,null,null,null,null,null,null,null,null,null,null,null,null,null,null,null,{"$f":"IF(ISNUMBER(SEARCH($AA$6,Bairros[[#This Row],[Colunas1]])),MAX($W$5:W420)+1,0)","v":416},"VILA RHODIA","VILA SANCHES"]
[null,null,null,null,null,null,null,null,null,null,null,null,null,null,null,null,null,null,null,null,null,null,{"$f":"IF(ISNUMBER(SEARCH($AA$6,Bairros[[#This Row],[Colunas1]])),MAX($W$5:W421)+1,0)","v":417},"VILA RICA","VILA SANTA HELENA"]
[null,null,null,null,null,null,null,null,null,null,null,null,null,null,null,null,null,null,null,null,null,null,{"$f":"IF(ISNUMBER(SEARCH($AA$6,Bairros[[#This Row],[Colunas1]])),MAX($W$5:W422)+1,0)","v":418},"VILA ROSSI","VILA SANTA LUZIA"]
[null,null,null,null,null,null,null,null,null,null,null,null,null,null,null,null,null,null,null,null,null,null,{"$f":"IF(ISNUMBER(SEARCH($AA$6,Bairros[[#This Row],[Colunas1]])),MAX($W$5:W423)+1,0)","v":419},"VILA RUBY","VILA SANTA MATILDE"]
[null,null,null,null,null,null,null,null,null,null,null,null,null,null,null,null,null,null,null,null,null,null,{"$f":"IF(ISNUMBER(SEARCH($AA$6,Bairros[[#This Row],[Colunas1]])),MAX($W$5:W424)+1,0)","v":420},"VILA SANCHES","VILA SANTA RITA"]
[null,null,null,null,null,null,null,null,null,null,null,null,null,null,null,null,null,null,null,null,null,null,{"$f":"IF(ISNUMBER(SEARCH($AA$6,Bairros[[#This Row],[Colunas1]])),MAX($W$5:W425)+1,0)","v":421},"VILA SANTA HELENA","VILA SANTOS"]
[null,null,null,null,null,null,null,null,null,null,null,null,null,null,null,null,null,null,null,null,null,null,{"$f":"IF(ISNUMBER(SEARCH($AA$6,Bairros[[#This Row],[Colunas1]])),MAX($W$5:W426)+1,0)","v":422},"VILA SANTA LUZIA","VILA SAO BENEDITO"]
[null,null,null,null,null,null,null,null,null,null,null,null,null,null,null,null,null,null,null,null,null,null,{"$f":"IF(ISNUMBER(SEARCH($AA$6,Bairros[[#This Row],[Colunas1]])),MAX($W$5:W427)+1,0)","v":423},"VILA SANTA MATILDE","VILA SAO BENTO"]
[null,null,null,null,null,null,null,null,null,null,null,null,null,null,null,null,null,null,null,null,null,null,{"$f":"IF(ISNUMBER(SEARCH($AA$6,Bairros[[#This Row],[Colunas1]])),MAX($W$5:W428)+1,0)","v":424},"VILA SANTA RITA","VILA SAO GERALDO"]
[null,null,null,null,null,null,null,null,null,null,null,null,null,null,null,null,null,null,null,null,null,null,{"$f":"IF(ISNUMBER(SEARCH($AA$6,Bairros[[#This Row],[Colunas1]])),MAX($W$5:W429)+1,0)","v":425},"VILA SANTOS","VILA SAO PAULO"]
[null,null,null,null,null,null,null,null,null,null,null,null,null,null,null,null,null,null,null,null,null,null,{"$f":"IF(ISNUMBER(SEARCH($AA$6,Bairros[[#This Row],[Colunas1]])),MAX($W$5:W430)+1,0)","v":426},"VILA SAO BENEDITO","VILA SAO PEDRO"]
[null,null,null,null,null,null,null,null,null,null,null,null,null,null,null,null,null,null,null,null,null,null,{"$f":"IF(ISNUMBER(SEARCH($AA$6,Bairros[[#This Row],[Colunas1]])),MAX($W$5:W431)+1,0)","v":427},"VILA SAO BENTO","VILA SIMONE"]
[null,null,null,null,null,null,null,null,null,null,null,null,null,null,null,null,null,null,null,null,null,null,{"$f":"IF(ISNUMBER(SEARCH($AA$6,Bairros[[#This Row],[Colunas1]])),MAX($W$5:W432)+1,0)","v":428},"VILA SAO GERALDO","VILA SINHA"]
[null,null,null,null,null,null,null,null,null,null,null,null,null,null,null,null,null,null,null,null,null,null,{"$f":"IF(ISNUMBER(SEARCH($AA$6,Bairros[[#This Row],[Colunas1]])),MAX($W$5:W433)+1,0)","v":429},"VILA SAO PAULO","VILA STRAUSS"]
[null,null,null,null,null,null,null,null,null,null,null,null,null,null,null,null,null,null,null,null,null,null,{"$f":"IF(ISNUMBER(SEARCH($AA$6,Bairros[[#This Row],[Colunas1]])),MAX($W$5:W434)+1,0)","v":430},"VILA SAO PEDRO","VILA TATETUBA"]
[null,null,null,null,null,null,null,null,null,null,null,null,null,null,null,null,null,null,null,null,null,null,{"$f":"IF(ISNUMBER(SEARCH($AA$6,Bairros[[#This Row],[Colunas1]])),MAX($W$5:W435)+1,0)","v":431},"VILA SIMONE","VILA TEREZINHA"]
[null,null,null,null,null,null,null,null,null,null,null,null,null,null,null,null,null,null,null,null,null,null,{"$f":"IF(ISNUMBER(SEARCH($AA$6,Bairros[[#This Row],[Colunas1]])),MAX($W$5:W436)+1,0)","v":432},"VILA SINHA","VILA TESOURO"]
[null,null,null,null,null,null,null,null,null,null,null,null,null,null,null,null,null,null,null,null,null,null,{"$f":"IF(ISNUMBER(SEARCH($AA$6,Bairros[[#This Row],[Colunas1]])),MAX($W$5:W437)+1,0)","v":433},"VILA STRAUSS","VILA TUPI"]
[null,null,null,null,null,null,null,null,null,null,null,null,null,null,null,null,null,null,null,null,null,null,{"$f":"IF(ISNUMBER(SEARCH($AA$6,Bairros[[#This Row],[Colunas1]])),MAX($W$5:W438)+1,0)","v":434},"VILA TATETUBA","VILA UNIDOS"]
[null,null,null,null,null,null,null,null,null,null,null,null,null,null,null,null,null,null,null,null,null,null,{"$f":"IF(ISNUMBER(SEARCH($AA$6,Bairros[[#This Row],[Colunas1]])),MAX($W$5:W439)+1,0)","v":435},"VILA TEREZINHA","VILA VENEZIANI"]
[null,null,null,null,null,null,null,null,null,null,null,null,null,null,null,null,null,null,null,null,null,null,{"$f":"IF(ISNUMBER(SEARCH($AA$6,Bairros[[#This Row],[Colunas1]])),MAX($W$5:W440)+1,0)","v":436},"VILA TESOURO","VILA VIADUTO"]
[null,null,null,null,null,null,null,null,null,null,null,null,null,null,null,null,null,null,null,null,null,null,{"$f":"IF(ISNUMBER(SEARCH($AA$6,Bairros[[#This Row],[Colunas1]])),MAX($W$5:W441)+1,0)","v":437},"VILA TUPI","VILA ZELFA"]
[null,null,null,null,null,null,null,null,null,null,null,null,null,null,null,null,null,null,null,null,null,null,{"$f":"IF(ISNUMBER(SEARCH($AA$6,Bairros[[#This Row],[Colunas1]])),MAX($W$5:W442)+1,0)","v":438},"VILA UNIDOS","VILA ZIZINHA"]
[null,null,null,null,null,null,null,null,null,null,null,null,null,null,null,null,null,null,null,null,null,null,{"$f":"IF(ISNUMBER(SEARCH($AA$6,Bairros[[#This Row],[Colunas1]])),MAX($W$5:W443)+1,0)","v":439},"VILA VENEZIANI","VILLAGE ALPINO"]
[null,null,null,null,null,null,null,null,null,null,null,null,null,null,null,null,null,null,null,null,null,null,{"$f":"IF(ISNUMBER(SEARCH($AA$6,Bairros[[#This Row],[Colunas1]])),MAX($W$5:W444)+1,0)","v":440},"VILA VIADUTO",""]
[null,null,null,null,null,null,null,null,null,null,null,null,null,null,null,null,null,null,null,null,null,null,{"$f":"IF(ISNUMBER(SEARCH($AA$6,Bairros[[#This Row],[Colunas1]])),MAX($W$5:W445)+1,0)","v":441},"VILA ZELFA",""]
[null,null,null,null,null,null,null,null,null,null,null,null,null,null,null,null,null,null,null,null,null,null,{"$f":"IF(ISNUMBER(SEARCH($AA$6,Bairros[[#This Row],[Colunas1]])),MAX($W$5:W446)+1,0)","v":442},"VILA ZIZINHA",""]
[null,null,null,null,null,null,null,null,null,null,null,null,null,null,null,null,null,null,null,null,null,null,{"$f":"IF(ISNUMBER(SEARCH($AA$6,Bairros[[#This Row],[Colunas1]])),MAX($W$5:W447)+1,0)","v":443},"VILLAGE ALPINO",""]
[null,null,null,null,null,null,null,null,null,null,null,null,null,null,null,null,null,null,null,null,null,null,{"$f":"IF(ISNUMBER(SEARCH($AA$6,Bairros[[#This Row],[Colunas1]])),MAX($W$5:W448)+1,0)","v":0}]
[null,null,null,null,null,null,null,null,null,null,null,null,null,null,null,null,null,null,null,null,null,null,{"$f":"IF(ISNUMBER(SEARCH($AA$6,Bairros[[#This Row],[Colunas1]])),MAX($W$5:W449)+1,0)","v":0}]
[null,null,null,null,null,null,null,null,null,null,null,null,null,null,null,null,null,null,null,null,null,null,{"$f":"IF(ISNUMBER(SEARCH($AA$6,Bairros[[#This Row],[Colunas1]])),MAX($W$5:W450)+1,0)","v":0}]
[null,null,null,null,null,null,null,null,null,null,null,null,null,null,null,null,null,null,null,null,null,null,{"$f":"IF(ISNUMBER(SEARCH($AA$6,Bairros[[#This Row],[Colunas1]])),MAX($W$5:W451)+1,0)","v":0}]
[null,null,null,null,null,null,null,null,null,null,null,null,null,null,null,null,null,null,null,null,null,null,{"$f":"IF(ISNUMBER(SEARCH($AA$6,Bairros[[#This Row],[Colunas1]])),MAX($W$5:W452)+1,0)","v":0}]

{"sheet":"BAIRROS CADASTRADOS","index":1,"n_rows":474,"n_cols":1,"rows_kept":474,"cut":false,"hidden":false,"merged":[]}
["BAIRROS CADASTRADOS"]
["AGUA SOCA"]
["AGUAS DA PRATA"]
["AGUAS DE CANINDU I"]
["AGUAS DE CANINDU II"]
["ALPHAVILLE"]
["ALTOS DA VILA PAIVA"]
["ALTOS DE SAO JOSE"]
["ALTOS DO BOSQUE"]
["ALTOS DO CAETE"]
["BAIRRINHO"]
["BEIRA RIO"]
["BENGALAR"]
["BICA D'AGUA"]
["BOM RETIRO"]
["BOM SUCESSO"]
["BOSQUE DOS EUCALIPTOS"]
["BOSQUE DOS IPES"]
["BOSQUE IMPERIAL"]
["BRASALPES"]
["BUQUIRINHA I"]
["BUQUIRINHA II"]
["CACHOEIRA DO RONCADOR"]
["CAJURU"]
["CAMBUCA"]
["CAMPO DOS ALEMAES"]
["CAMPOS DE SAO JOSE"]
["CAPAO GROSSO I"]
["CAPAO GROSSO II"]
["CAPUAVA"]
["CENTRO"]
["CENTRO INDUSTRIAL ELDORADO"]
["CHACARAS ARAUJO I"]
["CHACARAS ARAUJO II"]
["CHACARAS BOA ESPERANCA"]
["CHACARAS BOA VISTA"]
["CHACARAS DOS EUCALIPTOS"]
["CHACARAS HAWAI"]
["CHACARAS JARDIM SERIMBURA (SATELITE)"]
["CHACARAS REUNIDAS"]
["CHACARAS SANTA HELENA"]
["CHACARAS SAO BENEDITO"]
["CHACARAS SAO JOSE"]
["CHACARAS TAKITANI"]
["CIDADE MORUMBI"]
["CIDADE VISTA VERDE"]
["COLINAS DO PARATEHY"]
["COLINAS DO PARAYBA"]
["COMUNIDADE SANTA CRUZ"]
["CONDOMINIO CHACARAS DOS EUCALIPTOS"]
["CONDOMINIO RESIDENCIAL ELDORADO"]
["CONDOMINIO RESIDENCIAL JK"]
["CONDOMINIO RESIDENCIAL TERRINHA"]
["CONDOMINIO RESIDENCIAL VILLAGIO FAZENDAO"]
["CONJUNTO HABILTACIONAL RONDA"]
["CONJUNTO HABITACIONAL DOM PEDRO I"]
["CONJUNTO HABITACIONAL DOM PEDRO II"]
["CONJUNTO HABITACIONAL ELMANO FERREIRA VELOSO"]
["CONJUNTO HABITACIONAL INTERVALE"]
["CONJUNTO HABITACIONAL NOSSO TETO"]
["CONJUNTO HABITACIONAL PAPA JOAO PAULO II"]
["CONJUNTO HABITACIONAL PM SAO JUDAS TADEU "]
["CONJUNTO HABITACIONAL SAO JUDAS TADEU "]
["CONJUNTO HABITACIONAL TRINTA E UM DE MARCO"]
["CONJUNTO INTEGRACAO"]
["CONJUNTO RESIDENCIA PLANALTO"]
["CONJUNTO RESIDENCIAL CAJURU I"]
["CONJUNTO RESIDENCIAL CAJURU III"]
["CONJUNTO RESIDENCIAL CIDADE JARDIM"]
["CONJUNTO RESIDENCIAL JARDIM SATELITE"]
["CONJUNTO RESIDENCIAL MONTE CASTELO"]
["CONJUNTO RESIDENCIAL MORADA DO SOL"]
["CONJUNTO RESIDENCIAL VALE DOS PINHEIROS"]
["CONUNTO HABITACIONAL VALE DOS PINHEIROS"]
["COSTINHA"]
["DESEMBARGADOR MARTINS PEREIRA"]
["EUGENIO DE MELO"]
["FAZENDA BOM RETIRO"]
["FAZENDA HONDA"]
["FAZENDA JANUARIA (REGIAO)"]
["FAZENDA MARSON"]
["FAZENDA TAIRA"]
["FAZENDA TAKANASHI"]
["FAZENDA TONINHO FERREIRA"]
["FAZENDA VILA FRANCA"]
["FLORESTA"]
["FREITAS"]
["GALO BRANCO"]
["GUIRRA"]
["JAGUARI"]
["JARDIM AEROPORTO"]
["JARDIM ALTOS DE SANTANA"]
["JARDIM ALTOS DO ESPLANADA"]
["JARDIM ALVORADA"]
["JARDIM AMERICA"]
["JARDIM AMERICANO"]
["JARDIM ANCHIETA"]
["JARDIM ANHEMBI"]
["JARDIM APARECIDA"]
["JARDIM APOLO"]
["JARDIM AQUARIUS"]
["JARDIM AUGUSTA"]
["JARDIM AZEVEDO"]
["JARDIM BELA VISTA"]
["JARDIM BOA VISTA"]
["JARDIM BRASILIA"]
["JARDIM CASSIANO RICARDO"]
["JARDIM CASTANHEIRAS"]
["JARDIM CEREJEIRAS"]
["JARDIM COLINAS"]
["JARDIM COLONIAL"]
["JARDIM COLORADO"]
["JARDIM COPACABANA"]
["JARDIM CRUZEIRO DO SUL"]
["JARDIM DA GRANJA"]
["JARDIM DAS AZALEIAS"]
["JARDIM DAS FLORES"]
["JARDIM DAS INDUSTRIAS"]
["JARDIM DAS PAINEIRAS I "]
["JARDIM DAS PAINEIRAS II"]
["JARDIM DEL REY"]
["JARDIM DIAMANTE"]
["JARDIM DO CEU"]
["JARDIM DO GOLFE"]
["JARDIM DO LAGO"]
["JARDIM DOS BANDEIRANTES"]
["JARDIM DOS COQUEIROS"]
["JARDIM EBENEZER"]
["JARDIM ESPLANADA I"]
["JARDIM ESPLANADA II"]
["JARDIM ESTORIL"]
["JARDIM FATIMA"]
["JARDIM FLORADAS DE SAO JOSE"]
["JARDIM FREI LEOPOLDO"]
["JARDIM GUIMARAES"]
["JARDIM HELENA"]
["JARDIM IMPERIAL"]
["JARDIM IPE"]
["JARDIM IRACEMA"]
["JARDIM ISMENIA"]
["JARDIM ITAPUA"]
["JARDIM JACI"]
["JARDIM JULIANA"]
["JARDIM JUSSARA"]
["JARDIM LIMOEIRO"]
["JARDIM MADUREIRA"]
["JARDIM MAJESTIC"]
["JARDIM MARACANA"]
["JARDIM MARGARETH"]
["JARDIM MARIANA I "]
["JARDIM MARIANA II"]
["JARDIM MARINGA"]
["JARDIM MARITEIA"]
["JARDIM MATARAZZO"]
["JARDIM MESQUITA"]
["JARDIM MINAS GERAIS"]
["JARDIM MOTORAMA"]
["JARDIM NOVA AMERICA"]
["JARDIM NOVA DETROIT"]
["JARDIM NOVA ESPERANCA (BANHADO)"]
["JARDIM NOVA EUROPA"]
["JARDIM NOVA FLORIDA"]
["JARDIM NOVA MICHIGAN I"]
["JARDIM NOVA MICHIGAN II"]
["JARDIM NOVA REPUBLICA"]
["JARDIM OLIMPIA"]
["JARDIM ORIENTAL"]
["JARDIM ORIENTE"]
["JARDIM OSWALDO CRUZ"]
["JARDIM OURO PRETO"]
["JARDIM PALMEIRAS DE SAO JOSE"]
["JARDIM PARAISO DO SOL"]
["JARDIM PARARANGABA"]
["JARDIM PAULISTA"]
["JARDIM PETROPOLIS"]
["JARDIM PORTUGAL"]
["JARDIM PRIMAVERA I "]
["JARDIM PRIMAVERA II"]
["JARDIM RENATA"]
["JARDIM REPUBLICA"]
["JARDIM REPUBLICA NOVA"]
["JARDIM SAN MARINO"]
["JARDIM SAN RAFAEL"]
["JARDIM SANTA ALICE"]
["JARDIM SANTA CECILIA I "]
["JARDIM SANTA CECILIA II"]
["JARDIM SANTA EDWIGES"]
["JARDIM SANTA FE"]
["JARDIM SANTA HERMINIA"]
["JARDIM SANTA INES I"]
["JARDIM SANTA INES II"]
["JARDIM SANTA INES III"]
["JARDIM SANTA JULIA"]
["JARDIM SANTA LUCIA"]
["JARDIM SANTA LUZIA"]
["JARDIM SANTA MATILDE"]
["JARDIM SANTA RITA"]
["JARDIM SANTA ROSA"]
["JARDIM SANTA SOFIA"]
["JARDIM SANTAREM"]
["JARDIM SANTO ONOFRE"]
["JARDIM SAO DIMAS"]
["JARDIM SAO JORGE"]
["JARDIM SAO JOSE (CENTRO)"]
["JARDIM SAO JOSE I"]
["JARDIM SAO JOSE II"]
["JARDIM SAO JUDAS TADEU"]
["JARDIM SAO VICENTE"]
["JARDIM SATELITE"]
["JARDIM SOUTO"]
["JARDIM TELESPARK"]
["JARDIM TERRAS DO SUL "]
["JARDIM TOPAZIO"]
["JARDIM TRES JOSE"]
["JARDIM UIRA"]
["JARDIM UNIVERSO"]
["JARDIM VALE DO SOL"]
["JARDIM VALE PARAISO"]
["JARDIM VALPARAIBA"]
["JARDIM VENEZA"]
["JARDM PARAISO"]
["JARDM ROSARIO"]
["JARDM SANTA MADALENA"]
["JARDM SAO LEOPOLDO"]
["JARIDM SUL"]
["JOQUEI CLUBE (URBANOVA)"]
["LAVAPES"]
["LOTEAMENTO ESPELHO D'AGUA"]
["LOTEAMENTO RESERVA DA BARRA"]
["LOTEAMENTO RESERVA DA FIGUEIRA"]
["LOTEAMENTO SANTA RITA (BOM RETIRO)"]
["MARTINS GUIMARAES"]
["MATO DENTRO"]
["MIRANTE DO BUQUIRINHA"]
["MIRANTE DO VALE"]
["MONTE CASTELO"]
["MORADA DO FENIX"]
["NOVE DE JULHO"]
["PARQUE DOS IPES"]
["PARQUE DOS YPES"]
["PARQUE INDEPENDENCIA"]
["PARQUE INDUSTRIAL"]
["PARQUE INTERLAGOS"]
["PARQUE MARTIM CERERE"]
["PARQUE NOVA ESPERANCA"]
["PARQUE NOVO HORIZONTE"]
["PARQUE RESIDENCIAL AQUARIUS"]
["PARQUE RESIDENCIAL FLAMBOYANT"]
["PARQUE RESIDENCIAL SANTO ANTONIO"]
["PARQUE RESIDENCIAL UNIAO"]
["PARQUE SANTA RITA"]
["PARQUE SANTOS DUMONT"]
["PAU DE SAIA"]
["PEDRA D' AGUA"]
["PERNAMBUCANA DE BAIXO"]
["PERNAMBUCANA DE CIMA"]
["PINHEIRINHO (URBANOVA)"]
["PINHEIRINHO DOS PALMARES II"]
["PORTAL DE MINAS"]
["PORTAL DO CEU "]
["PORTAL DOS PASSAROS"]
["PORTAL SANTA INES"]
["POUSADA DO VALE "]
["QUARTO CENTENARIO"]
["QUINTA DAS FLORES"]
["RECANTO DA BARONESA"]
["RECANTO DAS JABUTICABEIRAS"]
["RECANTO DO CAETE"]
["RECANTO DO VALE"]
["RECANTO DOS EUCALIPTOS"]
["RECANTO DOS PINHEIROS"]
["RECANTO DOS TAMOIOS"]
["RECREIO BOA VISTA"]
["RESERVA DO PARATEHY"]
["RESIDENCIAL ALTOS DA QUINTA"]
["RESIDENCIAL ALTOS DOS YPES"]
["RESIDENCIAL ANA MARIA"]
["RESIDENCIAL ARMANDO RIGHI"]
["RESIDENCIAL BELL PARK"]
["RESIDENCIAL BOSQUE DOS IPES"]
["RESIDENCIAL CAMBUI"]
["RESIDENCIAL CAMINHO DAS MONTANHAS"]
["RESIDENCIAL CAMPO BELO"]
["RESIDENCIAL DEVILLE"]
["RESIDENCIAL DOM BOSCO"]
["RESIDENCIAL DUNAMIS"]
["RESIDENCIAL ESPLANADA DO SOL"]
["RESIDENCIAL FREI GALVAO"]
["RESIDENCIAL GAZZO"]
["RESIDENCIAL JAGUARY"]
["RESIDENCIAL JARDIM RODOLFO"]
["RESIDENCIAL JARDINS"]
["RESIDENCIAL JATOBA"]
["RESIDENCIAL JURITIS"]
["RESIDENCIAL MANTIQUEIRA"]
["RESIDENCIAL MARTINS PEREIRA"]
["RESIDENCIAL MONTSERRAT"]
["RESIDENCIAL PARQUE SANTO ANTONIO"]
["RESIDENCIAL RIBEIRA (EUGENIO DE MELO)"]
["RESIDENCIAL RIGHI ARMANDO"]
["RESIDENCIAL SAO FRANCISCO XAVIER"]
["RESIDENCIAL SOL NASCENTE"]
["RESIDENCIAL VERANAS"]
["RESIDENCIAL VISTA LINDA"]
["ROYAL PARK"]
["SANTA MARIA "]
["SANTO AGOSTINHO DE BAIXO"]
["SANTO AGOSTINHO DE CIMA"]
["SANTOS DUMONT"]
["SAO JOAO"]
["SAPE"]
["SERROTE"]
["SERTAOZINHO"]
["SETVILLE ALTOS DE SAO JOSE"]
["SFX - AGUA PRETA"]
["SFX - ARGENTINO ROSA"]
["SFX - BAMBU"]
["SFX - BARREIRA"]
["SFX - BUGRE"]
["SFX - CACHOEIRA DO RONCADOR"]
["SFX - CAFUNDO"]
["SFX - CANELAR"]
["SFX - CATETO"]
["SFX - CENTRO"]
["SFX - ESTRADA ACLECIA MARCONDES"]
["SFX - ESTRACA CAPELA SANTA LUZIA"]
["SFX - ESTRADA DA CACHOEIRA PEDRO DAVID"]
["SFX - ESTRADA DO ARNALDO"]
["SFX - ESTRADA EZEQUIEL ALVES GRACIANO"]
["SFX - ESTRADA PEREIRA LIMA"]
["SFX - FARTURA"]
["SFX - FAZENDINHA"]
["SFX - FERREIRA"]
["SFX - GRAMINHA"]
["SFX - GUAXINDIBA"]
["SFX - GUIRRA"]
["SFX - LARANJAL"]
["SFX - LAVRAS"]
["SFX - MACHADO"]
["SFX - MARIA BASTIÃO"]
["SFX - MARTINS"]
["SFX - MORRO DOS VENTO UIVANTES"]
["SFX - OLEO PARDO"]
["SFX - PALMITAL"]
["SFX - PEDRA DO CAPIM AZUL"]
["SFX - PEDRA VERMELHA"]
["SFX - POCINHO"]
["SFX - PONCIANOS"]
["SFX - PORTAL DO EQUILIBRIUM"]
["SFX - POUSO FRIO"]
["SFX - QUEIXO D'ANTA"]
["SFX - REMEDIO"]
["SFX - RIO DAS COBRAS"]
["SFX - RIO DO PEIXE"]
["SFX - RIO MANSO"]
["SFX - SABOYA"]
["SFX - SANTA BARBARA DE BAIXO"]
["SFX - SANTA BARBARA DE CIMA"]
["SFX - SANTA CRUZ"]
["SFX - SANTA TEREZINHA"]
["SFX - SÃO PEDRO"]
["SFX - TRAVESSA CIRIEMAS"]
["SFX - TRAVESSA DA MATA"]
["SFX - TRAVESSA DITA JUCA"]
["SFX - UHF"]
["SFX - VARJÃO"]
["SFX - VENGALAR"]
["SFX - VILA NOSSA SENHORA DE FATIMA"]
["SITIO BOM JESUS"]
["SOBRADO"]
["SUNSET PARK"]
["TAQUARI "]
["TERRA BRASILIS"]
["TERRA NOVA (EUGENIO DE MELO)"]
["TOM JOBIM"]
["TORRAO DE OURO (PARQUE INTERLAGOS)"]
["TRINTA E UM DE MARCO"]
["TURVO"]
["URBANOVA I"]
["URBANOVA II"]
["URBANOVA III"]
["URBANOVA IV"]
["URBANOVA V"]
["URBANOVA VI"]
["URBANOVA VII"]
["VARGEM GRANDE"]
["VERANEIO TORRAO DE OURO"]
["VERTENTES DO JAGUARI"]
["VILA ABEL"]
["VILA ADRIANA"]
["VILA ADY ANNA"]
["VILA ALEXANDRINA"]
["VILA BANDEIRANTE"]
["VILA BETANIA"]
["VILA CANDIDA"]
["VILA CARDOSO"]
["VILA CESAR"]
["VILA CHIQUINHA"]
["VILA CORINTHIANS"]
["VILA CRISTINA"]
["VILA DAS ACACIAS"]
["VILA DAS FLORES"]
["VILA DIRCE"]
["VILA DO CARMO"]
["VILA DO CARMO - 2ª GLEBA"]
["VILA DONA"]
["VILA EMA"]
["VILA ESMERALDA"]
["VILA ESTER"]
["VILA GUAIANAZES"]
["VILA GUARANI"]
["VILA HIGIENOPOLIS"]
["VILA ICARAI"]
["VILA IGUALDADE"]
["VILA INDUSTRIAL"]
["VILA IPIRANGA"]
["VILA JACY"]
["VILA LEILA I "]
["VILA LEILA II"]
["VILA LEONIDIA"]
["VILA LETONIA"]
["VILA LUCHETTI"]
["VILA LUCIA"]
["VILA LUIZA"]
["VILA MACHADO"]
["VILA MARIA"]
["VILA MASCARENHAZ FERRAZ"]
["VILA MATILDE I"]
["VILA MATILDE II"]
["VILA MONTE ALEGRE"]
["VILA MONTEREY"]
["VILA NAIR"]
["VILA NOSSA SENHORA DAS GRACAS"]
["VILA NOVA CONCEICAO"]
["VILA NOVA CRISTINA"]
["VILA NOVA GUARANI"]
["VILA NOVA PAULICEIA"]
["VILA NOVA SAO JOSE"]
["VILA NOVE DE JULHO"]
["VILA PAGANINI"]
["VILA PAIVA"]
["VILA PATRICIA"]
["VILA PAULO SETUBAL"]
["VILA PIRATININGA"]
["VILA PROGRESSO "]
["VILA RANGEL"]
["VILA RHODIA"]
["VILA RICA"]
["VILA ROSSI"]
["VILA RUBY"]
["VILA SANCHES"]
["VILA SANTA HELENA"]
["VILA SANTA LUZIA"]
["VILA SANTA MATILDE"]
["VILA SANTA RITA"]
["VILA SANTOS"]
["VILA SAO BENEDITO"]
["VILA SAO BENTO"]
["VILA SAO GERALDO"]
["VILA SAO PAULO"]
["VILA SAO PEDRO"]
["VILA SIMONE"]
["VILA SINHA"]
["VILA STRAUSS"]
["VILA TATETUBA"]
["VILA TEREZINHA"]
["VILA TESOURO"]
["VILA TUPI"]
["VILA UNIDOS"]
["VILA VENEZIANI"]
["VILA VIADUTO"]
["VILA ZELFA"]
["VILA ZIZINHA"]
["VILLAGE ALPINO"]

{"sheet":"DADOS","index":2,"n_rows":474,"n_cols":19,"rows_kept":474,"cut":false,"hidden":true,"merged":[]}
["PARA CALCULAR IDADE",null,"REDE DE ENSINO",null,"ESCOLAS ESTADUAIS",null,"ESCOLAS MUNICIPAIS",null,"ESCOLAS FILANTRÓPICAS",null,"CADEIRANTE",null,"TIPO NEE",null,"ANO/SÉRIE",null,"TURMA",null,"BAIRROS"]
[{"$f":"TODAY()","v":"2018-11-21"},null,"ESTADUAL",null,"EE ADÉLIA CHUCRI NEME",null,"EMEF ÁLVARO GONÇALVES",null,"EEIEF MADRE TERESA",null,"SIM",null,"MULTIPLA",null,"1º -EF",null,"A",null,"AGUA SOCA"]
[null,null,"MUNICIPAL",null,"EE ALCEU MAYNARD ARAÚJO",null,"EMEF ANA BERLING MACEDO",null,null,null,"NAO",null,"CEGUEIRA",null,"2º -EF",null,"B",null,"AGUAS DA PRATA"]
[null,null,"FILANTRÓPICA",null,"EE AMINTAS ROCHA BRITO",null,"EMEF ANTÔNIO PALMA SOBRINHO",null,null,null,null,null,"BAIXA VISAO",null,"3º -EF",null,"C",null,"AGUAS DE CANINDU I"]
[null,null,null,null,"EE ANA CÂNDIDA DE BARROS MOLINA",null,"EMEF ÁUREA CANTINHO RODRIGUES",null,null,null,null,null,"SURDEZ SEVERA OU PROFUNDA",null,"4º -EF",null,"D",null,"AGUAS DE CANINDU II"]
[null,null,null,null,"EE ANA HERONDINA SOARES SCHYCHOF",null,"EMEF DOM PEDRO DE ALCÂNTARA",null,null,null,null,null,"SURDEZ LEVE OU MODERADA",null,"5º -EF",null,"E",null,"ALPHAVILLE"]
[null,null,null,null,"EE ARLETE ELOÍZA FERREIRA TEIXEIRA",null,"EMEF DOSULINA CHENQUE CHAVES DE ANDRADE",null,null,null,null,null,"SURDOCEGUEIRA",null,"6º -EF",null,"F",null,"ALTOS DA VILA PAIVA"]
[null,null,null,null,"EE ARMANDO D´OLIVEIRA COBRA",null,"EMEF ELIZABETE DE PAULA HONORATO",null,null,null,null,null,"FISICA - PARALISIA CEREBRAL",null,"7º -EF",null,"G",null,"ALTOS DE SAO JOSE"]
[null,null,null,null,"EE AYR PICANÇO BARBOSA DE ALMEIDA",null,"EMEF ELZA REGINA FERREIRA BEVILACQUA",null,null,null,null,null,"FISICA - CADEIRANTE",null,"8º -EF",null,"H",null,"ALTOS DO BOSQUE"]
[null,null,null,null,"EE BAIRRO DO TURVO",null,"EMEF EMMANUEL ANTONIO DOS SANTOS",null,null,null,null,null,"FISICA - OUTROS (ESPECIFICAR)",null,"9º -EF",null,"I",null,"ALTOS DO CAETE"]
[null,null,null,null,"EE BENEDITO MATARAZZO",null,"EMEF FLÁVIO BERLING MACEDO ",null,null,null,null,null,"SINDROME DE DOWN",null,"1º -EM",null,"J",null,"BAIRRINHO"]
[null,null,null,null,"EE BENGALAR ",null,"EMEF GERALDO DE ALMEIDA",null,null,null,null,null,"INTELECTUAL",null,"2º -EM",null,"K",null,"BEIRA RIO"]
[null,null,null,null,"EE BOM SUCESSO ",null,"EMEF HÉLIO AUGUSTO DE SOUZA",null,null,null,null,null,"AUTISTA INFANTIL",null,"3º -EM",null,"L",null,"BENGALAR"]
[null,null,null,null,"EE CENTRO ESTADUAL DE EDUCAÇÃO SUPLETIVA  - CEEJA",null,"EMEF HÉLIO WALTER BEVILACQUA",null,null,null,null,null,"SINDROME DE ASPERGER",null,"EJA I",null,"M",null,"BICA D'AGUA"]
[null,null,null,null,"EE DAS PERNAMBUCANAS",null,"EMEF HOMERA DA SILVA BRAGA",null,null,null,null,null,"SINDORME DE RETT",null,"EJA II",null,"N",null,"BOM RETIRO"]
[null,null,null,null,"EE DIACONO HAMILTON BONTORIM DE SOUZA",null,"EMEF IGNÊZ SAGULA FOSSÁ",null,null,null,null,null,"TRANSTORNO DESINTEGRATIVO DA INFANCIA",null,"1º TERMO-EJA",null,null,null,"BOM SUCESSO"]
[null,null,null,null,"EE DINORÁ PEREIRA RAMOS DE BRITO",null,"EMEF ILDETE MENDONÇA BARBOSA",null,null,null,null,null,null,null,"2º TERMO-EJA",null,null,null,"BOSQUE DOS EUCALIPTOS"]
[null,null,null,null,"EE DIRCE ELIAS",null,"EMEF ILGA PUSPLATAIS",null,null,null,null,null,null,null,"3º TERMO-EJA",null,null,null,"BOSQUE DOS IPES"]
[null,null,null,null,"EE DOMINGOS DE MACEDO CUSTÓDIO",null,"EMEF JACYRA VIEIRA BARACHO",null,null,null,null,null,null,null,"4º TERMO-EJA",null,null,null,"BOSQUE IMPERIAL"]
[null,null,null,null,"EE DORIVAL MONTEIRO DE OLIVEIRA",null,"EMEF LEONOR PEREIRA NUNES GALVÃO",null,null,null,null,null,null,null,"B I",null,null,null,"BRASALPES"]
[null,null,null,null,"EE ÉDERA IRENE PEREIRA DE OLIVEIRA CARDOSO",null,"EMEF LÚCIA PEREIRA RODRIGUES",null,null,null,null,null,null,null,"B II",null,null,null,"BUQUIRINHA I"]
[null,null,null,null,"EE EDEWALDO FREITAS GAIA SANT´ANA",null,"EMEF LUIZ LEITE",null,null,null,null,null,null,null,"INF I",null,null,null,"BUQUIRINHA II"]
[null,null,null,null,"EE EDGAR DE MELLO MATTOS DE CASTRO, ENG",null,"EMEF LUZIA LEVINA APARECIDA BORGES",null,null,null,null,null,null,null,"INF II",null,null,null,"CACHOEIRA DO RONCADOR"]
[null,null,null,null,"EE ELÍDIA TEDESCO DE OLIVEIRA",null,"EMEF MARIA AMÉLIA WAKAMATSU",null,null,null,null,null,null,null,"PRÉ I",null,null,null,"CAJURU"]
[null,null,null,null,"EE ELMANO FERREIRA VELOSO",null,"EMEF MARIA APARECIDA SANTOS RONCONI",null,null,null,null,null,null,null,"PRÉ II",null,null,null,"CAMBUCA"]
[null,null,null,null,"EE ESTEVAM FERRI ",null,"EMEF MARIA AUGUSTA MOREIRA DA COSTA",null,null,null,null,null,null,null,null,null,null,null,"CAMPO DOS ALEMAES"]
[null,null,null,null,"EE EUCLIDES BUENO MIRAGAIA",null,"EMEF MARIA DE MELO",null,null,null,null,null,null,null,null,null,null,null,"CAMPOS DE SAO JOSE"]
[null,null,null,null,"EE EUNICE CORDEIRO DOS SANTOS RODRIGUES",null,"EMEF MARIA NAZARETH DE MOURA VERONESE",null,null,null,null,null,null,null,null,null,null,null,"CAPAO GROSSO I"]
[null,null,null,null,"EE FELÍCIO SAVASTANO",null,"EMEF MARIA OFÉLIA VENEZIANI PEDROSA",null,null,null,null,null,null,null,null,null,null,null,"CAPAO GROSSO II"]
[null,null,null,null,"EE FRANCISCO JOÃO LEME",null,"EMEF MARIANA TEIXEIRA CORNÉLIO",null,null,null,null,null,null,null,null,null,null,null,"CAPUAVA"]
[null,null,null,null,"EE FRANCISCO LOPES DE AZEVEDO",null,"EMEF MARTHA ABIB CASTANHO",null,null,null,null,null,null,null,null,null,null,null,"CENTRO"]
[null,null,null,null,"EE FRANCISCO PEREIRA DA SILVA",null,"EMEF MERCEDES CARNEVALLI KLEIN",null,null,null,null,null,null,null,null,null,null,null,"CENTRO INDUSTRIAL ELDORADO"]
[null,null,null,null,"EE GERALDINA COELHO MONTEIRO",null,"EMEF MERCEDES RACHID EDWARDS",null,null,null,null,null,null,null,null,null,null,null,"CHACARAS ARAUJO I"]
[null,null,null,null,"EE HENRIQUETA COSTA PORTO",null,"EMEF MOACYR BENEDICTO DE SOUZA",null,null,null,null,null,null,null,null,null,null,null,"CHACARAS ARAUJO II"]
[null,null,null,null,"EE ILZA IRMA MOELLER COPPIO",null,"EMEF NORMA DE CONTI SIMÃO",null,null,null,null,null,null,null,null,null,null,null,"CHACARAS BOA ESPERANCA"]
[null,null,null,null,"EE IRACEMA RIBEIRO DE FREITAS",null,"EMEF OTACÍLIA MADUREIRA DE MOURA",null,null,null,null,null,null,null,null,null,null,null,"CHACARAS BOA VISTA"]
[null,null,null,null,"EE JARDIM REPÚBLICA",null,"EMEF PALMYRA SANT'ANNA",null,null,null,null,null,null,null,null,null,null,null,"CHACARAS DOS EUCALIPTOS"]
[null,null,null,null,"EE JENI DAVI BACHA",null,"EMEF PINHEIRINHO DOS PALMARES",null,null,null,null,null,null,null,null,null,null,null,"CHACARAS HAWAI"]
[null,null,null,null,"EE JOÃO CURSINO",null,"EMEF POSSIDÔNIO JOSÉ DE FREITAS",null,null,null,null,null,null,null,null,null,null,null,"CHACARAS JARDIM SERIMBURA (SATELITE)"]
[null,null,null,null,"EE JOÃO FERREIRA DOS SANTOS",null,"EMEF POSSIDÔNIO SALLES",null,null,null,null,null,null,null,null,null,null,null,"CHACARAS REUNIDAS"]
[null,null,null,null,"EE JOÃO MOROTTI FILHO",null,"EMEF RIO COMPRIDO",null,null,null,null,null,null,null,null,null,null,null,"CHACARAS SANTA HELENA"]
[null,null,null,null,"EE JOAQUIM ANDRADE MEIRELLES",null,"EMEF ROSA TOMITA",null,null,null,null,null,null,null,null,null,null,null,"CHACARAS SAO BENEDITO"]
[null,null,null,null,"EE JOAQUIM DE MOURA CANDELÁRIA",null,"EMEF RUTH NUNES DA TRINDADE",null,null,null,null,null,null,null,null,null,null,null,"CHACARAS SAO JOSE"]
[null,null,null,null,"EE JORGE BARBOSA MOREIRA",null,"EMEF SEBASTIANA COBRA",null,null,null,null,null,null,null,null,null,null,null,"CHACARAS TAKITANI"]
[null,null,null,null,"EE JOSÉ ANTONIO COUTINHO CONDINO",null,"EMEF SILVANA MARIA RIBEIRO DE ALMEIDA",null,null,null,null,null,null,null,null,null,null,null,"CIDADE MORUMBI"]
[null,null,null,null,"EE JOSÉ FREDERICO MARQUES",null,"EMEF SÔNIA MARIA PEREIRA DA SILVA",null,null,null,null,null,null,null,null,null,null,null,"CIDADE VISTA VERDE"]
[null,null,null,null,"EE JOSÉ MARIOTTO FERREIRA, MAJ AV",null,"EMEF THEREZINHA DO MENINO JESUS SOARES DO NASCIMENTO",null,null,null,null,null,null,null,null,null,null,null,"COLINAS DO PARATEHY"]
[null,null,null,null,"EE JOSÉ VIEIRA MACEDO",null,"EMEF VERA BABO DE OLIVEIRA",null,null,null,null,null,null,null,null,null,null,null,"COLINAS DO PARAYBA"]
[null,null,null,null,"EE JÚLIA BERNARDES RODRIGUES",null,"EMEF VERA LÚCIA CARNEVALLI BARRETO",null,null,null,null,null,null,null,null,null,null,null,"COMUNIDADE SANTA CRUZ"]
[null,null,null,null,"EE JUVENAL MACHADO DE ARAÚJO",null,"EMEF WALDEMAR RAMOS",null,null,null,null,null,null,null,null,null,null,null,"CONDOMINIO CHACARAS DOS EUCALIPTOS"]
[null,null,null,null,"EE LOURDES MARIA DE CAMARGO",null,"EMEI ANA LÚCIA DE CASTRO MICHELETO",null,null,null,null,null,null,null,null,null,null,null,"CONDOMINIO RESIDENCIAL ELDORADO"]
[null,null,null,null,"EE MALBA TEREZA FERRAZ CAMPANER",null,"EMEI ÂNGELA DE CASTRO FERNANDES LOPES",null,null,null,null,null,null,null,null,null,null,null,"CONDOMINIO RESIDENCIAL JK"]
[null,null,null,null,"EE MÁRCIA HELENA BARBOSA LINO",null,"EMEI ARLINDO CAETANO FILHO ",null,null,null,null,null,null,null,null,null,null,null,"CONDOMINIO RESIDENCIAL TERRINHA"]
[null,null,null,null,"EE MARIA APARECIDA VERÍSSIMO MADUREIRA RAMOS",null,"EMEI ARTUR APARECIDO DA ROSA - R09",null,null,null,null,null,null,null,null,null,null,null,"CONDOMINIO RESIDENCIAL VILLAGIO FAZENDAO"]
[null,null,null,null,"EE MARIA DOLORES VERÍSSIMO MADUREIRA",null,"EMEI CASSIANO RICARDO",null,null,null,null,null,null,null,null,null,null,null,"CONJUNTO HABILTACIONAL RONDA"]
[null,null,null,null,"EE MARIA GOMIDE SANTOS DE SOUZA",null,"EMEI CHÁCARAS REUNIDASS ",null,null,null,null,null,null,null,null,null,null,null,"CONJUNTO HABITACIONAL DOM PEDRO I"]
[null,null,null,null,"EE MARIA LUIZA DE GUIMARÃES MEDEIROS",null,"EMEI CLEANIR SANTOS MALDONADO CAMPOY - R09",null,null,null,null,null,null,null,null,null,null,null,"CONJUNTO HABITACIONAL DOM PEDRO II"]
[null,null,null,null,"EE MARILDA FERREIRA DE BRITO BARROS PEREIRA",null,"EMEI CREMILDA ALVES DE OLIVEIRA AZEVEDO - R11",null,null,null,null,null,null,null,null,null,null,null,"CONJUNTO HABITACIONAL ELMANO FERREIRA VELOSO"]
[null,null,null,null,"EE MAURÍCIO ANISSE CURY, DR",null,"EMEI DENISE PRATES FERNANDES ROCHA",null,null,null,null,null,null,null,null,null,null,null,"CONJUNTO HABITACIONAL INTERVALE"]
[null,null,null,null,"EE MIGUEL NAKED, MAJ",null,"EMEI DOMINGOS DE MACEDO CUSTÓDIO",null,null,null,null,null,null,null,null,null,null,null,"CONJUNTO HABITACIONAL NOSSO TETO"]
[null,null,null,null,"EE MOABE CURY",null,"EMEI ÉDERA IRENE PEREIRA DE OLIVEIRA CARDOSO ",null,null,null,null,null,null,null,null,null,null,null,"CONJUNTO HABITACIONAL PAPA JOAO PAULO II"]
[null,null,null,null,"EE NAJLA JAMILE SANTOS MACHADO ARAÚJO",null,"EMEI ELZA FERREIRA RAHAL - R01",null,null,null,null,null,null,null,null,null,null,null,"CONJUNTO HABITACIONAL PM SAO JUDAS TADEU "]
[null,null,null,null,"EE NELSON DO NASCIMENTO MONTEIRO",null,"EMEI FEBRÔNIO PEREIRA GOMES",null,null,null,null,null,null,null,null,null,null,null,"CONJUNTO HABITACIONAL SAO JUDAS TADEU "]
[null,null,null,null,"EE NELSON FERREIRA DA SILVA",null,"EMEI IDELENA MENEZES TREFÍLIO DE CARVALHO",null,null,null,null,null,null,null,null,null,null,null,"CONJUNTO HABITACIONAL TRINTA E UM DE MARCO"]
[null,null,null,null,"EE NILCE CONCEIÇÃO LIMA",null,"EMEI IRACEMA OLIVEIRA DE MELLO - R07",null,null,null,null,null,null,null,null,null,null,null,"CONJUNTO INTEGRACAO"]
[null,null,null,null,"EE OLÍMPIO CATÃO",null,"EMEI JANE PALUMBO",null,null,null,null,null,null,null,null,null,null,null,"CONJUNTO RESIDENCIA PLANALTO"]
[null,null,null,null,"EE PEDRO MASCARENHAS, DR",null,"EMEI JARDIM MORUMBI, DO - R10",null,null,null,null,null,null,null,null,null,null,null,"CONJUNTO RESIDENCIAL CAJURU I"]
[null,null,null,null,"EE PEDRO MAZZA",null,"EMEI JARDIM SANTA EDWIGES",null,null,null,null,null,null,null,null,null,null,null,"CONJUNTO RESIDENCIAL CAJURU III"]
[null,null,null,null,"EE RONDON, MAL",null,"EMEI JOÃO MARCONDES GUIMARÃES, PADRE",null,null,null,null,null,null,null,null,null,null,null,"CONJUNTO RESIDENCIAL CIDADE JARDIM"]
[null,null,null,null,"EE RUI RODRIGUES DÓRIA, DR",null,"EMEI JOSÉ ANTERO CURSINO DOS SANTOS - R08 ",null,null,null,null,null,null,null,null,null,null,null,"CONJUNTO RESIDENCIAL JARDIM SATELITE"]
[null,null,null,null,"EE RUTH COUTINHO SOBREIRO",null,"EMEI JOSÉ MADUREIRA LEBRÃO",null,null,null,null,null,null,null,null,null,null,null,"CONJUNTO RESIDENCIAL MONTE CASTELO"]
[null,null,null,null,"EE SANT´ANA DO PARAÍBA",null,"EMEI JOSÉ PURCINI",null,null,null,null,null,null,null,null,null,null,null,"CONJUNTO RESIDENCIAL MORADA DO SOL"]
[null,null,null,null,"EE SÔNIA MARIA ALEXANDRE PEREIRA",null,"EMEI JOSÉ RUBENS FRANCO BONAFÉ, PADRE - R12",null,null,null,null,null,null,null,null,null,null,null,"CONJUNTO RESIDENCIAL VALE DOS PINHEIROS"]
[null,null,null,null,"EE SUELY ANTUNES DE MELLO",null,"EMEI JOSÉ SODÉRO BITENCOURT",null,null,null,null,null,null,null,null,null,null,null,"CONUNTO HABITACIONAL VALE DOS PINHEIROS"]
[null,null,null,null,"EE UBIRAJARA BERNA DE CHIARA",null,"EMEI LADIEL BENEDITO DE CARVALHO ",null,null,null,null,null,null,null,null,null,null,null,"COSTINHA"]
[null,null,null,null,"EE VALMAR LOURENÇO SANTIAGO",null,"EMEI LOURDES DE OLIVEIRA MENDES",null,null,null,null,null,null,null,null,null,null,null,"DESEMBARGADOR MARTINS PEREIRA"]
[null,null,null,null,"EE WILMA RAGAZZI BOCCARDO",null,"EMEI LÚCIA MARIA DO AMARAL ",null,null,null,null,null,null,null,null,null,null,null,"EUGENIO DE MELO"]
[null,null,null,null,"EE XENOFONTE STRABÃO DE CASTRO",null,"EMEI LUIZ SUNDFELD - R05",null,null,null,null,null,null,null,null,null,null,null,"FAZENDA BOM RETIRO"]
[null,null,null,null,"EE YOSHIYA TAKAOKA",null,"EMEI MARIA ALICE PASQUARELLI",null,null,null,null,null,null,null,null,null,null,null,"FAZENDA HONDA"]
[null,null,null,null,"EE ZILAH FERREIRA VIAGI PASSARELLI DE CAMPOS",null,"EMEI MARIA DA GLÓRIA MARIANO SANTOS",null,null,null,null,null,null,null,null,null,null,null,"FAZENDA JANUARIA (REGIAO)"]
[null,null,null,null,"EE ZILDA ALTIMIRA SOCI",null,"EMEI MARIA EZEQUIEL SANT'ANNA - R08",null,null,null,null,null,null,null,null,null,null,null,"FAZENDA MARSON"]
[null,null,null,null,null,null,"EMEI MARIA JOSÉ GUIDO BROGLIATO FREIRE - R10",null,null,null,null,null,null,null,null,null,null,null,"FAZENDA TAIRA"]
[null,null,null,null,null,null,"EMEI MARILDA APARECIDA MONTEMÓR",null,null,null,null,null,null,null,null,null,null,null,"FAZENDA TAKANASHI"]
[null,null,null,null,null,null,"EMEI MÁRIO CAMPANER ",null,null,null,null,null,null,null,null,null,null,null,"FAZENDA TONINHO FERREIRA"]
[null,null,null,null,null,null,"EMEI NORMA LÚCIA RODRIGUES DE ALMEIDA - R05",null,null,null,null,null,null,null,null,null,null,null,"FAZENDA VILA FRANCA"]
[null,null,null,null,null,null,"EMEI OLGA FRANCO CUSTÓDIO",null,null,null,null,null,null,null,null,null,null,null,"FLORESTA"]
[null,null,null,null,null,null,"EMEI SANDRA REGINA DE ALMEIDA PAULO ",null,null,null,null,null,null,null,null,null,null,null,"FREITAS"]
[null,null,null,null,null,null,"EMEI TORATARO TAKITANI",null,null,null,null,null,null,null,null,null,null,null,"GALO BRANCO"]
[null,null,null,null,null,null,"EMEI VALÉRIA APARECIDA DE ALMEIDA VASCONCELOS",null,null,null,null,null,null,null,null,null,null,null,"GUIRRA"]
[null,null,null,null,null,null,"EMEI VILA SÃO PEDRO ",null,null,null,null,null,null,null,null,null,null,null,"JAGUARI"]
[null,null,null,null,null,null,"EMEI ZELI DE TOLEDO DIAS ",null,null,null,null,null,null,null,null,null,null,null,"JARDIM AEROPORTO"]
[null,null,null,null,null,null,"EMEI ZENAIDE VILALVA DE ARAÚJO ",null,null,null,null,null,null,null,null,null,null,null,"JARDIM ALTOS DE SANTANA"]
[null,null,null,null,null,null,"EMEI ZILDA COSTA DE OLIVEIRA",null,null,null,null,null,null,null,null,null,null,null,"JARDIM ALTOS DO ESPLANADA"]
[null,null,null,null,null,null,"NEI ALADIR MAIA RIBEIRO GOMES - R09",null,null,null,null,null,null,null,null,null,null,null,"JARDIM ALVORADA"]
[null,null,null,null,null,null,"NEI ALTO DA PONTE, DO - R12",null,null,null,null,null,null,null,null,null,null,null,"JARDIM AMERICA"]
[null,null,null,null,null,null,"NEI ANA ISABEL BARBOSA - R13",null,null,null,null,null,null,null,null,null,null,null,"JARDIM AMERICANO"]
[null,null,null,null,null,null,"NEI BAIRRO DOS FREITAS - R11",null,null,null,null,null,null,null,null,null,null,null,"JARDIM ANCHIETA"]
[null,null,null,null,null,null,"NEI DOROTI DA SILVA CUNHA ",null,null,null,null,null,null,null,null,null,null,null,"JARDIM ANHEMBI"]
[null,null,null,null,null,null,"NEI ELZA MARIA DIAS MENDONÇA - R01",null,null,null,null,null,null,null,null,null,null,null,"JARDIM APARECIDA"]
[null,null,null,null,null,null,"NEI EUGÊNIO DE MELO - R05",null,null,null,null,null,null,null,null,null,null,null,"JARDIM APOLO"]
[null,null,null,null,null,null,"NEI JOSÉ PAULINO BICUDO ",null,null,null,null,null,null,null,null,null,null,null,"JARDIM AQUARIUS"]
[null,null,null,null,null,null,"NEI MARIANITA DE OLIVEIRA PEREIRA SANTOS ",null,null,null,null,null,null,null,null,null,null,null,"JARDIM AUGUSTA"]
[null,null,null,null,null,null,"NEI OSWALDO COPPIO",null,null,null,null,null,null,null,null,null,null,null,"JARDIM AZEVEDO"]
[null,null,null,null,null,null,"NEI RIO COMPRIDO, DO - R10",null,null,null,null,null,null,null,null,null,null,null,"JARDIM BELA VISTA"]
[null,null,null,null,null,null,"NEI SÃO FRANCISCO XAVIER - R13",null,null,null,null,null,null,null,null,null,null,null,"JARDIM BOA VISTA"]
[null,null,null,null,null,null,"NEI VICENTE SIMIÃO LUZ - R07",null,null,null,null,null,null,null,null,null,null,null,"JARDIM BRASILIA"]
[null,null,null,null,null,null,"NEI VILA CÉSAR - R11",null,null,null,null,null,null,null,null,null,null,null,"JARDIM CASSIANO RICARDO"]
[null,null,null,null,null,null,"NEI VILA PAIVA - R13",null,null,null,null,null,null,null,null,null,null,null,"JARDIM CASTANHEIRAS"]
[null,null,null,null,null,null,"NEI VILA SÃO BENEDITO ",null,null,null,null,null,null,null,null,null,null,null,"JARDIM CEREJEIRAS"]
[null,null,null,null,null,null,"NEI VILA SÃO BENTO - R07",null,null,null,null,null,null,null,null,null,null,null,"JARDIM COLINAS"]
[null,null,null,null,null,null,"NEI VILA SÃO GERALDO - R12",null,null,null,null,null,null,null,null,null,null,null,"JARDIM COLONIAL"]
[null,null,null,null,null,null,"IMI ANJELA MARIA DE SOUZA ALVES",null,null,null,null,null,null,null,null,null,null,null,"JARDIM COLORADO"]
[null,null,null,null,null,null,"IMI ARMILINDA LOCATELLI DE MACEDO",null,null,null,null,null,null,null,null,null,null,null,"JARDIM COPACABANA"]
[null,null,null,null,null,null,"IMI BENEDITO CARVALHO DOS SANTOS",null,null,null,null,null,null,null,null,null,null,null,"JARDIM CRUZEIRO DO SUL"]
[null,null,null,null,null,null,"IMI DIMÉIA MARIA FERREIRA DINIZ ENDO",null,null,null,null,null,null,null,null,null,null,null,"JARDIM DA GRANJA"]
[null,null,null,null,null,null,"IMI DOM PEDRO DE ALCÂNTARA",null,null,null,null,null,null,null,null,null,null,null,"JARDIM DAS AZALEIAS"]
[null,null,null,null,null,null,"IMI FERNANDO TAO DE AZEVEDO",null,null,null,null,null,null,null,null,null,null,null,"JARDIM DAS FLORES"]
[null,null,null,null,null,null,"IMI FLÁVIO LENZI",null,null,null,null,null,null,null,null,null,null,null,"JARDIM DAS INDUSTRIAS"]
[null,null,null,null,null,null,"IMI HELENA FERREIRA",null,null,null,null,null,null,null,null,null,null,null,"JARDIM DAS PAINEIRAS I "]
[null,null,null,null,null,null,"IMI HELENA VAZ DE LIMA SOLIVA (LIONS CLUBE CENTRO)",null,null,null,null,null,null,null,null,null,null,null,"JARDIM DAS PAINEIRAS II"]
[null,null,null,null,null,null,"IMI JESUS DE NAZARÉ",null,null,null,null,null,null,null,null,null,null,null,"JARDIM DEL REY"]
[null,null,null,null,null,null,"IMI JOANA MATTAR DE OLIVEIRA",null,null,null,null,null,null,null,null,null,null,null,"JARDIM DIAMANTE"]
[null,null,null,null,null,null,"IMI JOÃO LOPES SIMÕES",null,null,null,null,null,null,null,null,null,null,null,"JARDIM DO CEU"]
[null,null,null,null,null,null,"IMI MARIA DE LOURDES CONSTANTINO",null,null,null,null,null,null,null,null,null,null,null,"JARDIM DO GOLFE"]
[null,null,null,null,null,null,"IMI MARILDA FERREIRA DE BRITO BARROS PEREIRA",null,null,null,null,null,null,null,null,null,null,null,"JARDIM DO LAGO"]
[null,null,null,null,null,null,"IMI MAROCA VENEZIANI",null,null,null,null,null,null,null,null,null,null,null,"JARDIM DOS BANDEIRANTES"]
[null,null,null,null,null,null,"IMI POUSADA DO VALE",null,null,null,null,null,null,null,null,null,null,null,"JARDIM DOS COQUEIROS"]
[null,null,null,null,null,null,null,null,null,null,null,null,null,null,null,null,null,null,"JARDIM EBENEZER"]
[null,null,null,null,null,null,null,null,null,null,null,null,null,null,null,null,null,null,"JARDIM ESPLANADA I"]
[null,null,null,null,null,null,null,null,null,null,null,null,null,null,null,null,null,null,"JARDIM ESPLANADA II"]
[null,null,null,null,null,null,null,null,null,null,null,null,null,null,null,null,null,null,"JARDIM ESTORIL"]
[null,null,null,null,null,null,null,null,null,null,null,null,null,null,null,null,null,null,"JARDIM FATIMA"]
[null,null,null,null,null,null,null,null,null,null,null,null,null,null,null,null,null,null,"JARDIM FLORADAS DE SAO JOSE"]
[null,null,null,null,null,null,null,null,null,null,null,null,null,null,null,null,null,null,"JARDIM FREI LEOPOLDO"]
[null,null,null,null,null,null,null,null,null,null,null,null,null,null,null,null,null,null,"JARDIM GUIMARAES"]
[null,null,null,null,null,null,null,null,null,null,null,null,null,null,null,null,null,null,"JARDIM HELENA"]
[null,null,null,null,null,null,null,null,null,null,null,null,null,null,null,null,null,null,"JARDIM IMPERIAL"]
[null,null,null,null,null,null,null,null,null,null,null,null,null,null,null,null,null,null,"JARDIM IPE"]
[null,null,null,null,null,null,null,null,null,null,null,null,null,null,null,null,null,null,"JARDIM IRACEMA"]
[null,null,null,null,null,null,null,null,null,null,null,null,null,null,null,null,null,null,"JARDIM ISMENIA"]
[null,null,null,null,null,null,null,null,null,null,null,null,null,null,null,null,null,null,"JARDIM ITAPUA"]
[null,null,null,null,null,null,null,null,null,null,null,null,null,null,null,null,null,null,"JARDIM JACI"]
[null,null,null,null,null,null,null,null,null,null,null,null,null,null,null,null,null,null,"JARDIM JULIANA"]
[null,null,null,null,null,null,null,null,null,null,null,null,null,null,null,null,null,null,"JARDIM JUSSARA"]
[null,null,null,null,null,null,null,null,null,null,null,null,null,null,null,null,null,null,"JARDIM LIMOEIRO"]
[null,null,null,null,null,null,null,null,null,null,null,null,null,null,null,null,null,null,"JARDIM MADUREIRA"]
[null,null,null,null,null,null,null,null,null,null,null,null,null,null,null,null,null,null,"JARDIM MAJESTIC"]
[null,null,null,null,null,null,null,null,null,null,null,null,null,null,null,null,null,null,"JARDIM MARACANA"]
[null,null,null,null,null,null,null,null,null,null,null,null,null,null,null,null,null,null,"JARDIM MARGARETH"]
[null,null,null,null,null,null,null,null,null,null,null,null,null,null,null,null,null,null,"JARDIM MARIANA I "]
[null,null,null,null,null,null,null,null,null,null,null,null,null,null,null,null,null,null,"JARDIM MARIANA II"]
[null,null,null,null,null,null,null,null,null,null,null,null,null,null,null,null,null,null,"JARDIM MARINGA"]
[null,null,null,null,null,null,null,null,null,null,null,null,null,null,null,null,null,null,"JARDIM MARITEIA"]
[null,null,null,null,null,null,null,null,null,null,null,null,null,null,null,null,null,null,"JARDIM MATARAZZO"]
[null,null,null,null,null,null,null,null,null,null,null,null,null,null,null,null,null,null,"JARDIM MESQUITA"]
[null,null,null,null,null,null,null,null,null,null,null,null,null,null,null,null,null,null,"JARDIM MINAS GERAIS"]
[null,null,null,null,null,null,null,null,null,null,null,null,null,null,null,null,null,null,"JARDIM MOTORAMA"]
[null,null,null,null,null,null,null,null,null,null,null,null,null,null,null,null,null,null,"JARDIM NOVA AMERICA"]
[null,null,null,null,null,null,null,null,null,null,null,null,null,null,null,null,null,null,"JARDIM NOVA DETROIT"]
[null,null,null,null,null,null,null,null,null,null,null,null,null,null,null,null,null,null,"JARDIM NOVA ESPERANCA (BANHADO)"]
[null,null,null,null,null,null,null,null,null,null,null,null,null,null,null,null,null,null,"JARDIM NOVA EUROPA"]
[null,null,null,null,null,null,null,null,null,null,null,null,null,null,null,null,null,null,"JARDIM NOVA FLORIDA"]
[null,null,null,null,null,null,null,null,null,null,null,null,null,null,null,null,null,null,"JARDIM NOVA MICHIGAN I"]
[null,null,null,null,null,null,null,null,null,null,null,null,null,null,null,null,null,null,"JARDIM NOVA MICHIGAN II"]
[null,null,null,null,null,null,null,null,null,null,null,null,null,null,null,null,null,null,"JARDIM NOVA REPUBLICA"]
[null,null,null,null,null,null,null,null,null,null,null,null,null,null,null,null,null,null,"JARDIM OLIMPIA"]
[null,null,null,null,null,null,null,null,null,null,null,null,null,null,null,null,null,null,"JARDIM ORIENTAL"]
[null,null,null,null,null,null,null,null,null,null,null,null,null,null,null,null,null,null,"JARDIM ORIENTE"]
[null,null,null,null,null,null,null,null,null,null,null,null,null,null,null,null,null,null,"JARDIM OSWALDO CRUZ"]
[null,null,null,null,null,null,null,null,null,null,null,null,null,null,null,null,null,null,"JARDIM OURO PRETO"]
[null,null,null,null,null,null,null,null,null,null,null,null,null,null,null,null,null,null,"JARDIM PALMEIRAS DE SAO JOSE"]
[null,null,null,null,null,null,null,null,null,null,null,null,null,null,null,null,null,null,"JARDIM PARAISO DO SOL"]
[null,null,null,null,null,null,null,null,null,null,null,null,null,null,null,null,null,null,"JARDIM PARARANGABA"]
[null,null,null,null,null,null,null,null,null,null,null,null,null,null,null,null,null,null,"JARDIM PAULISTA"]
[null,null,null,null,null,null,null,null,null,null,null,null,null,null,null,null,null,null,"JARDIM PETROPOLIS"]
[null,null,null,null,null,null,null,null,null,null,null,null,null,null,null,null,null,null,"JARDIM PORTUGAL"]
[null,null,null,null,null,null,null,null,null,null,null,null,null,null,null,null,null,null,"JARDIM PRIMAVERA I "]
[null,null,null,null,null,null,null,null,null,null,null,null,null,null,null,null,null,null,"JARDIM PRIMAVERA II"]
[null,null,null,null,null,null,null,null,null,null,null,null,null,null,null,null,null,null,"JARDIM RENATA"]
[null,null,null,null,null,null,null,null,null,null,null,null,null,null,null,null,null,null,"JARDIM REPUBLICA"]
[null,null,null,null,null,null,null,null,null,null,null,null,null,null,null,null,null,null,"JARDIM REPUBLICA NOVA"]
[null,null,null,null,null,null,null,null,null,null,null,null,null,null,null,null,null,null,"JARDIM SAN MARINO"]
[null,null,null,null,null,null,null,null,null,null,null,null,null,null,null,null,null,null,"JARDIM SAN RAFAEL"]
[null,null,null,null,null,null,null,null,null,null,null,null,null,null,null,null,null,null,"JARDIM SANTA ALICE"]
[null,null,null,null,null,null,null,null,null,null,null,null,null,null,null,null,null,null,"JARDIM SANTA CECILIA I "]
[null,null,null,null,null,null,null,null,null,null,null,null,null,null,null,null,null,null,"JARDIM SANTA CECILIA II"]
[null,null,null,null,null,null,null,null,null,null,null,null,null,null,null,null,null,null,"JARDIM SANTA EDWIGES"]
[null,null,null,null,null,null,null,null,null,null,null,null,null,null,null,null,null,null,"JARDIM SANTA FE"]
[null,null,null,null,null,null,null,null,null,null,null,null,null,null,null,null,null,null,"JARDIM SANTA HERMINIA"]
[null,null,null,null,null,null,null,null,null,null,null,null,null,null,null,null,null,null,"JARDIM SANTA INES I"]
[null,null,null,null,null,null,null,null,null,null,null,null,null,null,null,null,null,null,"JARDIM SANTA INES II"]
[null,null,null,null,null,null,null,null,null,null,null,null,null,null,null,null,null,null,"JARDIM SANTA INES III"]
[null,null,null,null,null,null,null,null,null,null,null,null,null,null,null,null,null,null,"JARDIM SANTA JULIA"]
[null,null,null,null,null,null,null,null,null,null,null,null,null,null,null,null,null,null,"JARDIM SANTA LUCIA"]
[null,null,null,null,null,null,null,null,null,null,null,null,null,null,null,null,null,null,"JARDIM SANTA LUZIA"]
[null,null,null,null,null,null,null,null,null,null,null,null,null,null,null,null,null,null,"JARDIM SANTA MATILDE"]
[null,null,null,null,null,null,null,null,null,null,null,null,null,null,null,null,null,null,"JARDIM SANTA RITA"]
[null,null,null,null,null,null,null,null,null,null,null,null,null,null,null,null,null,null,"JARDIM SANTA ROSA"]
[null,null,null,null,null,null,null,null,null,null,null,null,null,null,null,null,null,null,"JARDIM SANTA SOFIA"]
[null,null,null,null,null,null,null,null,null,null,null,null,null,null,null,null,null,null,"JARDIM SANTAREM"]
[null,null,null,null,null,null,null,null,null,null,null,null,null,null,null,null,null,null,"JARDIM SANTO ONOFRE"]
[null,null,null,null,null,null,null,null,null,null,null,null,null,null,null,null,null,null,"JARDIM SAO DIMAS"]
[null,null,null,null,null,null,null,null,null,null,null,null,null,null,null,null,null,null,"JARDIM SAO JORGE"]
[null,null,null,null,null,null,null,null,null,null,null,null,null,null,null,null,null,null,"JARDIM SAO JOSE (CENTRO)"]
[null,null,null,null,null,null,null,null,null,null,null,null,null,null,null,null,null,null,"JARDIM SAO JOSE I"]
[null,null,null,null,null,null,null,null,null,null,null,null,null,null,null,null,null,null,"JARDIM SAO JOSE II"]
[null,null,null,null,null,null,null,null,null,null,null,null,null,null,null,null,null,null,"JARDIM SAO JUDAS TADEU"]
[null,null,null,null,null,null,null,null,null,null,null,null,null,null,null,null,null,null,"JARDIM SAO VICENTE"]
[null,null,null,null,null,null,null,null,null,null,null,null,null,null,null,null,null,null,"JARDIM SATELITE"]
[null,null,null,null,null,null,null,null,null,null,null,null,null,null,null,null,null,null,"JARDIM SOUTO"]
[null,null,null,null,null,null,null,null,null,null,null,null,null,null,null,null,null,null,"JARDIM TELESPARK"]
[null,null,null,null,null,null,null,null,null,null,null,null,null,null,null,null,null,null,"JARDIM TERRAS DO SUL "]
[null,null,null,null,null,null,null,null,null,null,null,null,null,null,null,null,null,null,"JARDIM TOPAZIO"]
[null,null,null,null,null,null,null,null,null,null,null,null,null,null,null,null,null,null,"JARDIM TRES JOSE"]
[null,null,null,null,null,null,null,null,null,null,null,null,null,null,null,null,null,null,"JARDIM UIRA"]
[null,null,null,null,null,null,null,null,null,null,null,null,null,null,null,null,null,null,"JARDIM UNIVERSO"]
[null,null,null,null,null,null,null,null,null,null,null,null,null,null,null,null,null,null,"JARDIM VALE DO SOL"]
[null,null,null,null,null,null,null,null,null,null,null,null,null,null,null,null,null,null,"JARDIM VALE PARAISO"]
[null,null,null,null,null,null,null,null,null,null,null,null,null,null,null,null,null,null,"JARDIM VALPARAIBA"]
[null,null,null,null,null,null,null,null,null,null,null,null,null,null,null,null,null,null,"JARDIM VENEZA"]
[null,null,null,null,null,null,null,null,null,null,null,null,null,null,null,null,null,null,"JARDM PARAISO"]
[null,null,null,null,null,null,null,null,null,null,null,null,null,null,null,null,null,null,"JARDM ROSARIO"]
[null,null,null,null,null,null,null,null,null,null,null,null,null,null,null,null,null,null,"JARDM SANTA MADALENA"]
[null,null,null,null,null,null,null,null,null,null,null,null,null,null,null,null,null,null,"JARDM SAO LEOPOLDO"]
[null,null,null,null,null,null,null,null,null,null,null,null,null,null,null,null,null,null,"JARIDM SUL"]
[null,null,null,null,null,null,null,null,null,null,null,null,null,null,null,null,null,null,"JOQUEI CLUBE (URBANOVA)"]
[null,null,null,null,null,null,null,null,null,null,null,null,null,null,null,null,null,null,"LAVAPES"]
[null,null,null,null,null,null,null,null,null,null,null,null,null,null,null,null,null,null,"LOTEAMENTO ESPELHO D'AGUA"]
[null,null,null,null,null,null,null,null,null,null,null,null,null,null,null,null,null,null,"LOTEAMENTO RESERVA DA BARRA"]
[null,null,null,null,null,null,null,null,null,null,null,null,null,null,null,null,null,null,"LOTEAMENTO RESERVA DA FIGUEIRA"]
[null,null,null,null,null,null,null,null,null,null,null,null,null,null,null,null,null,null,"LOTEAMENTO SANTA RITA (BOM RETIRO)"]
[null,null,null,null,null,null,null,null,null,null,null,null,null,null,null,null,null,null,"MARTINS GUIMARAES"]
[null,null,null,null,null,null,null,null,null,null,null,null,null,null,null,null,null,null,"MATO DENTRO"]
[null,null,null,null,null,null,null,null,null,null,null,null,null,null,null,null,null,null,"MIRANTE DO BUQUIRINHA"]
[null,null,null,null,null,null,null,null,null,null,null,null,null,null,null,null,null,null,"MIRANTE DO VALE"]
[null,null,null,null,null,null,null,null,null,null,null,null,null,null,null,null,null,null,"MONTE CASTELO"]
[null,null,null,null,null,null,null,null,null,null,null,null,null,null,null,null,null,null,"MORADA DO FENIX"]
[null,null,null,null,null,null,null,null,null,null,null,null,null,null,null,null,null,null,"NOVE DE JULHO"]
[null,null,null,null,null,null,null,null,null,null,null,null,null,null,null,null,null,null,"PARQUE DOS IPES"]
[null,null,null,null,null,null,null,null,null,null,null,null,null,null,null,null,null,null,"PARQUE DOS YPES"]
[null,null,null,null,null,null,null,null,null,null,null,null,null,null,null,null,null,null,"PARQUE INDEPENDENCIA"]
[null,null,null,null,null,null,null,null,null,null,null,null,null,null,null,null,null,null,"PARQUE INDUSTRIAL"]
[null,null,null,null,null,null,null,null,null,null,null,null,null,null,null,null,null,null,"PARQUE INTERLAGOS"]
[null,null,null,null,null,null,null,null,null,null,null,null,null,null,null,null,null,null,"PARQUE MARTIM CERERE"]
[null,null,null,null,null,null,null,null,null,null,null,null,null,null,null,null,null,null,"PARQUE NOVA ESPERANCA"]
[null,null,null,null,null,null,null,null,null,null,null,null,null,null,null,null,null,null,"PARQUE NOVO HORIZONTE"]
[null,null,null,null,null,null,null,null,null,null,null,null,null,null,null,null,null,null,"PARQUE RESIDENCIAL AQUARIUS"]
[null,null,null,null,null,null,null,null,null,null,null,null,null,null,null,null,null,null,"PARQUE RESIDENCIAL FLAMBOYANT"]
[null,null,null,null,null,null,null,null,null,null,null,null,null,null,null,null,null,null,"PARQUE RESIDENCIAL SANTO ANTONIO"]
[null,null,null,null,null,null,null,null,null,null,null,null,null,null,null,null,null,null,"PARQUE RESIDENCIAL UNIAO"]
[null,null,null,null,null,null,null,null,null,null,null,null,null,null,null,null,null,null,"PARQUE SANTA RITA"]
[null,null,null,null,null,null,null,null,null,null,null,null,null,null,null,null,null,null,"PARQUE SANTOS DUMONT"]
[null,null,null,null,null,null,null,null,null,null,null,null,null,null,null,null,null,null,"PAU DE SAIA"]
[null,null,null,null,null,null,null,null,null,null,null,null,null,null,null,null,null,null,"PEDRA D' AGUA"]
[null,null,null,null,null,null,null,null,null,null,null,null,null,null,null,null,null,null,"PERNAMBUCANA DE BAIXO"]
[null,null,null,null,null,null,null,null,null,null,null,null,null,null,null,null,null,null,"PERNAMBUCANA DE CIMA"]
[null,null,null,null,null,null,null,null,null,null,null,null,null,null,null,null,null,null,"PINHEIRINHO (URBANOVA)"]
[null,null,null,null,null,null,null,null,null,null,null,null,null,null,null,null,null,null,"PINHEIRINHO DOS PALMARES II"]
[null,null,null,null,null,null,null,null,null,null,null,null,null,null,null,null,null,null,"PORTAL DE MINAS"]
[null,null,null,null,null,null,null,null,null,null,null,null,null,null,null,null,null,null,"PORTAL DO CEU "]
[null,null,null,null,null,null,null,null,null,null,null,null,null,null,null,null,null,null,"PORTAL DOS PASSAROS"]
[null,null,null,null,null,null,null,null,null,null,null,null,null,null,null,null,null,null,"PORTAL SANTA INES"]
[null,null,null,null,null,null,null,null,null,null,null,null,null,null,null,null,null,null,"POUSADA DO VALE "]
[null,null,null,null,null,null,null,null,null,null,null,null,null,null,null,null,null,null,"QUARTO CENTENARIO"]
[null,null,null,null,null,null,null,null,null,null,null,null,null,null,null,null,null,null,"QUINTA DAS FLORES"]
[null,null,null,null,null,null,null,null,null,null,null,null,null,null,null,null,null,null,"RECANTO DA BARONESA"]
[null,null,null,null,null,null,null,null,null,null,null,null,null,null,null,null,null,null,"RECANTO DAS JABUTICABEIRAS"]
[null,null,null,null,null,null,null,null,null,null,null,null,null,null,null,null,null,null,"RECANTO DO CAETE"]
[null,null,null,null,null,null,null,null,null,null,null,null,null,null,null,null,null,null,"RECANTO DO VALE"]
[null,null,null,null,null,null,null,null,null,null,null,null,null,null,null,null,null,null,"RECANTO DOS EUCALIPTOS"]
[null,null,null,null,null,null,null,null,null,null,null,null,null,null,null,null,null,null,"RECANTO DOS PINHEIROS"]
[null,null,null,null,null,null,null,null,null,null,null,null,null,null,null,null,null,null,"RECANTO DOS TAMOIOS"]
[null,null,null,null,null,null,null,null,null,null,null,null,null,null,null,null,null,null,"RECREIO BOA VISTA"]
[null,null,null,null,null,null,null,null,null,null,null,null,null,null,null,null,null,null,"RESERVA DO PARATEHY"]
[null,null,null,null,null,null,null,null,null,null,null,null,null,null,null,null,null,null,"RESIDENCIAL ALTOS DA QUINTA"]
[null,null,null,null,null,null,null,null,null,null,null,null,null,null,null,null,null,null,"RESIDENCIAL ALTOS DOS YPES"]
[null,null,null,null,null,null,null,null,null,null,null,null,null,null,null,null,null,null,"RESIDENCIAL ANA MARIA"]
[null,null,null,null,null,null,null,null,null,null,null,null,null,null,null,null,null,null,"RESIDENCIAL ARMANDO RIGHI"]
[null,null,null,null,null,null,null,null,null,null,null,null,null,null,null,null,null,null,"RESIDENCIAL BELL PARK"]
[null,null,null,null,null,null,null,null,null,null,null,null,null,null,null,null,null,null,"RESIDENCIAL BOSQUE DOS IPES"]
[null,null,null,null,null,null,null,null,null,null,null,null,null,null,null,null,null,null,"RESIDENCIAL CAMBUI"]
[null,null,null,null,null,null,null,null,null,null,null,null,null,null,null,null,null,null,"RESIDENCIAL CAMINHO DAS MONTANHAS"]
[null,null,null,null,null,null,null,null,null,null,null,null,null,null,null,null,null,null,"RESIDENCIAL CAMPO BELO"]
[null,null,null,null,null,null,null,null,null,null,null,null,null,null,null,null,null,null,"RESIDENCIAL DEVILLE"]
[null,null,null,null,null,null,null,null,null,null,null,null,null,null,null,null,null,null,"RESIDENCIAL DOM BOSCO"]
[null,null,null,null,null,null,null,null,null,null,null,null,null,null,null,null,null,null,"RESIDENCIAL DUNAMIS"]
[null,null,null,null,null,null,null,null,null,null,null,null,null,null,null,null,null,null,"RESIDENCIAL ESPLANADA DO SOL"]
[null,null,null,null,null,null,null,null,null,null,null,null,null,null,null,null,null,null,"RESIDENCIAL FREI GALVAO"]
[null,null,null,null,null,null,null,null,null,null,null,null,null,null,null,null,null,null,"RESIDENCIAL GAZZO"]
[null,null,null,null,null,null,null,null,null,null,null,null,null,null,null,null,null,null,"RESIDENCIAL JAGUARY"]
[null,null,null,null,null,null,null,null,null,null,null,null,null,null,null,null,null,null,"RESIDENCIAL JARDIM RODOLFO"]
[null,null,null,null,null,null,null,null,null,null,null,null,null,null,null,null,null,null,"RESIDENCIAL JARDINS"]
[null,null,null,null,null,null,null,null,null,null,null,null,null,null,null,null,null,null,"RESIDENCIAL JATOBA"]
[null,null,null,null,null,null,null,null,null,null,null,null,null,null,null,null,null,null,"RESIDENCIAL JURITIS"]
[null,null,null,null,null,null,null,null,null,null,null,null,null,null,null,null,null,null,"RESIDENCIAL MANTIQUEIRA"]
[null,null,null,null,null,null,null,null,null,null,null,null,null,null,null,null,null,null,"RESIDENCIAL MARTINS PEREIRA"]
[null,null,null,null,null,null,null,null,null,null,null,null,null,null,null,null,null,null,"RESIDENCIAL MONTSERRAT"]
[null,null,null,null,null,null,null,null,null,null,null,null,null,null,null,null,null,null,"RESIDENCIAL PARQUE SANTO ANTONIO"]
[null,null,null,null,null,null,null,null,null,null,null,null,null,null,null,null,null,null,"RESIDENCIAL RIBEIRA (EUGENIO DE MELO)"]
[null,null,null,null,null,null,null,null,null,null,null,null,null,null,null,null,null,null,"RESIDENCIAL RIGHI ARMANDO"]
[null,null,null,null,null,null,null,null,null,null,null,null,null,null,null,null,null,null,"RESIDENCIAL SAO FRANCISCO XAVIER"]
[null,null,null,null,null,null,null,null,null,null,null,null,null,null,null,null,null,null,"RESIDENCIAL SOL NASCENTE"]
[null,null,null,null,null,null,null,null,null,null,null,null,null,null,null,null,null,null,"RESIDENCIAL VERANAS"]
[null,null,null,null,null,null,null,null,null,null,null,null,null,null,null,null,null,null,"RESIDENCIAL VISTA LINDA"]
[null,null,null,null,null,null,null,null,null,null,null,null,null,null,null,null,null,null,"ROYAL PARK"]
[null,null,null,null,null,null,null,null,null,null,null,null,null,null,null,null,null,null,"SANTA MARIA "]
[null,null,null,null,null,null,null,null,null,null,null,null,null,null,null,null,null,null,"SANTO AGOSTINHO DE BAIXO"]
[null,null,null,null,null,null,null,null,null,null,null,null,null,null,null,null,null,null,"SANTO AGOSTINHO DE CIMA"]
[null,null,null,null,null,null,null,null,null,null,null,null,null,null,null,null,null,null,"SANTOS DUMONT"]
[null,null,null,null,null,null,null,null,null,null,null,null,null,null,null,null,null,null,"SAO JOAO"]
[null,null,null,null,null,null,null,null,null,null,null,null,null,null,null,null,null,null,"SAPE"]
[null,null,null,null,null,null,null,null,null,null,null,null,null,null,null,null,null,null,"SERROTE"]
[null,null,null,null,null,null,null,null,null,null,null,null,null,null,null,null,null,null,"SERTAOZINHO"]
[null,null,null,null,null,null,null,null,null,null,null,null,null,null,null,null,null,null,"SETVILLE ALTOS DE SAO JOSE"]
[null,null,null,null,null,null,null,null,null,null,null,null,null,null,null,null,null,null,"SFX - AGUA PRETA"]
[null,null,null,null,null,null,null,null,null,null,null,null,null,null,null,null,null,null,"SFX - ARGENTINO ROSA"]
[null,null,null,null,null,null,null,null,null,null,null,null,null,null,null,null,null,null,"SFX - BAMBU"]
[null,null,null,null,null,null,null,null,null,null,null,null,null,null,null,null,null,null,"SFX - BARREIRA"]
[null,null,null,null,null,null,null,null,null,null,null,null,null,null,null,null,null,null,"SFX - BUGRE"]
[null,null,null,null,null,null,null,null,null,null,null,null,null,null,null,null,null,null,"SFX - CACHOEIRA DO RONCADOR"]
[null,null,null,null,null,null,null,null,null,null,null,null,null,null,null,null,null,null,"SFX - CAFUNDO"]
[null,null,null,null,null,null,null,null,null,null,null,null,null,null,null,null,null,null,"SFX - CANELAR"]
[null,null,null,null,null,null,null,null,null,null,null,null,null,null,null,null,null,null,"SFX - CATETO"]
[null,null,null,null,null,null,null,null,null,null,null,null,null,null,null,null,null,null,"SFX - CENTRO"]
[null,null,null,null,null,null,null,null,null,null,null,null,null,null,null,null,null,null,"SFX - ESTRADA ACLECIA MARCONDES"]
[null,null,null,null,null,null,null,null,null,null,null,null,null,null,null,null,null,null,"SFX - ESTRACA CAPELA SANTA LUZIA"]
[null,null,null,null,null,null,null,null,null,null,null,null,null,null,null,null,null,null,"SFX - ESTRADA DA CACHOEIRA PEDRO DAVID"]
[null,null,null,null,null,null,null,null,null,null,null,null,null,null,null,null,null,null,"SFX - ESTRADA DO ARNALDO"]
[null,null,null,null,null,null,null,null,null,null,null,null,null,null,null,null,null,null,"SFX - ESTRADA EZEQUIEL ALVES GRACIANO"]
[null,null,null,null,null,null,null,null,null,null,null,null,null,null,null,null,null,null,"SFX - ESTRADA PEREIRA LIMA"]
[null,null,null,null,null,null,null,null,null,null,null,null,null,null,null,null,null,null,"SFX - FARTURA"]
[null,null,null,null,null,null,null,null,null,null,null,null,null,null,null,null,null,null,"SFX - FAZENDINHA"]
[null,null,null,null,null,null,null,null,null,null,null,null,null,null,null,null,null,null,"SFX - FERREIRA"]
[null,null,null,null,null,null,null,null,null,null,null,null,null,null,null,null,null,null,"SFX - GRAMINHA"]
[null,null,null,null,null,null,null,null,null,null,null,null,null,null,null,null,null,null,"SFX - GUAXINDIBA"]
[null,null,null,null,null,null,null,null,null,null,null,null,null,null,null,null,null,null,"SFX - GUIRRA"]
[null,null,null,null,null,null,null,null,null,null,null,null,null,null,null,null,null,null,"SFX - LARANJAL"]
[null,null,null,null,null,null,null,null,null,null,null,null,null,null,null,null,null,null,"SFX - LAVRAS"]
[null,null,null,null,null,null,null,null,null,null,null,null,null,null,null,null,null,null,"SFX - MACHADO"]
[null,null,null,null,null,null,null,null,null,null,null,null,null,null,null,null,null,null,"SFX - MARIA BASTIÃO"]
[null,null,null,null,null,null,null,null,null,null,null,null,null,null,null,null,null,null,"SFX - MARTINS"]
[null,null,null,null,null,null,null,null,null,null,null,null,null,null,null,null,null,null,"SFX - MORRO DOS VENTO UIVANTES"]
[null,null,null,null,null,null,null,null,null,null,null,null,null,null,null,null,null,null,"SFX - OLEO PARDO"]
[null,null,null,null,null,null,null,null,null,null,null,null,null,null,null,null,null,null,"SFX - PALMITAL"]
[null,null,null,null,null,null,null,null,null,null,null,null,null,null,null,null,null,null,"SFX - PEDRA DO CAPIM AZUL"]
[null,null,null,null,null,null,null,null,null,null,null,null,null,null,null,null,null,null,"SFX - PEDRA VERMELHA"]
[null,null,null,null,null,null,null,null,null,null,null,null,null,null,null,null,null,null,"SFX - POCINHO"]
[null,null,null,null,null,null,null,null,null,null,null,null,null,null,null,null,null,null,"SFX - PONCIANOS"]
[null,null,null,null,null,null,null,null,null,null,null,null,null,null,null,null,null,null,"SFX - PORTAL DO EQUILIBRIUM"]
[null,null,null,null,null,null,null,null,null,null,null,null,null,null,null,null,null,null,"SFX - POUSO FRIO"]
[null,null,null,null,null,null,null,null,null,null,null,null,null,null,null,null,null,null,"SFX - QUEIXO D'ANTA"]
[null,null,null,null,null,null,null,null,null,null,null,null,null,null,null,null,null,null,"SFX - REMEDIO"]
[null,null,null,null,null,null,null,null,null,null,null,null,null,null,null,null,null,null,"SFX - RIO DAS COBRAS"]
[null,null,null,null,null,null,null,null,null,null,null,null,null,null,null,null,null,null,"SFX - RIO DO PEIXE"]
[null,null,null,null,null,null,null,null,null,null,null,null,null,null,null,null,null,null,"SFX - RIO MANSO"]
[null,null,null,null,null,null,null,null,null,null,null,null,null,null,null,null,null,null,"SFX - SABOYA"]
[null,null,null,null,null,null,null,null,null,null,null,null,null,null,null,null,null,null,"SFX - SANTA BARBARA DE BAIXO"]
[null,null,null,null,null,null,null,null,null,null,null,null,null,null,null,null,null,null,"SFX - SANTA BARBARA DE CIMA"]
[null,null,null,null,null,null,null,null,null,null,null,null,null,null,null,null,null,null,"SFX - SANTA CRUZ"]
[null,null,null,null,null,null,null,null,null,null,null,null,null,null,null,null,null,null,"SFX - SANTA TEREZINHA"]
[null,null,null,null,null,null,null,null,null,null,null,null,null,null,null,null,null,null,"SFX - SÃO PEDRO"]
[null,null,null,null,null,null,null,null,null,null,null,null,null,null,null,null,null,null,"SFX - TRAVESSA CIRIEMAS"]
[null,null,null,null,null,null,null,null,null,null,null,null,null,null,null,null,null,null,"SFX - TRAVESSA DA MATA"]
[null,null,null,null,null,null,null,null,null,null,null,null,null,null,null,null,null,null,"SFX - TRAVESSA DITA JUCA"]
[null,null,null,null,null,null,null,null,null,null,null,null,null,null,null,null,null,null,"SFX - UHF"]
[null,null,null,null,null,null,null,null,null,null,null,null,null,null,null,null,null,null,"SFX - VARJÃO"]
[null,null,null,null,null,null,null,null,null,null,null,null,null,null,null,null,null,null,"SFX - VENGALAR"]
[null,null,null,null,null,null,null,null,null,null,null,null,null,null,null,null,null,null,"SFX - VILA NOSSA SENHORA DE FATIMA"]
[null,null,null,null,null,null,null,null,null,null,null,null,null,null,null,null,null,null,"SITIO BOM JESUS"]
[null,null,null,null,null,null,null,null,null,null,null,null,null,null,null,null,null,null,"SOBRADO"]
[null,null,null,null,null,null,null,null,null,null,null,null,null,null,null,null,null,null,"SUNSET PARK"]
[null,null,null,null,null,null,null,null,null,null,null,null,null,null,null,null,null,null,"TAQUARI "]
[null,null,null,null,null,null,null,null,null,null,null,null,null,null,null,null,null,null,"TERRA BRASILIS"]
[null,null,null,null,null,null,null,null,null,null,null,null,null,null,null,null,null,null,"TERRA NOVA (EUGENIO DE MELO)"]
[null,null,null,null,null,null,null,null,null,null,null,null,null,null,null,null,null,null,"TOM JOBIM"]
[null,null,null,null,null,null,null,null,null,null,null,null,null,null,null,null,null,null,"TORRAO DE OURO (PARQUE INTERLAGOS)"]
[null,null,null,null,null,null,null,null,null,null,null,null,null,null,null,null,null,null,"TRINTA E UM DE MARCO"]
[null,null,null,null,null,null,null,null,null,null,null,null,null,null,null,null,null,null,"TURVO"]
[null,null,null,null,null,null,null,null,null,null,null,null,null,null,null,null,null,null,"URBANOVA I"]
[null,null,null,null,null,null,null,null,null,null,null,null,null,null,null,null,null,null,"URBANOVA II"]
[null,null,null,null,null,null,null,null,null,null,null,null,null,null,null,null,null,null,"URBANOVA III"]
[null,null,null,null,null,null,null,null,null,null,null,null,null,null,null,null,null,null,"URBANOVA IV"]
[null,null,null,null,null,null,null,null,null,null,null,null,null,null,null,null,null,null,"URBANOVA V"]
[null,null,null,null,null,null,null,null,null,null,null,null,null,null,null,null,null,null,"URBANOVA VI"]
[null,null,null,null,null,null,null,null,null,null,null,null,null,null,null,null,null,null,"URBANOVA VII"]
[null,null,null,null,null,null,null,null,null,null,null,null,null,null,null,null,null,null,"VARGEM GRANDE"]
[null,null,null,null,null,null,null,null,null,null,null,null,null,null,null,null,null,null,"VERANEIO TORRAO DE OURO"]
[null,null,null,null,null,null,null,null,null,null,null,null,null,null,null,null,null,null,"VERTENTES DO JAGUARI"]
[null,null,null,null,null,null,null,null,null,null,null,null,null,null,null,null,null,null,"VILA ABEL"]
[null,null,null,null,null,null,null,null,null,null,null,null,null,null,null,null,null,null,"VILA ADRIANA"]
[null,null,null,null,null,null,null,null,null,null,null,null,null,null,null,null,null,null,"VILA ADY ANNA"]
[null,null,null,null,null,null,null,null,null,null,null,null,null,null,null,null,null,null,"VILA ALEXANDRINA"]
[null,null,null,null,null,null,null,null,null,null,null,null,null,null,null,null,null,null,"VILA BANDEIRANTE"]
[null,null,null,null,null,null,null,null,null,null,null,null,null,null,null,null,null,null,"VILA BETANIA"]
[null,null,null,null,null,null,null,null,null,null,null,null,null,null,null,null,null,null,"VILA CANDIDA"]
[null,null,null,null,null,null,null,null,null,null,null,null,null,null,null,null,null,null,"VILA CARDOSO"]
[null,null,null,null,null,null,null,null,null,null,null,null,null,null,null,null,null,null,"VILA CESAR"]
[null,null,null,null,null,null,null,null,null,null,null,null,null,null,null,null,null,null,"VILA CHIQUINHA"]
[null,null,null,null,null,null,null,null,null,null,null,null,null,null,null,null,null,null,"VILA CORINTHIANS"]
[null,null,null,null,null,null,null,null,null,null,null,null,null,null,null,null,null,null,"VILA CRISTINA"]
[null,null,null,null,null,null,null,null,null,null,null,null,null,null,null,null,null,null,"VILA DAS ACACIAS"]
[null,null,null,null,null,null,null,null,null,null,null,null,null,null,null,null,null,null,"VILA DAS FLORES"]
[null,null,null,null,null,null,null,null,null,null,null,null,null,null,null,null,null,null,"VILA DIRCE"]
[null,null,null,null,null,null,null,null,null,null,null,null,null,null,null,null,null,null,"VILA DO CARMO"]
[null,null,null,null,null,null,null,null,null,null,null,null,null,null,null,null,null,null,"VILA DO CARMO - 2ª GLEBA"]
[null,null,null,null,null,null,null,null,null,null,null,null,null,null,null,null,null,null,"VILA DONA"]
[null,null,null,null,null,null,null,null,null,null,null,null,null,null,null,null,null,null,"VILA EMA"]
[null,null,null,null,null,null,null,null,null,null,null,null,null,null,null,null,null,null,"VILA ESMERALDA"]
[null,null,null,null,null,null,null,null,null,null,null,null,null,null,null,null,null,null,"VILA ESTER"]
[null,null,null,null,null,null,null,null,null,null,null,null,null,null,null,null,null,null,"VILA GUAIANAZES"]
[null,null,null,null,null,null,null,null,null,null,null,null,null,null,null,null,null,null,"VILA GUARANI"]
[null,null,null,null,null,null,null,null,null,null,null,null,null,null,null,null,null,null,"VILA HIGIENOPOLIS"]
[null,null,null,null,null,null,null,null,null,null,null,null,null,null,null,null,null,null,"VILA ICARAI"]
[null,null,null,null,null,null,null,null,null,null,null,null,null,null,null,null,null,null,"VILA IGUALDADE"]
[null,null,null,null,null,null,null,null,null,null,null,null,null,null,null,null,null,null,"VILA INDUSTRIAL"]
[null,null,null,null,null,null,null,null,null,null,null,null,null,null,null,null,null,null,"VILA IPIRANGA"]
[null,null,null,null,null,null,null,null,null,null,null,null,null,null,null,null,null,null,"VILA JACY"]
[null,null,null,null,null,null,null,null,null,null,null,null,null,null,null,null,null,null,"VILA LEILA I "]
[null,null,null,null,null,null,null,null,null,null,null,null,null,null,null,null,null,null,"VILA LEILA II"]
[null,null,null,null,null,null,null,null,null,null,null,null,null,null,null,null,null,null,"VILA LEONIDIA"]
[null,null,null,null,null,null,null,null,null,null,null,null,null,null,null,null,null,null,"VILA LETONIA"]
[null,null,null,null,null,null,null,null,null,null,null,null,null,null,null,null,null,null,"VILA LUCHETTI"]
[null,null,null,null,null,null,null,null,null,null,null,null,null,null,null,null,null,null,"VILA LUCIA"]
[null,null,null,null,null,null,null,null,null,null,null,null,null,null,null,null,null,null,"VILA LUIZA"]
[null,null,null,null,null,null,null,null,null,null,null,null,null,null,null,null,null,null,"VILA MACHADO"]
[null,null,null,null,null,null,null,null,null,null,null,null,null,null,null,null,null,null,"VILA MARIA"]
[null,null,null,null,null,null,null,null,null,null,null,null,null,null,null,null,null,null,"VILA MASCARENHAZ FERRAZ"]
[null,null,null,null,null,null,null,null,null,null,null,null,null,null,null,null,null,null,"VILA MATILDE I"]
[null,null,null,null,null,null,null,null,null,null,null,null,null,null,null,null,null,null,"VILA MATILDE II"]
[null,null,null,null,null,null,null,null,null,null,null,null,null,null,null,null,null,null,"VILA MONTE ALEGRE"]
[null,null,null,null,null,null,null,null,null,null,null,null,null,null,null,null,null,null,"VILA MONTEREY"]
[null,null,null,null,null,null,null,null,null,null,null,null,null,null,null,null,null,null,"VILA NAIR"]
[null,null,null,null,null,null,null,null,null,null,null,null,null,null,null,null,null,null,"VILA NOSSA SENHORA DAS GRACAS"]
[null,null,null,null,null,null,null,null,null,null,null,null,null,null,null,null,null,null,"VILA NOVA CONCEICAO"]
[null,null,null,null,null,null,null,null,null,null,null,null,null,null,null,null,null,null,"VILA NOVA CRISTINA"]
[null,null,null,null,null,null,null,null,null,null,null,null,null,null,null,null,null,null,"VILA NOVA GUARANI"]
[null,null,null,null,null,null,null,null,null,null,null,null,null,null,null,null,null,null,"VILA NOVA PAULICEIA"]
[null,null,null,null,null,null,null,null,null,null,null,null,null,null,null,null,null,null,"VILA NOVA SAO JOSE"]
[null,null,null,null,null,null,null,null,null,null,null,null,null,null,null,null,null,null,"VILA NOVE DE JULHO"]
[null,null,null,null,null,null,null,null,null,null,null,null,null,null,null,null,null,null,"VILA PAGANINI"]
[null,null,null,null,null,null,null,null,null,null,null,null,null,null,null,null,null,null,"VILA PAIVA"]
[null,null,null,null,null,null,null,null,null,null,null,null,null,null,null,null,null,null,"VILA PATRICIA"]
[null,null,null,null,null,null,null,null,null,null,null,null,null,null,null,null,null,null,"VILA PAULO SETUBAL"]
[null,null,null,null,null,null,null,null,null,null,null,null,null,null,null,null,null,null,"VILA PIRATININGA"]
[null,null,null,null,null,null,null,null,null,null,null,null,null,null,null,null,null,null,"VILA PROGRESSO "]
[null,null,null,null,null,null,null,null,null,null,null,null,null,null,null,null,null,null,"VILA RANGEL"]
[null,null,null,null,null,null,null,null,null,null,null,null,null,null,null,null,null,null,"VILA RHODIA"]
[null,null,null,null,null,null,null,null,null,null,null,null,null,null,null,null,null,null,"VILA RICA"]
[null,null,null,null,null,null,null,null,null,null,null,null,null,null,null,null,null,null,"VILA ROSSI"]
[null,null,null,null,null,null,null,null,null,null,null,null,null,null,null,null,null,null,"VILA RUBY"]
[null,null,null,null,null,null,null,null,null,null,null,null,null,null,null,null,null,null,"VILA SANCHES"]
[null,null,null,null,null,null,null,null,null,null,null,null,null,null,null,null,null,null,"VILA SANTA HELENA"]
[null,null,null,null,null,null,null,null,null,null,null,null,null,null,null,null,null,null,"VILA SANTA LUZIA"]
[null,null,null,null,null,null,null,null,null,null,null,null,null,null,null,null,null,null,"VILA SANTA MATILDE"]
[null,null,null,null,null,null,null,null,null,null,null,null,null,null,null,null,null,null,"VILA SANTA RITA"]
[null,null,null,null,null,null,null,null,null,null,null,null,null,null,null,null,null,null,"VILA SANTOS"]
[null,null,null,null,null,null,null,null,null,null,null,null,null,null,null,null,null,null,"VILA SAO BENEDITO"]
[null,null,null,null,null,null,null,null,null,null,null,null,null,null,null,null,null,null,"VILA SAO BENTO"]
[null,null,null,null,null,null,null,null,null,null,null,null,null,null,null,null,null,null,"VILA SAO GERALDO"]
[null,null,null,null,null,null,null,null,null,null,null,null,null,null,null,null,null,null,"VILA SAO PAULO"]
[null,null,null,null,null,null,null,null,null,null,null,null,null,null,null,null,null,null,"VILA SAO PEDRO"]
[null,null,null,null,null,null,null,null,null,null,null,null,null,null,null,null,null,null,"VILA SIMONE"]
[null,null,null,null,null,null,null,null,null,null,null,null,null,null,null,null,null,null,"VILA SINHA"]
[null,null,null,null,null,null,null,null,null,null,null,null,null,null,null,null,null,null,"VILA STRAUSS"]
[null,null,null,null,null,null,null,null,null,null,null,null,null,null,null,null,null,null,"VILA TATETUBA"]
[null,null,null,null,null,null,null,null,null,null,null,null,null,null,null,null,null,null,"VILA TEREZINHA"]
[null,null,null,null,null,null,null,null,null,null,null,null,null,null,null,null,null,null,"VILA TESOURO"]
[null,null,null,null,null,null,null,null,null,null,null,null,null,null,null,null,null,null,"VILA TUPI"]
[null,null,null,null,null,null,null,null,null,null,null,null,null,null,null,null,null,null,"VILA UNIDOS"]
[null,null,null,null,null,null,null,null,null,null,null,null,null,null,null,null,null,null,"VILA VENEZIANI"]
[null,null,null,null,null,null,null,null,null,null,null,null,null,null,null,null,null,null,"VILA VIADUTO"]
[null,null,null,null,null,null,null,null,null,null,null,null,null,null,null,null,null,null,"VILA ZELFA"]
[null,null,null,null,null,null,null,null,null,null,null,null,null,null,null,null,null,null,"VILA ZIZINHA"]
[null,null,null,null,null,null,null,null,null,null,null,null,null,null,null,null,null,null,"VILLAGE ALPINO"]